Body Name,Body,Service Label,Service Code,CIPFA Detailed Expenditure Type,CIPFA Detailed Expenditure Code,Date,Transaction Number,Net Amount,Supplier Name,,,,,,,,,,,Jun
Nottinghamshire County Council,1111/1001,Surplus or Deficit from Trading Undertak,TRADING,Transport Related,CCA,02/06/2014,03-10193,940,Adam Fox,,,,,,,,,,,
Nottinghamshire County Council,1111/1001,Adult Social Care and Health,ASCH,Third Party Payments,EGA,02/06/2014,03-10183,923,Ashdale Care Home,,,,,,,,,,,
Nottinghamshire County Council,1111/1001,Adult Social Care and Health,ASCH,Third Party Payments,EGA,02/06/2014,03-10184,7371,Ashdale Care Home,,,,,,,,,,,
Nottinghamshire County Council,1111/1001,Adult Social Care and Health,ASCH,Third Party Payments,ECA,02/06/2014,03-10100,411.88,Ashley House Nursing Home,,,,,,,,,,,
Nottinghamshire County Council,1111/1001,Adult Social Care and Health,ASCH,Third Party Payments,ECA,02/06/2014,03-10101,649.5,Ashley House Nursing Home,,,,,,,,,,,
Nottinghamshire County Council,1111/1001,Adult Social Care and Health,ASCH,Third Party Payments,EGA,02/06/2014,03-10100,2046.57,Ashley House Nursing Home,,,,,,,,,,,
Nottinghamshire County Council,1111/1001,Adult Social Care and Health,ASCH,Third Party Payments,EGA,02/06/2014,03-10101,3473.29,Ashley House Nursing Home,,,,,,,,,,,
Nottinghamshire County Council,1111/1001,Adult Social Care and Health,ASCH,Third Party Payments,EGA,02/06/2014,03-10085,802,Avalon Nursing Home,,,,,,,,,,,
Nottinghamshire County Council,1111/1001,Adult Social Care and Health,ASCH,Third Party Payments,EGA,02/06/2014,03-10096,802,Avondale Residential Care Home,,,,,,,,,,,
Nottinghamshire County Council,1111/1001,Adult Social Care and Health,ASCH,Third Party Payments,EGA,02/06/2014,03-10129,1781.85,Balmore Country House,,,,,,,,,,,
Nottinghamshire County Council,1111/1001,Adult Social Care and Health,ASCH,Third Party Payments,EGA,02/06/2014,03-10084,1682.14,Barnby Court Care Home,,,,,,,,,,,
Nottinghamshire County Council,1111/1001,Adult Social Care and Health,ASCH,Third Party Payments,EGA,02/06/2014,03-10122,802,Beeston Lodge Nursing Home,,,,,,,,,,,
Nottinghamshire County Council,1111/1001,Adult Social Care and Health,ASCH,Third Party Payments,EGA,02/06/2014,03-10098,2689.71,Bluebell Lodge,,,,,,,,,,,
Nottinghamshire County Council,1111/1001,Adult Social Care and Health,ASCH,Third Party Payments,EGA,02/06/2014,03-10099,1046,Bluebell Lodge,,,,,,,,,,,
Nottinghamshire County Council,1111/1001,Adult Social Care and Health,ASCH,Third Party Payments,EGA,02/06/2014,03-10179,18279,Bowbridge Court,,,,,,,,,,,
Nottinghamshire County Council,1111/1001,Adult Social Care and Health,ASCH,Third Party Payments,EGA,02/06/2014,03-10180,8251.29,Bowbridge Court,,,,,,,,,,,
Nottinghamshire County Council,1111/1001,Adult Social Care and Health,ASCH,Supplies & Services,DAA,02/06/2014,03-10057,449428.01,British Red Cross Society,,,,,,,,,,,
Nottinghamshire County Council,1111/1001,Adult Social Care and Health,ASCH,Supplies & Services,DKA,02/06/2014,03-10057,64652.73,British Red Cross Society,,,,,,,,,,,
Nottinghamshire County Council,1111/1001,Adult Social Care and Health,ASCH,Third Party Payments,EGA,02/06/2014,03-10057,90978.16,British Red Cross Society,,,,,,,,,,,
Nottinghamshire County Council,1111/1001,Adult Social Care and Health,ASCH,Third Party Payments,EGA,02/06/2014,03-10138,2562.86,Broadlands Care Home,,,,,,,,,,,
Nottinghamshire County Council,1111/1001,Surplus or Deficit from Trading Undertak,TRADING,Supplies & Services,DAA,02/06/2014,03-10073,824.43,Butler Reynolds Ltd,,,,,,,,,,,
Nottinghamshire County Council,1111/1001,Adult Social Care and Health,ASCH,Third Party Payments,ECA,02/06/2014,03-10186,443.56,Canal Vue,,,,,,,,,,,
Nottinghamshire County Council,1111/1001,Adult Social Care and Health,ASCH,Third Party Payments,EGA,02/06/2014,03-10186,1633.8,Canal Vue,,,,,,,,,,,
Nottinghamshire County Council,1111/1001,Adult Social Care and Health,ASCH,Third Party Payments,EGA,02/06/2014,03-10187,3913.19,Canal Vue,,,,,,,,,,,
Nottinghamshire County Council,1111/1001,Adult Social Care and Health,ASCH,Third Party Payments,EGA,02/06/2014,03-10147,14717.14,Christie Development Centre,,,,,,,,,,,
Nottinghamshire County Council,1111/1001,Adult Social Care and Health,ASCH,Third Party Payments,EGA,02/06/2014,03-10132,854.76,Clifton Manor Care Complex,,,,,,,,,,,
Nottinghamshire County Council,1111/1001,Adult Social Care and Health,ASCH,Third Party Payments,EGA,02/06/2014,03-10145,3025.29,Clipstone Hall Care Home,,,,,,,,,,,
Nottinghamshire County Council,1111/1001,Adult Social Care and Health,ASCH,Third Party Payments,ECA,02/06/2014,03-10091,221.78,Countrywide Care Homes Ltd T/A Clum,,,,,,,,,,,
Nottinghamshire County Council,1111/1001,Adult Social Care and Health,ASCH,Third Party Payments,EGA,02/06/2014,03-10090,3048.86,Countrywide Care Homes Ltd T/A Clum,,,,,,,,,,,
Nottinghamshire County Council,1111/1001,Adult Social Care and Health,ASCH,Third Party Payments,EGA,02/06/2014,03-10091,1058,Countrywide Care Homes Ltd T/A Clum,,,,,,,,,,,
Nottinghamshire County Council,1111/1001,Adult Social Care and Health,ASCH,Third Party Payments,EGA,02/06/2014,03-10092,1599.92,Countrywide Care Homes Ltd T/A Clum,,,,,,,,,,,
Nottinghamshire County Council,1111/1001,Adult Social Care and Health,ASCH,Third Party Payments,ECA,02/06/2014,03-10104,125.47,Countrywide Care Homes Ltd T/A Gate,,,,,,,,,,,
Nottinghamshire County Council,1111/1001,Adult Social Care and Health,ASCH,Third Party Payments,ECA,02/06/2014,03-10105,109.79,Countrywide Care Homes Ltd T/A Gate,,,,,,,,,,,
Nottinghamshire County Council,1111/1001,Adult Social Care and Health,ASCH,Third Party Payments,ECA,02/06/2014,03-10108,329.37,Countrywide Care Homes Ltd T/A Gate,,,,,,,,,,,
Nottinghamshire County Council,1111/1001,Adult Social Care and Health,ASCH,Third Party Payments,ECA,02/06/2014,03-10110,869.6,Countrywide Care Homes Ltd T/A Gate,,,,,,,,,,,
Nottinghamshire County Council,1111/1001,Adult Social Care and Health,ASCH,Third Party Payments,EGA,02/06/2014,03-10103,672.86,Countrywide Care Homes Ltd T/A Gate,,,,,,,,,,,
Nottinghamshire County Council,1111/1001,Adult Social Care and Health,ASCH,Third Party Payments,EGA,02/06/2014,03-10104,596.57,Countrywide Care Homes Ltd T/A Gate,,,,,,,,,,,
Nottinghamshire County Council,1111/1001,Adult Social Care and Health,ASCH,Third Party Payments,EGA,02/06/2014,03-10105,522,Countrywide Care Homes Ltd T/A Gate,,,,,,,,,,,
Nottinghamshire County Council,1111/1001,Adult Social Care and Health,ASCH,Third Party Payments,EGA,02/06/2014,03-10106,1076.57,Countrywide Care Homes Ltd T/A Gate,,,,,,,,,,,
Nottinghamshire County Council,1111/1001,Adult Social Care and Health,ASCH,Third Party Payments,EGA,02/06/2014,03-10107,996,Countrywide Care Homes Ltd T/A Gate,,,,,,,,,,,
Nottinghamshire County Council,1111/1001,Adult Social Care and Health,ASCH,Third Party Payments,EGA,02/06/2014,03-10108,1566,Countrywide Care Homes Ltd T/A Gate,,,,,,,,,,,
Nottinghamshire County Council,1111/1001,Adult Social Care and Health,ASCH,Third Party Payments,EGA,02/06/2014,03-10109,3161.14,Countrywide Care Homes Ltd T/A Gate,,,,,,,,,,,
Nottinghamshire County Council,1111/1001,Adult Social Care and Health,ASCH,Third Party Payments,EGA,02/06/2014,03-10110,3928,Countrywide Care Homes Ltd T/A Gate,,,,,,,,,,,
Nottinghamshire County Council,1111/1001,Adult Social Care and Health,ASCH,Third Party Payments,EGA,02/06/2014,03-10111,936,Countrywide Care Homes Ltd T/A Gate,,,,,,,,,,,
Nottinghamshire County Council,1111/1001,Adult Social Care and Health,ASCH,Third Party Payments,EGA,02/06/2014,03-10112,1337.14,Countrywide Care Homes Ltd T/A Gate,,,,,,,,,,,
Nottinghamshire County Council,1111/1001,Adult Social Care and Health,ASCH,Third Party Payments,EGA,02/06/2014,03-10097,5084.72,Danybryn Cheshire Home,,,,,,,,,,,
Nottinghamshire County Council,1111/1001,Adult Social Care and Health,ASCH,Income,JDA,02/06/2014,03-10097,-495.8,Danybryn Cheshire Home,,,,,,,,,,,
Nottinghamshire County Council,1111/1001,Adult Social Care and Health,ASCH,Third Party Payments,EGA,02/06/2014,03-10089,2172,Edward House Care Home,,,,,,,,,,,
Nottinghamshire County Council,1111/1001,Adult Social Care and Health,ASCH,Third Party Payments,EGA,02/06/2014,03-10181,1069.71,Egerton Lodge Residential Home,,,,,,,,,,,
Nottinghamshire County Council,1111/1001,Adult Social Care and Health,ASCH,Third Party Payments,EGA,02/06/2014,03-10141,1884,Ernhale Lodge Nursing Home,,,,,,,,,,,
Nottinghamshire County Council,1111/1001,Adult Social Care and Health,ASCH,Third Party Payments,EGA,02/06/2014,03-10060,3167.52,Fitzroy,,,,,,,,,,,
Nottinghamshire County Council,1111/1001,Adult Social Care and Health,ASCH,Third Party Payments,EGA,02/06/2014,03-10061,3425.52,Fitzroy,,,,,,,,,,,
Nottinghamshire County Council,1111/1001,Adult Social Care and Health,ASCH,Third Party Payments,EGA,02/06/2014,03-10062,2388,Fitzroy,,,,,,,,,,,
Nottinghamshire County Council,1111/1001,Adult Social Care and Health,ASCH,Third Party Payments,EGA,02/06/2014,03-10063,1348,Fitzroy,,,,,,,,,,,
Nottinghamshire County Council,1111/1001,Adult Social Care and Health,ASCH,Third Party Payments,EGA,02/06/2014,03-10064,1842,Fitzroy,,,,,,,,,,,
Nottinghamshire County Council,1111/1001,Adult Social Care and Health,ASCH,Third Party Payments,EGA,02/06/2014,03-10065,3167.52,Fitzroy,,,,,,,,,,,
Nottinghamshire County Council,1111/1001,Adult Social Care and Health,ASCH,Third Party Payments,EGA,02/06/2014,03-10066,3064,Fitzroy,,,,,,,,,,,
Nottinghamshire County Council,1111/1001,Adult Social Care and Health,ASCH,Third Party Payments,EGA,02/06/2014,03-10070,1642,Fitzroy,,,,,,,,,,,
Nottinghamshire County Council,1111/1001,Adult Social Care and Health,ASCH,Third Party Payments,EGA,02/06/2014,03-10195,4644,Fitzroy,,,,,,,,,,,
Nottinghamshire County Council,1111/1001,Adult Social Care and Health,ASCH,Third Party Payments,EGA,02/06/2014,03-10196,7686,Fitzroy,,,,,,,,,,,
Nottinghamshire County Council,1111/1001,Adult Social Care and Health,ASCH,Third Party Payments,ECA,02/06/2014,03-10148,839.6,Forest Manor Care Home,,,,,,,,,,,
Nottinghamshire County Council,1111/1001,Adult Social Care and Health,ASCH,Third Party Payments,EGA,02/06/2014,03-10148,3778.14,Forest Manor Care Home,,,,,,,,,,,
Nottinghamshire County Council,1111/1001,Adult Social Care and Health,ASCH,Third Party Payments,EGA,02/06/2014,03-10088,1404,Four Seasons (Bamford) Ltd - Old Vi,,,,,,,,,,,
Nottinghamshire County Council,1111/1001,Adult Social Care and Health,ASCH,Third Party Payments,EGA,02/06/2014,03-10086,1413,Four Seasons (Evedale) Ltd/Tudor Gr,,,,,,,,,,,
Nottinghamshire County Council,1111/1001,Adult Social Care and Health,ASCH,Third Party Payments,EGA,02/06/2014,03-10133,890,Friary Fields Limited,,,,,,,,,,,
Nottinghamshire County Council,1111/1001,Adult Social Care and Health,ASCH,Third Party Payments,ECA,02/06/2014,03-10131,190.1,Giltbrook Carehomes Ltd,,,,,,,,,,,
Nottinghamshire County Council,1111/1001,Adult Social Care and Health,ASCH,Third Party Payments,EGA,02/06/2014,03-10131,970.29,Giltbrook Carehomes Ltd,,,,,,,,,,,
Nottinghamshire County Council,1111/1001,Adult Social Care and Health,ASCH,Third Party Payments,EGA,02/06/2014,03-10134,852,Glenesk,,,,,,,,,,,
Nottinghamshire County Council,1111/1001,Adult Social Care and Health,ASCH,Third Party Payments,EGA,02/06/2014,03-10135,7295.86,Glenesk,,,,,,,,,,,
Nottinghamshire County Council,1111/1001,Adult Social Care and Health,ASCH,Third Party Payments,ECA,02/06/2014,03-10119,332.67,Hazel Grove Nursing Home,,,,,,,,,,,
Nottinghamshire County Council,1111/1001,Adult Social Care and Health,ASCH,Third Party Payments,EGA,02/06/2014,03-10119,1653,Hazel Grove Nursing Home,,,,,,,,,,,
Nottinghamshire County Council,1111/1001,Adult Social Care and Health,ASCH,Third Party Payments,EGA,02/06/2014,03-10120,6237.28,Hazel Grove Nursing Home,,,,,,,,,,,
Nottinghamshire County Council,1111/1001,Adult Social Care and Health,ASCH,Third Party Payments,EGA,02/06/2014,03-10121,3465.29,Hazel Grove Nursing Home,,,,,,,,,,,
Nottinghamshire County Council,1111/1001,Adult Social Care and Health,ASCH,Third Party Payments,EGA,02/06/2014,03-10123,6010.56,Holme Lodge Cheshire Home,,,,,,,,,,,
Nottinghamshire County Council,1111/1001,Adult Social Care and Health,ASCH,Third Party Payments,EGA,02/06/2014,03-10124,5328.24,Holme Lodge Cheshire Home,,,,,,,,,,,
Nottinghamshire County Council,1111/1001,Adult Social Care and Health,ASCH,Third Party Payments,EGA,02/06/2014,03-10125,7131.84,Holme Lodge Cheshire Home,,,,,,,,,,,
Nottinghamshire County Council,1111/1001,Adult Social Care and Health,ASCH,Third Party Payments,EGA,02/06/2014,03-10126,6479.12,Holme Lodge Cheshire Home,,,,,,,,,,,
Nottinghamshire County Council,1111/1001,Adult Social Care and Health,ASCH,Third Party Payments,EGA,02/06/2014,03-10127,6468.08,Holme Lodge Cheshire Home,,,,,,,,,,,
Nottinghamshire County Council,1111/1001,Adult Social Care and Health,ASCH,Income,JDA,02/06/2014,03-10123,-498.8,Holme Lodge Cheshire Home,,,,,,,,,,,
Nottinghamshire County Council,1111/1001,Adult Social Care and Health,ASCH,Income,JDA,02/06/2014,03-10124,-638.8,Holme Lodge Cheshire Home,,,,,,,,,,,
Nottinghamshire County Council,1111/1001,Adult Social Care and Health,ASCH,Third Party Payments,EGA,02/06/2014,03-10168,852,Jubilee Court,,,,,,,,,,,
Nottinghamshire County Council,1111/1001,Adult Social Care and Health,ASCH,Third Party Payments,ECA,02/06/2014,03-10178,110.89,Jubilee Court Nursing Home,,,,,,,,,,,
Nottinghamshire County Council,1111/1001,Adult Social Care and Health,ASCH,Third Party Payments,EGA,02/06/2014,03-10178,499,Jubilee Court Nursing Home,,,,,,,,,,,
Nottinghamshire County Council,1111/1001,Adult Social Care and Health,ASCH,Third Party Payments,EGA,02/06/2014,03-10093,3414,Landermeads Nursing Home,,,,,,,,,,,
Nottinghamshire County Council,1111/1001,Adult Social Care and Health,ASCH,Third Party Payments,EGA,02/06/2014,03-10130,6980.14,Langwith Lodge,,,,,,,,,,,
Nottinghamshire County Council,1111/1001,Adult Social Care and Health,ASCH,Third Party Payments,EGA,02/06/2014,03-10176,3834,Leawood Manor,,,,,,,,,,,
Nottinghamshire County Council,1111/1001,Surplus or Deficit from Trading Undertak,TRADING,Transport Related,CCA,02/06/2014,03-10058,1000,Leeds Commercial Ltd,,,,,,,,,,,
Nottinghamshire County Council,1111/1001,Surplus or Deficit from Trading Undertak,TRADING,Transport Related,CCA,02/06/2014,03-10190,630,Mackay Plant Hire Limited,,,,,,,,,,,
Nottinghamshire County Council,1111/1001,Adult Social Care and Health,ASCH,Third Party Payments,EGA,02/06/2014,03-10169,2501.43,Maun View,,,,,,,,,,,
Nottinghamshire County Council,1111/1001,Adult Social Care and Health,ASCH,Third Party Payments,EGA,02/06/2014,03-10170,2427.86,Maun View,,,,,,,,,,,
Nottinghamshire County Council,1111/1001,Adult Social Care and Health,ASCH,Third Party Payments,EGA,02/06/2014,03-10171,2427.86,Maun View,,,,,,,,,,,
Nottinghamshire County Council,1111/1001,Adult Social Care and Health,ASCH,Third Party Payments,EGA,02/06/2014,03-10172,5461,Maun View,,,,,,,,,,,
Nottinghamshire County Council,1111/1001,Adult Social Care and Health,ASCH,Third Party Payments,EGA,02/06/2014,03-10136,572.14,Meadow Lodge (Beeston),,,,,,,,,,,
Nottinghamshire County Council,1111/1001,Adult Social Care and Health,ASCH,Third Party Payments,EGA,02/06/2014,03-10137,1017.14,Meadow Lodge (Beeston),,,,,,,,,,,
Nottinghamshire County Council,1111/1001,Adult Social Care and Health,ASCH,Third Party Payments,EGA,02/06/2014,03-10067,2909.54,Mencap Accounts Region 2,,,,,,,,,,,
Nottinghamshire County Council,1111/1001,Adult Social Care and Health,ASCH,Third Party Payments,EGA,02/06/2014,03-10080,1741.6,Mencap Accounts Region 2,,,,,,,,,,,
Nottinghamshire County Council,1111/1001,Environmental,ENVIRON,Supplies & Services,DFA,02/06/2014,03-10056,500,Neopost Ltd Frank Mach Top Ups Only,,,,,,,,,,,
Nottinghamshire County Council,1111/1001,Children and Young People,CYP,Income,JHA,02/06/2014,03-10038,1980,Not assigned,,,,,,,,,,,
Nottinghamshire County Council,1111/1001,Adult Social Care and Health,ASCH,Income,JDA,02/06/2014,03-10034,1032.84,Not assigned,,,,,,,,,,,
Nottinghamshire County Council,1111/1001,Adult Social Care and Health,ASCH,Income,JDA,02/06/2014,03-10035,1681.8,Not assigned,,,,,,,,,,,
Nottinghamshire County Council,1111/1001,Adult Social Care and Health,ASCH,Income,JDA,02/06/2014,03-10039,787.96,Not assigned,,,,,,,,,,,
Nottinghamshire County Council,1111/1001,Adult Social Care and Health,ASCH,Income,JDA,02/06/2014,03-10040,3787.7,Not assigned,,,,,,,,,,,
Nottinghamshire County Council,1111/1001,Corporate Management,CORP_MAGT,Income,JHA,02/06/2014,03-10036,995,Not assigned,,,,,,,,,,,
Nottinghamshire County Council,1111/1001,Surplus or Deficit from Trading Undertak,TRADING,Income,JHA,02/06/2014,03-10028,3131.95,Not assigned,,,,,,,,,,,
Nottinghamshire County Council,1111/1001,Surplus or Deficit from Trading Undertak,TRADING,Income,JHA,02/06/2014,03-10029,3131.95,Not assigned,,,,,,,,,,,
Nottinghamshire County Council,1111/1001,Surplus or Deficit from Trading Undertak,TRADING,Income,JHA,02/06/2014,03-10030,3131.95,Not assigned,,,,,,,,,,,
Nottinghamshire County Council,1111/1001,Surplus or Deficit from Trading Undertak,TRADING,Income,JHA,02/06/2014,03-10031,3131.95,Not assigned,,,,,,,,,,,
Nottinghamshire County Council,1111/1001,Surplus or Deficit from Trading Undertak,TRADING,Income,JHA,02/06/2014,03-10032,2989.69,Not assigned,,,,,,,,,,,
Nottinghamshire County Council,1111/1001,Surplus or Deficit from Trading Undertak,TRADING,Income,JHA,02/06/2014,03-10033,1960.39,Not assigned,,,,,,,,,,,
Nottinghamshire County Council,1111/1001,Surplus or Deficit from Trading Undertak,TRADING,Income,JHA,02/06/2014,03-10037,4298.25,Not assigned,,,,,,,,,,,
Nottinghamshire County Council,1111/1001,Children and Young People,CYP,Third Party Payments,EGA,02/06/2014,03-15890,1130074.33,Nottinghamshire Healthcare Nhs Trus,,,,,,,,,,,
Nottinghamshire County Council,1111/1001,Adult Social Care and Health,ASCH,Third Party Payments,EGA,02/06/2014,03-10081,1013.09,Nottm Community Housing Assoc,,,,,,,,,,,
Nottinghamshire County Council,1111/1001,Adult Social Care and Health,ASCH,Third Party Payments,EGA,02/06/2014,03-10082,788.32,Nottm Community Housing Assoc,,,,,,,,,,,
Nottinghamshire County Council,1111/1001,Adult Social Care and Health,ASCH,Third Party Payments,EGA,02/06/2014,03-10189,4023.76,Nottm Community Housing Assoc,,,,,,,,,,,
Nottinghamshire County Council,1111/1001,Adult Social Care and Health,ASCH,Third Party Payments,EGA,02/06/2014,03-10197,1117.06,Nottm Community Housing Assoc,,,,,,,,,,,
Nottinghamshire County Council,1111/1001,Adult Social Care and Health,ASCH,Third Party Payments,EGA,02/06/2014,03-10198,735.32,Nottm Community Housing Assoc,,,,,,,,,,,
Nottinghamshire County Council,1111/1001,Children and Young People,CYP,Third Party Payments,EHA,02/06/2014,03-15889,17979.5,PACEY,,,,,,,,,,,
Nottinghamshire County Council,1111/1001,Adult Social Care and Health,ASCH,Third Party Payments,EGA,02/06/2014,03-10142,1700,Pathfinders Neurological Care Centr,,,,,,,,,,,
Nottinghamshire County Council,1111/1001,Adult Social Care and Health,ASCH,Third Party Payments,EGA,02/06/2014,03-10068,24352.6,Perthyn,,,,,,,,,,,
Nottinghamshire County Council,1111/1001,Adult Social Care and Health,ASCH,Third Party Payments,EGA,02/06/2014,03-10069,22981.99,Perthyn,,,,,,,,,,,
Nottinghamshire County Council,1111/1001,Adult Social Care and Health,ASCH,Third Party Payments,EGA,02/06/2014,03-10087,30744,Portland House,,,,,,,,,,,
Nottinghamshire County Council,1111/1001,Adult Social Care and Health,ASCH,Third Party Payments,EGA,02/06/2014,03-10149,3243.6,Portland Residential College,,,,,,,,,,,
Nottinghamshire County Council,1111/1001,Adult Social Care and Health,ASCH,Third Party Payments,EGA,02/06/2014,03-10150,3243.6,Portland Residential College,,,,,,,,,,,
Nottinghamshire County Council,1111/1001,Adult Social Care and Health,ASCH,Third Party Payments,EGA,02/06/2014,03-10151,1737.64,Portland Residential College,,,,,,,,,,,
Nottinghamshire County Council,1111/1001,Adult Social Care and Health,ASCH,Third Party Payments,EGA,02/06/2014,03-10152,3243.6,Portland Residential College,,,,,,,,,,,
Nottinghamshire County Council,1111/1001,Adult Social Care and Health,ASCH,Third Party Payments,EGA,02/06/2014,03-10153,5236,Portland Residential College,,,,,,,,,,,
Nottinghamshire County Council,1111/1001,Adult Social Care and Health,ASCH,Third Party Payments,EGA,02/06/2014,03-10154,3243.6,Portland Residential College,,,,,,,,,,,
Nottinghamshire County Council,1111/1001,Adult Social Care and Health,ASCH,Third Party Payments,EGA,02/06/2014,03-10155,2574.72,Portland Residential College,,,,,,,,,,,
Nottinghamshire County Council,1111/1001,Adult Social Care and Health,ASCH,Third Party Payments,EGA,02/06/2014,03-10156,1737.64,Portland Residential College,,,,,,,,,,,
Nottinghamshire County Council,1111/1001,Adult Social Care and Health,ASCH,Third Party Payments,EGA,02/06/2014,03-10157,2201.01,Portland Residential College,,,,,,,,,,,
Nottinghamshire County Council,1111/1001,Adult Social Care and Health,ASCH,Third Party Payments,EGA,02/06/2014,03-10158,1737.64,Portland Residential College,,,,,,,,,,,
Nottinghamshire County Council,1111/1001,Adult Social Care and Health,ASCH,Third Party Payments,EGA,02/06/2014,03-10159,3243.6,Portland Residential College,,,,,,,,,,,
Nottinghamshire County Council,1111/1001,Adult Social Care and Health,ASCH,Third Party Payments,EGA,02/06/2014,03-10160,3243.6,Portland Residential College,,,,,,,,,,,
Nottinghamshire County Council,1111/1001,Adult Social Care and Health,ASCH,Third Party Payments,EGA,02/06/2014,03-10161,3197.16,Portland Residential College,,,,,,,,,,,
Nottinghamshire County Council,1111/1001,Adult Social Care and Health,ASCH,Third Party Payments,EGA,02/06/2014,03-10162,3243.52,Portland Residential College,,,,,,,,,,,
Nottinghamshire County Council,1111/1001,Adult Social Care and Health,ASCH,Third Party Payments,EGA,02/06/2014,03-10163,3243.6,Portland Residential College,,,,,,,,,,,
Nottinghamshire County Council,1111/1001,Adult Social Care and Health,ASCH,Third Party Payments,EGA,02/06/2014,03-10164,3243.6,Portland Residential College,,,,,,,,,,,
Nottinghamshire County Council,1111/1001,Adult Social Care and Health,ASCH,Third Party Payments,EGA,02/06/2014,03-10165,3243.6,Portland Residential College,,,,,,,,,,,
Nottinghamshire County Council,1111/1001,Adult Social Care and Health,ASCH,Third Party Payments,EGA,02/06/2014,03-10166,5236,Portland Residential College,,,,,,,,,,,
Nottinghamshire County Council,1111/1001,Adult Social Care and Health,ASCH,Third Party Payments,EGA,02/06/2014,03-10167,3243.6,Portland Residential College,,,,,,,,,,,
Nottinghamshire County Council,1111/1001,Adult Social Care and Health,ASCH,Third Party Payments,EGA,02/06/2014,03-10139,1880,Prime Life Ltd-Charnwood Oaks Care,,,,,,,,,,,
Nottinghamshire County Council,1111/1001,Adult Social Care and Health,ASCH,Third Party Payments,EGA,02/06/2014,03-10113,4294.29,Red Rose Nursing Home,,,,,,,,,,,
Nottinghamshire County Council,1111/1001,Adult Social Care and Health,ASCH,Third Party Payments,EFA,02/06/2014,03-10083,9725.12,Redacted,,,,,,,,,,,
Nottinghamshire County Council,1111/1001,Adult Social Care and Health,ASCH,Income,JDA,02/06/2014,03-10083,-4679.35,Redacted,,,,,,,,,,,
Nottinghamshire County Council,1111/1001,Adult Social Care and Health,ASCH,Third Party Payments,EGA,02/06/2014,03-10116,1046,Rose Court Lodge Care Home,,,,,,,,,,,
Nottinghamshire County Council,1111/1001,Adult Social Care and Health,ASCH,Third Party Payments,EGA,02/06/2014,03-10117,942,Rose Court Lodge Care Home,,,,,,,,,,,
Nottinghamshire County Council,1111/1001,Adult Social Care and Health,ASCH,Third Party Payments,EGA,02/06/2014,03-10118,2691.43,Rose Court Lodge Care Home,,,,,,,,,,,
Nottinghamshire County Council,1111/1001,Adult Social Care and Health,ASCH,Third Party Payments,EGA,02/06/2014,03-10115,4173.43,Rose Farm Care Home,,,,,,,,,,,
Nottinghamshire County Council,1111/1001,Adult Social Care and Health,ASCH,Third Party Payments,EGA,02/06/2014,03-10177,1713.2,Rowan Garth Nursing Home,,,,,,,,,,,
Nottinghamshire County Council,1111/1001,Adult Social Care and Health,ASCH,Third Party Payments,EGA,02/06/2014,03-10143,1828,Ruckland Court,,,,,,,,,,,
Nottinghamshire County Council,1111/1001,Adult Social Care and Health,ASCH,Third Party Payments,EGA,02/06/2014,03-10144,1564,Ruckland Court,,,,,,,,,,,
Nottinghamshire County Council,1111/1001,Adult Social Care and Health,ASCH,Third Party Payments,EGA,02/06/2014,03-10182,671.14,Sherwood Grange Care Ltd,,,,,,,,,,,
Nottinghamshire County Council,1111/1001,Adult Social Care and Health,ASCH,Third Party Payments,EGA,02/06/2014,03-10128,3362.14,Sutton Court,,,,,,,,,,,
Nottinghamshire County Council,1111/1001,Adult Social Care and Health,ASCH,Third Party Payments,EGA,02/06/2014,03-10185,3531.71,The Depperhaugh,,,,,,,,,,,
Nottinghamshire County Council,1111/1001,Adult Social Care and Health,ASCH,Third Party Payments,EGA,02/06/2014,03-10188,1604,The Maltings Care Home,,,,,,,,,,,
Nottinghamshire County Council,1111/1001,Adult Social Care and Health,ASCH,Third Party Payments,EGA,02/06/2014,03-10140,1713.6,The Oaklands Residential Home,,,,,,,,,,,
Nottinghamshire County Council,1111/1001,Surplus or Deficit from Trading Undertak,TRADING,Supplies & Services,DAA,02/06/2014,03-10059,1397.73,Truck Loaders Ltd,,,,,,,,,,,
Nottinghamshire County Council,1111/1001,Adult Social Care and Health,ASCH,Third Party Payments,EGA,02/06/2014,03-10094,2887.14,Tuxford Manor Care Home,,,,,,,,,,,
Nottinghamshire County Council,1111/1001,Adult Social Care and Health,ASCH,Third Party Payments,EGA,02/06/2014,03-10095,2982.86,Tuxford Manor Care Home,,,,,,,,,,,
Nottinghamshire County Council,1111/1001,Libraries,LIBRARIES,Supplies & Services,DAA,02/06/2014,03-10071,663.74,Ulverscroft Large Print Books Ltd,,,,,,,,,,,
Nottinghamshire County Council,1111/1001,Libraries,LIBRARIES,Supplies & Services,DAA,02/06/2014,03-10072,663.74,Ulverscroft Large Print Books Ltd,,,,,,,,,,,
Nottinghamshire County Council,1111/1001,Libraries,LIBRARIES,Supplies & Services,DEA,02/06/2014,03-10071,10.4,Ulverscroft Large Print Books Ltd,,,,,,,,,,,
Nottinghamshire County Council,1111/1001,Libraries,LIBRARIES,Supplies & Services,DEA,02/06/2014,03-10072,10.4,Ulverscroft Large Print Books Ltd,,,,,,,,,,,
Nottinghamshire County Council,1111/1001,Adult Social Care and Health,ASCH,Third Party Payments,EGA,02/06/2014,03-10102,4202.14,Westcliffe Nursing Home,,,,,,,,,,,
Nottinghamshire County Council,1111/1001,Adult Social Care and Health,ASCH,Third Party Payments,ECA,02/06/2014,03-10146,110.89,Westvilla Nursing Home,,,,,,,,,,,
Nottinghamshire County Council,1111/1001,Adult Social Care and Health,ASCH,Third Party Payments,EGA,02/06/2014,03-10146,551,Westvilla Nursing Home,,,,,,,,,,,
Nottinghamshire County Council,1111/1001,Adult Social Care and Health,ASCH,Third Party Payments,EGA,02/06/2014,03-10173,2059,Westwood,,,,,,,,,,,
Nottinghamshire County Council,1111/1001,Adult Social Care and Health,ASCH,Third Party Payments,EGA,02/06/2014,03-10174,994,Westwood,,,,,,,,,,,
Nottinghamshire County Council,1111/1001,Adult Social Care and Health,ASCH,Third Party Payments,EGA,02/06/2014,03-10175,2060,Westwood,,,,,,,,,,,
Nottinghamshire County Council,1111/1001,Adult Social Care and Health,ASCH,Third Party Payments,ECA,02/06/2014,03-10114,705.79,Wren Hall Nursing Home,,,,,,,,,,,
Nottinghamshire County Council,1111/1001,Adult Social Care and Health,ASCH,Third Party Payments,EGA,02/06/2014,03-10114,4435.71,Wren Hall Nursing Home,,,,,,,,,,,
Nottinghamshire County Council,1111/1001,Corporate Management,CORP_MAGT,Transport Related,CCA,03/06/2014,03-10229,800,A & V Squires Plant Co,,,,,,,,,,,
Nottinghamshire County Council,1111/1001,Surplus or Deficit from Trading Undertak,TRADING,Transport Related,CCA,03/06/2014,03-10225,1248,A & V Squires Plant Co,,,,,,,,,,,
Nottinghamshire County Council,1111/1001,Surplus or Deficit from Trading Undertak,TRADING,Transport Related,CCA,03/06/2014,03-10226,808,A & V Squires Plant Co,,,,,,,,,,,
Nottinghamshire County Council,1111/1001,Surplus or Deficit from Trading Undertak,TRADING,Transport Related,CCA,03/06/2014,03-10227,800,A & V Squires Plant Co,,,,,,,,,,,
Nottinghamshire County Council,1111/1001,Surplus or Deficit from Trading Undertak,TRADING,Transport Related,CCA,03/06/2014,03-10228,808,A & V Squires Plant Co,,,,,,,,,,,
Nottinghamshire County Council,1111/1001,Surplus or Deficit from Trading Undertak,TRADING,Transport Related,CCA,03/06/2014,03-10230,1263,A & V Squires Plant Co,,,,,,,,,,,
Nottinghamshire County Council,1111/1001,Surplus or Deficit from Trading Undertak,TRADING,Transport Related,CCA,03/06/2014,03-10231,1008,A & V Squires Plant Co,,,,,,,,,,,
Nottinghamshire County Council,1111/1001,Surplus or Deficit from Trading Undertak,TRADING,Transport Related,CCA,03/06/2014,03-10234,940,Adam Fox,,,,,,,,,,,
Nottinghamshire County Council,1111/1001,Surplus or Deficit from Trading Undertak,TRADING,Transport Related,CCA,03/06/2014,03-10235,956.75,Adam Fox,,,,,,,,,,,
Nottinghamshire County Council,1111/1001,Surplus or Deficit from Trading Undertak,TRADING,Transport Related,CCA,03/06/2014,03-10236,940,Adam Fox,,,,,,,,,,,
Nottinghamshire County Council,1111/1001,Surplus or Deficit from Trading Undertak,TRADING,Supplies & Services,DAA,03/06/2014,03-10001,504.78,Bic U.K. Ltd,,,,,,,,,,,
Nottinghamshire County Council,1111/1001,Surplus or Deficit from Trading Undertak,TRADING,Supplies & Services,DAA,03/06/2014,03-10001,1891.76,Bic U.K. Ltd,,,,,,,,,,,
Nottinghamshire County Council,1111/1001,Surplus or Deficit from Trading Undertak,TRADING,Supplies & Services,DAA,03/06/2014,03-10001,576.03,Brian Clegg (Educational Products) Ltd,,,,,,,,,,,
Nottinghamshire County Council,1111/1001,Surplus or Deficit from Trading Undertak,TRADING,Premises Related,BJA,03/06/2014,03-10001,784,Candor Services,,,,,,,,,,,
Nottinghamshire County Council,1111/1001,Children and Young People,CYP,Supplies & Services,DFA,03/06/2014,03-15893,5211.76,Capita Childrens Services SIMS/ONE,,,,,,,,,,,
Nottinghamshire County Council,1111/1001,Surplus or Deficit from Trading Undertak,TRADING,Supplies & Services,DAA,03/06/2014,03-10001,519.5,Commotion Technology Supplies,,,,,,,,,,,
Nottinghamshire County Council,1111/1001,Surplus or Deficit from Trading Undertak,TRADING,Supplies & Services,DAA,03/06/2014,03-10001,506.6,Commotion Technology Supplies,,,,,,,,,,,
Nottinghamshire County Council,1111/1001,Surplus or Deficit from Trading Undertak,TRADING,Supplies & Services,DEA,03/06/2014,03-10206,1900,E M D D Limited,,,,,,,,,,,
Nottinghamshire County Council,1111/1001,Surplus or Deficit from Trading Undertak,TRADING,Supplies & Services,DAA,03/06/2014,03-10001,3958,Eastpoint,,,,,,,,,,,
Nottinghamshire County Council,1111/1001,Adult Social Care and Health,ASCH,Third Party Payments,EGA,03/06/2014,03-15915,15198.44,Eden Supported Living Ltd,,,,,,,,,,,
Nottinghamshire County Council,1111/1001,Surplus or Deficit from Trading Undertak,TRADING,Supplies & Services,DAA,03/06/2014,03-15900,1097.6,Elliott Group Limited (HO),,,,,,,,,,,
Nottinghamshire County Council,1111/1001,Surplus or Deficit from Trading Undertak,TRADING,Supplies & Services,DAA,03/06/2014,03-15908,1526.09,Erf Electrical Wholesalers Ltd,,,,,,,,,,,
Nottinghamshire County Council,1111/1001,Surplus or Deficit from Trading Undertak,TRADING,Supplies & Services,DEA,03/06/2014,03-15899,999,Fire Safety Services Uk Ltd,,,,,,,,,,,
Nottinghamshire County Council,1111/1001,Children and Young People,CYP,Supplies & Services,DBA,03/06/2014,03-10232,265.14,Hallam Country Fresh Foods Ltd,,,,,,,,,,,
Nottinghamshire County Council,1111/1001,Adult Social Care and Health,ASCH,Supplies & Services,DBA,03/06/2014,03-10232,1446.24,Hallam Country Fresh Foods Ltd,,,,,,,,,,,
Nottinghamshire County Council,1111/1001,Leisure Services,LEISURE,Supplies & Services,DBA,03/06/2014,03-10232,547.12,Hallam Country Fresh Foods Ltd,,,,,,,,,,,
Nottinghamshire County Council,1111/1001,Surplus or Deficit from Trading Undertak,TRADING,Supplies & Services,DBA,03/06/2014,03-10232,981.78,Hallam Country Fresh Foods Ltd,,,,,,,,,,,
Nottinghamshire County Council,1111/1001,Surplus or Deficit from Trading Undertak,TRADING,Supplies & Services,DDA,03/06/2014,03-10001,707.7,Hamelin Paperbrands Ltd,,,,,,,,,,,
Nottinghamshire County Council,1111/1001,Surplus or Deficit from Trading Undertak,TRADING,Supplies & Services,DDA,03/06/2014,03-10001,2792.88,Henkel Loctite Adhesives Ltd,,,,,,,,,,,
Nottinghamshire County Council,1111/1001,Surplus or Deficit from Trading Undertak,TRADING,Supplies & Services,DDA,03/06/2014,03-10001,1857.12,Henkel Loctite Adhesives Ltd,,,,,,,,,,,
Nottinghamshire County Council,1111/1001,Surplus or Deficit from Trading Undertak,TRADING,Transport Related,CCA,03/06/2014,03-10233,746.75,Hopkinson Plant Hire Ltd,,,,,,,,,,,
Nottinghamshire County Council,1111/1001,Unallocated,UNALLOC.,Supplies & Services,DDA,03/06/2014,03-10222,808.92,Johnston Publishing Ltd,,,,,,,,,,,
Nottinghamshire County Council,1111/1001,Surplus or Deficit from Trading Undertak,TRADING,Transport Related,CCA,03/06/2014,03-10237,2132.5,Jordan Road Surfacing Limited,,,,,,,,,,,
Nottinghamshire County Council,1111/1001,Insurance Revenue,INSURANCE,Supplies & Services,DEA,03/06/2014,03-10219,6370.93,Kennedys Law LLP,,,,,,,,,,,
Nottinghamshire County Council,1111/1001,Surplus or Deficit from Trading Undertak,TRADING,Supplies & Services,DAA,03/06/2014,03-10001,539.84,Kent County Supplies,,,,,,,,,,,
Nottinghamshire County Council,1111/1001,Surplus or Deficit from Trading Undertak,TRADING,Premises Related,BJA,03/06/2014,03-10001,1741.7,Kimberley Clark European Services Ltd,,,,,,,,,,,
Nottinghamshire County Council,1111/1001,Surplus or Deficit from Trading Undertak,TRADING,Supplies & Services,DEA,03/06/2014,03-15901,1653,Lees Plumbing & Heating Ltd,,,,,,,,,,,
Nottinghamshire County Council,1111/1001,Insurance Revenue,INSURANCE,Supplies & Services,DKA,03/06/2014,03-10218,1779.79,Legal & General,,,,,,,,,,,
Nottinghamshire County Council,1111/1001,Highways,HIGHWAYS,Support Services,HAA,03/06/2014,03-10223,71595.58,Lincolnshire County Council,,,,,,,,,,,
Nottinghamshire County Council,1111/1001,Unallocated,UNALLOC.,Supplies & Services,DDA,03/06/2014,03-10208,591.3,Local World Ltd,,,,,,,,,,,
Nottinghamshire County Council,1111/1001,Unallocated,UNALLOC.,Supplies & Services,DDA,03/06/2014,03-10209,561.6,Local World Ltd,,,,,,,,,,,
Nottinghamshire County Council,1111/1001,Unallocated,UNALLOC.,Supplies & Services,DDA,03/06/2014,03-10210,884.52,Local World Ltd,,,,,,,,,,,
Nottinghamshire County Council,1111/1001,Unallocated,UNALLOC.,Supplies & Services,DDA,03/06/2014,03-10211,631.8,Local World Ltd,,,,,,,,,,,
Nottinghamshire County Council,1111/1001,Unallocated,UNALLOC.,Supplies & Services,DDA,03/06/2014,03-10217,660.05,Local World Ltd,,,,,,,,,,,
Nottinghamshire County Council,1111/1001,Surplus or Deficit from Trading Undertak,TRADING,Supplies & Services,DEA,03/06/2014,03-15902,758.72,Lukes & Godwin Ltd,,,,,,,,,,,
Nottinghamshire County Council,1111/1001,Surplus or Deficit from Trading Undertak,TRADING,Supplies & Services,DAA,03/06/2014,03-10001,976.56,Monarch Computer Furniture,,,,,,,,,,,
Nottinghamshire County Council,1111/1001,Surplus or Deficit from Trading Undertak,TRADING,Supplies & Services,DEA,03/06/2014,03-15904,976,Murphy Pipelines Ltd,,,,,,,,,,,
Nottinghamshire County Council,1111/1001,Continuing Education,CONT_EDUC,Third Party Payments,EHA,03/06/2014,03-10214,2005.75,Personal Learning Consultancy,,,,,,,,,,,
Nottinghamshire County Council,1111/1001,Children and Young People,CYP,Third Party Payments,EAA,03/06/2014,03-15896,2025,Redacted,,,,,,,,,,,
Nottinghamshire County Council,1111/1001,Children and Young People,CYP,Third Party Payments,EAA,03/06/2014,03-15905,2025,Redacted,,,,,,,,,,,
Nottinghamshire County Council,1111/1001,Children and Young People,CYP,Third Party Payments,EAA,03/06/2014,03-15906,2025,Redacted,,,,,,,,,,,
Nottinghamshire County Council,1111/1001,Surplus or Deficit from Trading Undertak,TRADING,Supplies & Services,DEA,03/06/2014,03-15894,1252.37,Redacted,,,,,,,,,,,
Nottinghamshire County Council,1111/1001,Surplus or Deficit from Trading Undertak,TRADING,Supplies & Services,DAA,03/06/2014,03-10001,3542.09,Sca Hygiene,,,,,,,,,,,
Nottinghamshire County Council,1111/1001,Surplus or Deficit from Trading Undertak,TRADING,Supplies & Services,DAA,03/06/2014,03-10001,2537.57,Slater Harrison & Co Ltd,,,,,,,,,,,
Nottinghamshire County Council,1111/1001,Surplus or Deficit from Trading Undertak,TRADING,Supplies & Services,DAA,03/06/2014,03-10001,1360.84,Slater Harrison & Co Ltd,,,,,,,,,,,
Nottinghamshire County Council,1111/1001,Surplus or Deficit from Trading Undertak,TRADING,Supplies & Services,DAA,03/06/2014,03-10001,7457.18,Staedtler (Uk) Ltd,,,,,,,,,,,
Nottinghamshire County Council,1111/1001,Surplus or Deficit from Trading Undertak,TRADING,Supplies & Services,DAA,03/06/2014,03-10001,523.05,Synergy Health (Uk) Ltd,,,,,,,,,,,
Nottinghamshire County Council,1111/1001,Surplus or Deficit from Trading Undertak,TRADING,Supplies & Services,DAA,03/06/2014,03-10001,1691.9,Talk Paper,,,,,,,,,,,
Nottinghamshire County Council,1111/1001,Surplus or Deficit from Trading Undertak,TRADING,Supplies & Services,DEA,03/06/2014,03-15903,1156.9,Television Install.Serv Mansfield L,,,,,,,,,,,
Nottinghamshire County Council,1111/1001,Libraries,LIBRARIES,Supplies & Services,DAA,03/06/2014,03-10202,661.05,The Local News,,,,,,,,,,,
Nottinghamshire County Council,1111/1001,Unallocated,UNALLOC.,Supplies & Services,DDA,03/06/2014,03-10212,699.12,Tsl Education Ltd,,,,,,,,,,,
Nottinghamshire County Council,1111/1001,Adult Social Care and Health,ASCH,Third Party Payments,EGA,03/06/2014,03-10200,3697.04,West Hallam Residential Home,,,,,,,,,,,
Nottinghamshire County Council,1111/1001,Continuing Education,CONT_EDUC,Third Party Payments,EHA,03/06/2014,03-10215,14679.33,West Notts College,,,,,,,,,,,
Nottinghamshire County Council,1111/1001,Continuing Education,CONT_EDUC,Third Party Payments,EHA,03/06/2014,03-10216,6616.79,West Notts College,,,,,,,,,,,
Nottinghamshire County Council,1111/1001,Continuing Education,CONT_EDUC,Income,JDA,03/06/2014,03-10215,-1679,West Notts College,,,,,,,,,,,
Nottinghamshire County Council,1111/1001,Continuing Education,CONT_EDUC,Income,JDA,03/06/2014,03-10216,-560,West Notts College,,,,,,,,,,,
Nottinghamshire County Council,1111/1001,Libraries,LIBRARIES,Supplies & Services,DAA,03/06/2014,03-10213,1056.6,Wf Howes Ltd,,,,,,,,,,,
Nottinghamshire County Council,1111/1001,Corporate Management,CORP_MAGT,Supplies & Services,DFA,03/06/2014,03-10199,10489.24,Xma Ltd,,,,,,,,,,,
Nottinghamshire County Council,1111/1001,Children and Young People,CYP,Transport Related,CCA,04/06/2014,03-10372,871.2,123 Taxis,,,,,,,,,,,
Nottinghamshire County Council,1111/1001,Surplus or Deficit from Trading Undertak,TRADING,Transport Related,CCA,04/06/2014,03-10249,1008,A & V Squires Plant Co,,,,,,,,,,,
Nottinghamshire County Council,1111/1001,Surplus or Deficit from Trading Undertak,TRADING,Transport Related,CCA,04/06/2014,03-10250,1008,A & V Squires Plant Co,,,,,,,,,,,
Nottinghamshire County Council,1111/1001,Highways,HIGHWAYS,Transport Related,CCA,04/06/2014,03-10416,10381,A&S Coaches Ltd,,,,,,,,,,,
Nottinghamshire County Council,1111/1001,Adult Social Care and Health,ASCH,Transport Related,CCA,04/06/2014,03-10373,733.2,Abacus Cars,,,,,,,,,,,
Nottinghamshire County Council,1111/1001,Children and Young People,CYP,Transport Related,CCA,04/06/2014,03-10411,791.2,Ace Cars,,,,,,,,,,,
Nottinghamshire County Council,1111/1001,Children and Young People,CYP,Transport Related,CCA,04/06/2014,03-10412,2172.16,Ace Cars,,,,,,,,,,,
Nottinghamshire County Council,1111/1001,Children and Young People,CYP,Transport Related,CCA,04/06/2014,03-10327,2198.1,Ace Of Mansfield Ltd,,,,,,,,,,,
Nottinghamshire County Council,1111/1001,Children and Young People,CYP,Transport Related,CDA,04/06/2014,03-10326,1933,Ace Of Mansfield Ltd,,,,,,,,,,,
Nottinghamshire County Council,1111/1001,Adult Social Care and Health,ASCH,Transport Related,CCA,04/06/2014,03-10328,788.4,Ace Of Mansfield Ltd,,,,,,,,,,,
Nottinghamshire County Council,1111/1001,Children and Young People,CYP,Transport Related,CCA,04/06/2014,03-10331,775,Acorn Contracts,,,,,,,,,,,
Nottinghamshire County Council,1111/1001,Adult Social Care and Health,ASCH,Transport Related,CCA,04/06/2014,03-10330,1242,Acorn Contracts,,,,,,,,,,,
Nottinghamshire County Council,1111/1001,Insurance Revenue,INSURANCE,Supplies & Services,DKA,04/06/2014,03-10292,2080,Admiral UK Insurance,,,,,,,,,,,
Nottinghamshire County Council,1111/1001,Adult Social Care and Health,ASCH,Transport Related,CBA,04/06/2014,03-10402,1736.31,Aj Travel,,,,,,,,,,,
Nottinghamshire County Council,1111/1001,Adult Social Care and Health,ASCH,Transport Related,CDA,04/06/2014,03-10402,262.89,Aj Travel,,,,,,,,,,,
Nottinghamshire County Council,1111/1001,Adult Social Care and Health,ASCH,Third Party Payments,EGA,04/06/2014,03-10437,7696,Alfred Minto House Residential Home,,,,,,,,,,,
Nottinghamshire County Council,1111/1001,Adult Social Care and Health,ASCH,Third Party Payments,EGA,04/06/2014,03-10438,6596.57,Alfred Minto House Residential Home,,,,,,,,,,,
Nottinghamshire County Council,1111/1001,Adult Social Care and Health,ASCH,Third Party Payments,EGA,04/06/2014,03-10439,7696,Alfred Minto House Residential Home,,,,,,,,,,,
Nottinghamshire County Council,1111/1001,Adult Social Care and Health,ASCH,Third Party Payments,EGA,04/06/2014,03-10440,7696,Alfred Minto House Residential Home,,,,,,,,,,,
Nottinghamshire County Council,1111/1001,Children and Young People,CYP,Transport Related,CCA,04/06/2014,03-10333,532.48,Alpha Cars,,,,,,,,,,,
Nottinghamshire County Council,1111/1001,Adult Social Care and Health,ASCH,Transport Related,CCA,04/06/2014,03-10332,729,Alpha Cars,,,,,,,,,,,
Nottinghamshire County Council,1111/1001,Adult Social Care and Health,ASCH,Third Party Payments,EGA,04/06/2014,03-10252,3708.72,Amg Nursing & Care Services Ltd,,,,,,,,,,,
Nottinghamshire County Council,1111/1001,Adult Social Care and Health,ASCH,Third Party Payments,EGA,04/06/2014,03-10254,618.18,Amg Nursing & Care Services Ltd,,,,,,,,,,,
Nottinghamshire County Council,1111/1001,Adult Social Care and Health,ASCH,Third Party Payments,EGA,04/06/2014,03-10255,2077.57,Amg Nursing & Care Services Ltd,,,,,,,,,,,
Nottinghamshire County Council,1111/1001,Adult Social Care and Health,ASCH,Third Party Payments,EGA,04/06/2014,03-10257,3846.08,Amg Nursing & Care Services Ltd,,,,,,,,,,,
Nottinghamshire County Council,1111/1001,Adult Social Care and Health,ASCH,Third Party Payments,EGA,04/06/2014,03-10258,1150.97,Amg Nursing & Care Services Ltd,,,,,,,,,,,
Nottinghamshire County Council,1111/1001,Adult Social Care and Health,ASCH,Third Party Payments,EGA,04/06/2014,03-10259,2266.44,Amg Nursing & Care Services Ltd,,,,,,,,,,,
Nottinghamshire County Council,1111/1001,Adult Social Care and Health,ASCH,Third Party Payments,EGA,04/06/2014,03-10260,927.18,Amg Nursing & Care Services Ltd,,,,,,,,,,,
Nottinghamshire County Council,1111/1001,Adult Social Care and Health,ASCH,Third Party Payments,EGA,04/06/2014,03-10261,3777.4,Amg Nursing & Care Services Ltd,,,,,,,,,,,
Nottinghamshire County Council,1111/1001,Children and Young People,CYP,Support Services,HAA,04/06/2014,03-10374,3530.35,AOT Coaches,,,,,,,,,,,
Nottinghamshire County Council,1111/1001,Highways,HIGHWAYS,Transport Related,CCA,04/06/2014,03-10374,14121.4,AOT Coaches,,,,,,,,,,,
Nottinghamshire County Council,1111/1001,Children and Young People,CYP,Support Services,HAA,04/06/2014,03-10329,1837.44,Arnold Acorn Travel,,,,,,,,,,,
Nottinghamshire County Council,1111/1001,Children and Young People,CYP,Supplies & Services,DBA,04/06/2014,03-10275,139.83,Arnold Dairies Ltd,,,,,,,,,,,
Nottinghamshire County Council,1111/1001,Adult Social Care and Health,ASCH,Supplies & Services,DBA,04/06/2014,03-10275,1055.37,Arnold Dairies Ltd,,,,,,,,,,,
Nottinghamshire County Council,1111/1001,Surplus or Deficit from Trading Undertak,TRADING,Supplies & Services,DBA,04/06/2014,03-10275,111.43,Arnold Dairies Ltd,,,,,,,,,,,
Nottinghamshire County Council,1111/1001,Surplus or Deficit from Trading Undertak,TRADING,Supplies & Services,DEA,04/06/2014,03-15928,1790,Arnold Electrical,,,,,,,,,,,
Nottinghamshire County Council,1111/1001,Children and Young People,CYP,Support Services,HAA,04/06/2014,03-10399,1539.2,Ashfield Travel,,,,,,,,,,,
Nottinghamshire County Council,1111/1001,Adult Social Care and Health,ASCH,Third Party Payments,EGA,04/06/2014,03-10441,1473.86,Ashley House Nursing Home,,,,,,,,,,,
Nottinghamshire County Council,1111/1001,Adult Social Care and Health,ASCH,Third Party Payments,EGA,04/06/2014,03-10436,1203,Avondale Residential Care Home,,,,,,,,,,,
Nottinghamshire County Council,1111/1001,Adult Social Care and Health,ASCH,Transport Related,CCA,04/06/2014,03-10375,928.2,Beechwood Taxis,,,,,,,,,,,
Nottinghamshire County Council,1111/1001,Children and Young People,CYP,Supplies & Services,DBA,04/06/2014,03-10276,456.68,Brake Bros Ltd,,,,,,,,,,,
Nottinghamshire County Council,1111/1001,Children and Young People,CYP,Supplies & Services,DBA,04/06/2014,03-10277,223.43,Brake Bros Ltd,,,,,,,,,,,
Nottinghamshire County Council,1111/1001,Children and Young People,CYP,Supplies & Services,DBA,04/06/2014,03-10280,920.33,Brake Bros Ltd,,,,,,,,,,,
Nottinghamshire County Council,1111/1001,Adult Social Care and Health,ASCH,Supplies & Services,DBA,04/06/2014,03-10276,236.66,Brake Bros Ltd,,,,,,,,,,,
Nottinghamshire County Council,1111/1001,Adult Social Care and Health,ASCH,Supplies & Services,DBA,04/06/2014,03-10277,962.02,Brake Bros Ltd,,,,,,,,,,,
Nottinghamshire County Council,1111/1001,Adult Social Care and Health,ASCH,Supplies & Services,DBA,04/06/2014,03-10278,823.49,Brake Bros Ltd,,,,,,,,,,,
Nottinghamshire County Council,1111/1001,Adult Social Care and Health,ASCH,Supplies & Services,DBA,04/06/2014,03-10279,816.63,Brake Bros Ltd,,,,,,,,,,,
Nottinghamshire County Council,1111/1001,Adult Social Care and Health,ASCH,Supplies & Services,DBA,04/06/2014,03-10280,2525.9,Brake Bros Ltd,,,,,,,,,,,
Nottinghamshire County Council,1111/1001,Leisure Services,LEISURE,Supplies & Services,DBA,04/06/2014,03-10276,3171.41,Brake Bros Ltd,,,,,,,,,,,
Nottinghamshire County Council,1111/1001,Surplus or Deficit from Trading Undertak,TRADING,Supplies & Services,DBA,04/06/2014,03-10276,1471.93,Brake Bros Ltd,,,,,,,,,,,
Nottinghamshire County Council,1111/1001,Surplus or Deficit from Trading Undertak,TRADING,Supplies & Services,DBA,04/06/2014,03-10277,275.94,Brake Bros Ltd,,,,,,,,,,,
Nottinghamshire County Council,1111/1001,Surplus or Deficit from Trading Undertak,TRADING,Supplies & Services,DBA,04/06/2014,03-10280,289.1,Brake Bros Ltd,,,,,,,,,,,
Nottinghamshire County Council,1111/1001,Adult Social Care and Health,ASCH,Transport Related,CCA,04/06/2014,03-10334,1120,Bridges Transport Services,,,,,,,,,,,
Nottinghamshire County Council,1111/1001,Adult Social Care and Health,ASCH,Transport Related,CCA,04/06/2014,03-10335,540,Bridges Transport Services,,,,,,,,,,,
Nottinghamshire County Council,1111/1001,Adult Social Care and Health,ASCH,Transport Related,CCA,04/06/2014,03-10336,3155.8,Bridges Transport Services,,,,,,,,,,,
Nottinghamshire County Council,1111/1001,Adult Social Care and Health,ASCH,Transport Related,CCA,04/06/2014,03-10337,1949.8,Bridges Transport Services,,,,,,,,,,,
Nottinghamshire County Council,1111/1001,Adult Social Care and Health,ASCH,Transport Related,CCA,04/06/2014,03-10338,900,Bridges Transport Services,,,,,,,,,,,
Nottinghamshire County Council,1111/1001,Adult Social Care and Health,ASCH,Transport Related,CCA,04/06/2014,03-10339,1095,Bridges Transport Services,,,,,,,,,,,
Nottinghamshire County Council,1111/1001,Adult Social Care and Health,ASCH,Transport Related,CCA,04/06/2014,03-10340,630,Bridges Transport Services,,,,,,,,,,,
Nottinghamshire County Council,1111/1001,Adult Social Care and Health,ASCH,Transport Related,CCA,04/06/2014,03-10341,960,Bridges Transport Services,,,,,,,,,,,
Nottinghamshire County Council,1111/1001,Adult Social Care and Health,ASCH,Transport Related,CCA,04/06/2014,03-10342,800,Bridges Transport Services,,,,,,,,,,,
Nottinghamshire County Council,1111/1001,Surplus or Deficit from Trading Undertak,TRADING,Supplies & Services,DKA,04/06/2014,03-10001,1634.3,Bunzl Cleaning & Hygiene Supplies,,,,,,,,,,,
Nottinghamshire County Council,1111/1001,Children and Young People,CYP,Third Party Payments,EGA,04/06/2014,03-15919,1550,Carefirst Services,,,,,,,,,,,
Nottinghamshire County Council,1111/1001,Children and Young People,CYP,Third Party Payments,EGA,04/06/2014,03-15921,1550,Carefirst Services,,,,,,,,,,,
Nottinghamshire County Council,1111/1001,Children and Young People,CYP,Transport Related,CCA,04/06/2014,03-10315,964.32,CBC Taxis Ltd,,,,,,,,,,,
Nottinghamshire County Council,1111/1001,Children and Young People,CYP,Transport Related,CCA,04/06/2014,03-10316,525.28,CBC Taxis Ltd,,,,,,,,,,,
Nottinghamshire County Council,1111/1001,Children and Young People,CYP,Transport Related,CCA,04/06/2014,03-10317,2467.66,CBC Taxis Ltd,,,,,,,,,,,
Nottinghamshire County Council,1111/1001,Children and Young People,CYP,Transport Related,CCA,04/06/2014,03-10318,975.38,CBC Taxis Ltd,,,,,,,,,,,
Nottinghamshire County Council,1111/1001,Children and Young People,CYP,Transport Related,CCA,04/06/2014,03-10319,843.2,CBC Taxis Ltd,,,,,,,,,,,
Nottinghamshire County Council,1111/1001,Children and Young People,CYP,Transport Related,CCA,04/06/2014,03-10320,819.06,CBC Taxis Ltd,,,,,,,,,,,
Nottinghamshire County Council,1111/1001,Children and Young People,CYP,Transport Related,CCA,04/06/2014,03-10321,1083.76,CBC Taxis Ltd,,,,,,,,,,,
Nottinghamshire County Council,1111/1001,Children and Young People,CYP,Transport Related,CDA,04/06/2014,03-10323,724.66,CBC Taxis Ltd,,,,,,,,,,,
Nottinghamshire County Council,1111/1001,Children and Young People,CYP,Transport Related,CDA,04/06/2014,03-10325,587.63,CBC Taxis Ltd,,,,,,,,,,,
Nottinghamshire County Council,1111/1001,Adult Social Care and Health,ASCH,Transport Related,CCA,04/06/2014,03-10322,721.36,CBC Taxis Ltd,,,,,,,,,,,
Nottinghamshire County Council,1111/1001,Adult Social Care and Health,ASCH,Transport Related,CCA,04/06/2014,03-10324,936.64,CBC Taxis Ltd,,,,,,,,,,,
Nottinghamshire County Council,1111/1001,Insurance Revenue,INSURANCE,Supplies & Services,DKA,04/06/2014,03-10297,9885.56,Chattertons,,,,,,,,,,,
Nottinghamshire County Council,1111/1001,Adult Social Care and Health,ASCH,Third Party Payments,EGA,04/06/2014,03-10431,7648.71,Churchfield Drive Care Home,,,,,,,,,,,
Nottinghamshire County Council,1111/1001,Adult Social Care and Health,ASCH,Third Party Payments,EGA,04/06/2014,03-10458,5256.43,Churchfield Drive Care Home,,,,,,,,,,,
Nottinghamshire County Council,1111/1001,Adult Social Care and Health,ASCH,Third Party Payments,EGA,04/06/2014,03-10447,32417.86,Clipstone Hall Care Home,,,,,,,,,,,
Nottinghamshire County Council,1111/1001,Surplus or Deficit from Trading Undertak,TRADING,Supplies & Services,DAA,04/06/2014,03-10001,510.04,Creativity International Ltd,,,,,,,,,,,
Nottinghamshire County Council,1111/1001,Surplus or Deficit from Trading Undertak,TRADING,Supplies & Services,DEA,04/06/2014,03-15926,1800,DAE Mechanical Services Ltd,,,,,,,,,,,
Nottinghamshire County Council,1111/1001,Insurance Revenue,INSURANCE,Supplies & Services,DKA,04/06/2014,03-10293,650,David Hammond Chartered Surveyors,,,,,,,,,,,
Nottinghamshire County Council,1111/1001,Adult Social Care and Health,ASCH,Third Party Payments,EGA,04/06/2014,03-10433,2715,Edward House Care Home,,,,,,,,,,,
Nottinghamshire County Council,1111/1001,Children and Young People,CYP,Support Services,HAA,04/06/2014,03-10368,870.4,Elkingtons Park Garage,,,,,,,,,,,
Nottinghamshire County Council,1111/1001,Surplus or Deficit from Trading Undertak,TRADING,Supplies & Services,DAA,04/06/2014,03-15920,1097.6,Elliott Group Limited (HO),,,,,,,,,,,
Nottinghamshire County Council,1111/1001,Adult Social Care and Health,ASCH,Third Party Payments,EGA,04/06/2014,03-10430,522.24,Enable Housing Assoc Ltd,,,,,,,,,,,
Nottinghamshire County Council,1111/1001,Children and Young People,CYP,Transport Related,CCA,04/06/2014,03-10343,2501.4,Erewash Community Transport,,,,,,,,,,,
Nottinghamshire County Council,1111/1001,Children and Young People,CYP,Transport Related,CCA,04/06/2014,03-10344,683.25,Erewash Community Transport,,,,,,,,,,,
Nottinghamshire County Council,1111/1001,Children and Young People,CYP,Transport Related,CCA,04/06/2014,03-10345,1573.35,Erewash Community Transport,,,,,,,,,,,
Nottinghamshire County Council,1111/1001,Children and Young People,CYP,Transport Related,CCA,04/06/2014,03-10346,1741.2,Erewash Community Transport,,,,,,,,,,,
Nottinghamshire County Council,1111/1001,Children and Young People,CYP,Transport Related,CCA,04/06/2014,03-10347,1764.16,Erewash Community Transport,,,,,,,,,,,
Nottinghamshire County Council,1111/1001,Adult Social Care and Health,ASCH,Transport Related,CCA,04/06/2014,03-10344,683.25,Erewash Community Transport,,,,,,,,,,,
Nottinghamshire County Council,1111/1001,Surplus or Deficit from Trading Undertak,TRADING,Supplies & Services,DAA,04/06/2014,03-15923,1137.95,Erf Electrical Wholesalers Ltd,,,,,,,,,,,
Nottinghamshire County Council,1111/1001,Adult Social Care and Health,ASCH,Third Party Payments,EGA,04/06/2014,03-10448,5799.44,Fairway View Care Home,,,,,,,,,,,
Nottinghamshire County Council,1111/1001,Corporate Management,CORP_MAGT,Supplies & Services,DEA,04/06/2014,03-15918,2700,Faithful & Gould,,,,,,,,,,,
Nottinghamshire County Council,1111/1001,Corporate Management,CORP_MAGT,Supplies & Services,DEA,04/06/2014,03-15929,920.44,Faithful & Gould,,,,,,,,,,,
Nottinghamshire County Council,1111/1001,Corporate Management,CORP_MAGT,Supplies & Services,DEA,04/06/2014,03-15931,920.44,Faithful & Gould,,,,,,,,,,,
Nottinghamshire County Council,1111/1001,Corporate Management,CORP_MAGT,Supplies & Services,DEA,04/06/2014,03-15954,4777.3,Faithful & Gould,,,,,,,,,,,
Nottinghamshire County Council,1111/1001,Adult Social Care and Health,ASCH,Third Party Payments,ECA,04/06/2014,03-10446,474.14,Field House Nursing Home,,,,,,,,,,,
Nottinghamshire County Council,1111/1001,Adult Social Care and Health,ASCH,Third Party Payments,EGA,04/06/2014,03-10446,2546,Field House Nursing Home,,,,,,,,,,,
Nottinghamshire County Council,1111/1001,Adult Social Care and Health,ASCH,Third Party Payments,EGA,04/06/2014,03-10453,11008,Foxton Grange,,,,,,,,,,,
Nottinghamshire County Council,1111/1001,Children and Young People,CYP,Transport Related,CCA,04/06/2014,03-10351,370.86,Fozcabs Newark Taxis,,,,,,,,,,,
Nottinghamshire County Council,1111/1001,Children and Young People,CYP,Transport Related,CCA,04/06/2014,03-10352,1006.72,Fozcabs Newark Taxis,,,,,,,,,,,
Nottinghamshire County Council,1111/1001,Children and Young People,CYP,Transport Related,CCA,04/06/2014,03-10353,1219.68,Fozcabs Newark Taxis,,,,,,,,,,,
Nottinghamshire County Council,1111/1001,Children and Young People,CYP,Transport Related,CCA,04/06/2014,03-10354,1305.6,Fozcabs Newark Taxis,,,,,,,,,,,
Nottinghamshire County Council,1111/1001,Children and Young People,CYP,Transport Related,CCA,04/06/2014,03-10355,1450,Fozcabs Newark Taxis,,,,,,,,,,,
Nottinghamshire County Council,1111/1001,Children and Young People,CYP,Transport Related,CCA,04/06/2014,03-10356,1070.55,Fozcabs Newark Taxis,,,,,,,,,,,
Nottinghamshire County Council,1111/1001,Children and Young People,CYP,Transport Related,CCA,04/06/2014,03-10357,1315.2,Fozcabs Newark Taxis,,,,,,,,,,,
Nottinghamshire County Council,1111/1001,Children and Young People,CYP,Transport Related,CCA,04/06/2014,03-10358,1120,Fozcabs Newark Taxis,,,,,,,,,,,
Nottinghamshire County Council,1111/1001,Children and Young People,CYP,Transport Related,CCA,04/06/2014,03-10359,463.58,Fozcabs Newark Taxis,,,,,,,,,,,
Nottinghamshire County Council,1111/1001,Children and Young People,CYP,Transport Related,CDA,04/06/2014,03-10351,185.43,Fozcabs Newark Taxis,,,,,,,,,,,
Nottinghamshire County Council,1111/1001,Children and Young People,CYP,Transport Related,CDA,04/06/2014,03-10359,463.57,Fozcabs Newark Taxis,,,,,,,,,,,
Nottinghamshire County Council,1111/1001,Children and Young People,CYP,Third Party Payments,EGA,04/06/2014,03-10351,185.43,Fozcabs Newark Taxis,,,,,,,,,,,
Nottinghamshire County Council,1111/1001,Children and Young People,CYP,Support Services,HAA,04/06/2014,03-10348,718.08,Fozcabs Newark Taxis,,,,,,,,,,,
Nottinghamshire County Council,1111/1001,Children and Young People,CYP,Support Services,HAA,04/06/2014,03-10349,1120,Fozcabs Newark Taxis,,,,,,,,,,,
Nottinghamshire County Council,1111/1001,Children and Young People,CYP,Support Services,HAA,04/06/2014,03-10350,600,Fozcabs Newark Taxis,,,,,,,,,,,
Nottinghamshire County Council,1111/1001,Corporate Management,CORP_MAGT,Supplies & Services,DEA,04/06/2014,03-15933,775.5,Freeth Cartwright Llp,,,,,,,,,,,
Nottinghamshire County Council,1111/1001,Surplus or Deficit from Trading Undertak,TRADING,Supplies & Services,DEA,04/06/2014,03-15941,1048.96,"Futures Advice, Skills & Employment",,,,,,,,,,,
Nottinghamshire County Council,1111/1001,Adult Social Care and Health,ASCH,Third Party Payments,EGA,04/06/2014,03-10442,802,Gables Nursing Home,,,,,,,,,,,
Nottinghamshire County Council,1111/1001,Children and Young People,CYP,Transport Related,CCA,04/06/2014,03-10360,931.2,Galaxy Cabs,,,,,,,,,,,
Nottinghamshire County Council,1111/1001,Children and Young People,CYP,Transport Related,CDA,04/06/2014,03-10360,931.2,Galaxy Cabs,,,,,,,,,,,
Nottinghamshire County Council,1111/1001,Adult Social Care and Health,ASCH,Third Party Payments,EGA,04/06/2014,03-10452,1437.14,Gedling Village Care Home,,,,,,,,,,,
Nottinghamshire County Council,1111/1001,Children and Young People,CYP,Support Services,HAA,04/06/2014,03-10376,1603.7,Gem Mini Travel Ltd,,,,,,,,,,,
Nottinghamshire County Council,1111/1001,Children and Young People,CYP,Support Services,HAA,04/06/2014,03-10377,1980.2,Gem Mini Travel Ltd,,,,,,,,,,,
Nottinghamshire County Council,1111/1001,Children and Young People,CYP,Support Services,HAA,04/06/2014,03-10378,2449.6,Gem Mini Travel Ltd,,,,,,,,,,,
Nottinghamshire County Council,1111/1001,Highways,HIGHWAYS,Transport Related,CCA,04/06/2014,03-10377,495.05,Gem Mini Travel Ltd,,,,,,,,,,,
Nottinghamshire County Council,1111/1001,Surplus or Deficit from Trading Undertak,TRADING,Supplies & Services,DEA,04/06/2014,03-15924,597.38,Geo Hanson & Sons (Hucknall) Limite,,,,,,,,,,,
Nottinghamshire County Council,1111/1001,Surplus or Deficit from Trading Undertak,TRADING,Supplies & Services,DAA,04/06/2014,03-10302,696.99,Gk Group Mansfield,,,,,,,,,,,
Nottinghamshire County Council,1111/1001,Surplus or Deficit from Trading Undertak,TRADING,Supplies & Services,DAA,04/06/2014,03-10304,1339.26,Gk Group Mansfield,,,,,,,,,,,
Nottinghamshire County Council,1111/1001,Surplus or Deficit from Trading Undertak,TRADING,Supplies & Services,DAA,04/06/2014,03-10305,501.6,Gk Group Mansfield,,,,,,,,,,,
Nottinghamshire County Council,1111/1001,Children and Young People,CYP,Transport Related,CCA,04/06/2014,03-10369,2452,Goldstar Travel Nottm Ltd,,,,,,,,,,,
Nottinghamshire County Council,1111/1001,Children and Young People,CYP,Transport Related,CCA,04/06/2014,03-10370,1836,Goldstar Travel Nottm Ltd,,,,,,,,,,,
Nottinghamshire County Council,1111/1001,Children and Young People,CYP,Transport Related,CCA,04/06/2014,03-10371,1153.76,Goldstar Travel Nottm Ltd,,,,,,,,,,,
Nottinghamshire County Council,1111/1001,Surplus or Deficit from Trading Undertak,TRADING,Supplies & Services,DAA,04/06/2014,03-10001,638.4,Heritage Envelopes Ltd,,,,,,,,,,,
Nottinghamshire County Council,1111/1001,Surplus or Deficit from Trading Undertak,TRADING,Transport Related,CCA,04/06/2014,03-10251,1136.5,Hopkinson Plant Hire Ltd,,,,,,,,,,,
Nottinghamshire County Council,1111/1001,Surplus or Deficit from Trading Undertak,TRADING,Transport Related,CCA,04/06/2014,03-10256,1041.25,Hopkinson Plant Hire Ltd,,,,,,,,,,,
Nottinghamshire County Council,1111/1001,Children and Young People,CYP,Transport Related,CCA,04/06/2014,03-10361,1195.68,Horizon Travel,,,,,,,,,,,
Nottinghamshire County Council,1111/1001,Children and Young People,CYP,Transport Related,CCA,04/06/2014,03-10362,2415.36,Horizon Travel,,,,,,,,,,,
Nottinghamshire County Council,1111/1001,Children and Young People,CYP,Transport Related,CCA,04/06/2014,03-10414,520.2,In Taxis,,,,,,,,,,,
Nottinghamshire County Council,1111/1001,Adult Social Care and Health,ASCH,Transport Related,CCA,04/06/2014,03-10413,1521.49,In Taxis,,,,,,,,,,,
Nottinghamshire County Council,1111/1001,Adult Social Care and Health,ASCH,Transport Related,CBA,04/06/2014,03-10363,2236.2,Ja Travel Ltd,,,,,,,,,,,
Nottinghamshire County Council,1111/1001,Children and Young People,CYP,Transport Related,CCA,04/06/2014,03-10382,2365,Jb Tours Watnall Ltd,,,,,,,,,,,
Nottinghamshire County Council,1111/1001,Children and Young People,CYP,Transport Related,CCA,04/06/2014,03-10383,1430,Jb Tours Watnall Ltd,,,,,,,,,,,
Nottinghamshire County Council,1111/1001,Children and Young People,CYP,Transport Related,CCA,04/06/2014,03-10384,1180,Jb Tours Watnall Ltd,,,,,,,,,,,
Nottinghamshire County Council,1111/1001,Children and Young People,CYP,Transport Related,CCA,04/06/2014,03-10385,1892,Jb Tours Watnall Ltd,,,,,,,,,,,
Nottinghamshire County Council,1111/1001,Children and Young People,CYP,Support Services,HAA,04/06/2014,03-10379,1889.62,Jb Tours Watnall Ltd,,,,,,,,,,,
Nottinghamshire County Council,1111/1001,Children and Young People,CYP,Support Services,HAA,04/06/2014,03-10380,1909.32,Jb Tours Watnall Ltd,,,,,,,,,,,
Nottinghamshire County Council,1111/1001,Children and Young People,CYP,Support Services,HAA,04/06/2014,03-10381,2202.6,Jb Tours Watnall Ltd,,,,,,,,,,,
Nottinghamshire County Council,1111/1001,Children and Young People,CYP,Support Services,HAA,04/06/2014,03-10400,2201.8,Jc Coaches,,,,,,,,,,,
Nottinghamshire County Council,1111/1001,Children and Young People,CYP,Support Services,HAA,04/06/2014,03-10401,1553.28,Jc Coaches,,,,,,,,,,,
Nottinghamshire County Council,1111/1001,Highways,HIGHWAYS,Transport Related,CCA,04/06/2014,03-10401,388.32,Jc Coaches,,,,,,,,,,,
Nottinghamshire County Council,1111/1001,Surplus or Deficit from Trading Undertak,TRADING,Premises Related,BJA,04/06/2014,03-10001,18999.3,Johnson Diversey,,,,,,,,,,,
Nottinghamshire County Council,1111/1001,Unallocated,UNALLOC.,Supplies & Services,DDA,04/06/2014,03-10274,963.6,Johnston Publishing Ltd,,,,,,,,,,,
Nottinghamshire County Council,1111/1001,Adult Social Care and Health,ASCH,Third Party Payments,EGA,04/06/2014,03-10449,923,Jubilee Court,,,,,,,,,,,
Nottinghamshire County Council,1111/1001,Surplus or Deficit from Trading Undertak,TRADING,Transport Related,CCA,04/06/2014,03-10246,987,Laffran Plant Hire,,,,,,,,,,,
Nottinghamshire County Council,1111/1001,Surplus or Deficit from Trading Undertak,TRADING,Transport Related,CCA,04/06/2014,03-10247,846,Laffran Plant Hire,,,,,,,,,,,
Nottinghamshire County Council,1111/1001,Surplus or Deficit from Trading Undertak,TRADING,Transport Related,CCA,04/06/2014,03-10248,1962.5,Laffran Plant Hire,,,,,,,,,,,
Nottinghamshire County Council,1111/1001,Surplus or Deficit from Trading Undertak,TRADING,Transport Related,CCA,04/06/2014,03-10253,1057.5,Laffran Plant Hire,,,,,,,,,,,
Nottinghamshire County Council,1111/1001,Adult Social Care and Health,ASCH,Third Party Payments,EGA,04/06/2014,03-10426,918,Landmarks Ltd,,,,,,,,,,,
Nottinghamshire County Council,1111/1001,Adult Social Care and Health,ASCH,Third Party Payments,EGA,04/06/2014,03-10427,550.8,Landmarks Ltd,,,,,,,,,,,
Nottinghamshire County Council,1111/1001,Adult Social Care and Health,ASCH,Third Party Payments,EGA,04/06/2014,03-10428,918,Landmarks Ltd,,,,,,,,,,,
Nottinghamshire County Council,1111/1001,Adult Social Care and Health,ASCH,Third Party Payments,EGA,04/06/2014,03-10429,550.8,Landmarks Ltd,,,,,,,,,,,
Nottinghamshire County Council,1111/1001,Public Health,HEALTH,Supplies & Services,DEA,04/06/2014,03-10455,36466.75,Larwood & Village Surgeries,,,,,,,,,,,
Nottinghamshire County Council,1111/1001,Public Health,HEALTH,Supplies & Services,DEA,04/06/2014,03-10456,24818.25,Larwood & Village Surgeries,,,,,,,,,,,
Nottinghamshire County Council,1111/1001,Public Health,HEALTH,Supplies & Services,DEA,04/06/2014,03-10457,11448.75,Larwood & Village Surgeries,,,,,,,,,,,
Nottinghamshire County Council,1111/1001,Corporate Management,CORP_MAGT,Supplies & Services,DEA,04/06/2014,03-10285,4760,Limetree Offset Ltd,,,,,,,,,,,
Nottinghamshire County Council,1111/1001,Children and Young People,CYP,Transport Related,CCA,04/06/2014,03-10306,1825.12,Mars Cars Ltd,,,,,,,,,,,
Nottinghamshire County Council,1111/1001,Children and Young People,CYP,Transport Related,CCA,04/06/2014,03-10308,2056.64,Martins Travel,,,,,,,,,,,
Nottinghamshire County Council,1111/1001,Children and Young People,CYP,Transport Related,CCA,04/06/2014,03-10309,1975.52,Martins Travel,,,,,,,,,,,
Nottinghamshire County Council,1111/1001,Adult Social Care and Health,ASCH,Third Party Payments,EGA,04/06/2014,03-10450,2769,Maun View,,,,,,,,,,,
Nottinghamshire County Council,1111/1001,Adult Social Care and Health,ASCH,Third Party Payments,EGA,04/06/2014,03-15939,14895.8,Mencap Accounts Region 2,,,,,,,,,,,
Nottinghamshire County Council,1111/1001,Adult Social Care and Health,ASCH,Transport Related,CCA,04/06/2014,03-10364,2266,Midfield Travel,,,,,,,,,,,
Nottinghamshire County Council,1111/1001,Highways,HIGHWAYS,Transport Related,CCA,04/06/2014,03-10310,8750,Midland Fleet Maintenance,,,,,,,,,,,
Nottinghamshire County Council,1111/1001,Highways,HIGHWAYS,Transport Related,CCA,04/06/2014,03-10311,8446.56,Midland Fleet Maintenance,,,,,,,,,,,
Nottinghamshire County Council,1111/1001,Surplus or Deficit from Trading Undertak,TRADING,Supplies & Services,DAA,04/06/2014,03-10001,4487.82,Newell Rubbermaid,,,,,,,,,,,
Nottinghamshire County Council,1111/1001,Surplus or Deficit from Trading Undertak,TRADING,Supplies & Services,DAA,04/06/2014,03-10001,662.85,Newell Rubbermaid,,,,,,,,,,,
Nottinghamshire County Council,1111/1001,Adult Social Care and Health,ASCH,Third Party Payments,EGA,04/06/2014,03-10417,920,Nottingham City Council,,,,,,,,,,,
Nottinghamshire County Council,1111/1001,Adult Social Care and Health,ASCH,Third Party Payments,EGA,04/06/2014,03-10418,920,Nottingham City Council,,,,,,,,,,,
Nottinghamshire County Council,1111/1001,Adult Social Care and Health,ASCH,Third Party Payments,EGA,04/06/2014,03-10419,920,Nottingham City Council,,,,,,,,,,,
Nottinghamshire County Council,1111/1001,Adult Social Care and Health,ASCH,Third Party Payments,EGA,04/06/2014,03-10420,652.8,Nottinghamshire Healthcare Nhs Trus,,,,,,,,,,,
Nottinghamshire County Council,1111/1001,Adult Social Care and Health,ASCH,Third Party Payments,EGA,04/06/2014,03-10421,581.9,Nottinghamshire Healthcare Nhs Trus,,,,,,,,,,,
Nottinghamshire County Council,1111/1001,Adult Social Care and Health,ASCH,Third Party Payments,EGA,04/06/2014,03-10422,587.52,Nottinghamshire Healthcare Nhs Trus,,,,,,,,,,,
Nottinghamshire County Council,1111/1001,Adult Social Care and Health,ASCH,Third Party Payments,EGA,04/06/2014,03-10423,587.52,Nottinghamshire Healthcare Nhs Trus,,,,,,,,,,,
Nottinghamshire County Council,1111/1001,Adult Social Care and Health,ASCH,Third Party Payments,EGA,04/06/2014,03-10424,581.9,Nottinghamshire Healthcare Nhs Trus,,,,,,,,,,,
Nottinghamshire County Council,1111/1001,Adult Social Care and Health,ASCH,Third Party Payments,EGA,04/06/2014,03-10425,587.52,Nottinghamshire Healthcare Nhs Trus,,,,,,,,,,,
Nottinghamshire County Council,1111/1001,Surplus or Deficit from Trading Undertak,TRADING,Supplies & Services,DEA,04/06/2014,03-15914,680,P & J Fencing (Pikemaster Ltd),,,,,,,,,,,
Nottinghamshire County Council,1111/1001,Surplus or Deficit from Trading Undertak,TRADING,Supplies & Services,DAA,04/06/2014,03-10303,692.8,Platts Harris Ltd,,,,,,,,,,,
Nottinghamshire County Council,1111/1001,Surplus or Deficit from Trading Undertak,TRADING,Premises Related,BJA,04/06/2014,03-10001,613.47,Polystar Plastics Ltd,,,,,,,,,,,
Nottinghamshire County Council,1111/1001,Adult Social Care and Health,ASCH,Third Party Payments,EGA,04/06/2014,03-15925,1125,Portland College,,,,,,,,,,,
Nottinghamshire County Council,1111/1001,Adult Social Care and Health,ASCH,Third Party Payments,EGA,04/06/2014,03-10454,2533.83,Portland House Nursing Home,,,,,,,,,,,
Nottinghamshire County Council,1111/1001,Surplus or Deficit from Trading Undertak,TRADING,Supplies & Services,DAA,04/06/2014,03-10001,2233,Premier Paper Group Ltd,,,,,,,,,,,
Nottinghamshire County Council,1111/1001,Surplus or Deficit from Trading Undertak,TRADING,Premises Related,BJA,04/06/2014,03-10001,586.03,Premiere Products,,,,,,,,,,,
Nottinghamshire County Council,1111/1001,Leisure Services,LEISURE,Supplies & Services,DEA,04/06/2014,03-15922,605,Qdos Creates,,,,,,,,,,,
Nottinghamshire County Council,1111/1001,Surplus or Deficit from Trading Undertak,TRADING,Supplies & Services,DAA,04/06/2014,03-10001,855.26,R Scott & Sons Ltd,,,,,,,,,,,
Nottinghamshire County Council,1111/1001,Surplus or Deficit from Trading Undertak,TRADING,Supplies & Services,DAA,04/06/2014,03-10001,828.5,Ransome Sporting Goods Group Ltd,,,,,,,,,,,
Nottinghamshire County Council,1111/1001,Surplus or Deficit from Trading Undertak,TRADING,Supplies & Services,DAA,04/06/2014,03-10001,870.38,Rapesco Office Products Plc,,,,,,,,,,,
Nottinghamshire County Council,1111/1001,Adult Social Care and Health,ASCH,Third Party Payments,ECA,04/06/2014,03-10443,205.94,Red Rose Nursing Home,,,,,,,,,,,
Nottinghamshire County Council,1111/1001,Adult Social Care and Health,ASCH,Third Party Payments,EGA,04/06/2014,03-10443,975,Red Rose Nursing Home,,,,,,,,,,,
Nottinghamshire County Council,1111/1001,Adult Social Care and Health,ASCH,Third Party Payments,EGA,04/06/2014,03-10432,1967.14,Redacted,,,,,,,,,,,
Nottinghamshire County Council,1111/1001,Adult Social Care and Health,ASCH,Transport Related,CCA,04/06/2014,03-10415,1800,Redacted,,,,,,,,,,,
Nottinghamshire County Council,1111/1001,Children and Young People,CYP,Transport Related,CCA,04/06/2014,03-10403,1405.92,Rio Cabs,,,,,,,,,,,
Nottinghamshire County Council,1111/1001,Children and Young People,CYP,Transport Related,CCA,04/06/2014,03-10404,971.52,Rio Cabs,,,,,,,,,,,
Nottinghamshire County Council,1111/1001,Children and Young People,CYP,Transport Related,CCA,04/06/2014,03-10405,648.99,Rio Cabs,,,,,,,,,,,
Nottinghamshire County Council,1111/1001,Children and Young People,CYP,Transport Related,CCA,04/06/2014,03-10407,605,Rio Cabs,,,,,,,,,,,
Nottinghamshire County Council,1111/1001,Adult Social Care and Health,ASCH,Transport Related,CCA,04/06/2014,03-10406,642.88,Rio Cabs,,,,,,,,,,,
Nottinghamshire County Council,1111/1001,Adult Social Care and Health,ASCH,Third Party Payments,EGA,04/06/2014,03-10444,1884,Rose Court Lodge Care Home,,,,,,,,,,,
Nottinghamshire County Council,1111/1001,Insurance Revenue,INSURANCE,Supplies & Services,DKA,04/06/2014,03-10265,2856.25,Sheilas Wheels,,,,,,,,,,,
Nottinghamshire County Council,1111/1001,Surplus or Deficit from Trading Undertak,TRADING,Supplies & Services,DCA,04/06/2014,03-10001,1893.57,Shermond,,,,,,,,,,,
Nottinghamshire County Council,1111/1001,Highways,HIGHWAYS,Transport Related,CCA,04/06/2014,03-10313,2455.15,SJW (Muskham) Ltd T/A Z Cars,,,,,,,,,,,
Nottinghamshire County Council,1111/1001,Highways,HIGHWAYS,Transport Related,CCA,04/06/2014,03-10314,2838.6,SJW (Muskham) Ltd T/A Z Cars,,,,,,,,,,,
Nottinghamshire County Council,1111/1001,Surplus or Deficit from Trading Undertak,TRADING,Supplies & Services,DEA,04/06/2014,03-15927,849,Slack & Co Floorcoverings,,,,,,,,,,,
Nottinghamshire County Council,1111/1001,Children and Young People,CYP,Transport Related,CCA,04/06/2014,03-10307,1545.6,Southside Cars,,,,,,,,,,,
Nottinghamshire County Council,1111/1001,Surplus or Deficit from Trading Undertak,TRADING,Supplies & Services,DEA,04/06/2014,03-15930,547.66,Sterilizing Services,,,,,,,,,,,
Nottinghamshire County Council,1111/1001,Adult Social Care and Health,ASCH,Third Party Payments,EGA,04/06/2014,03-10445,821.86,Sutton Court,,,,,,,,,,,
Nottinghamshire County Council,1111/1001,Children and Young People,CYP,Third Party Payments,EGA,04/06/2014,03-15917,16714.28,The Place Young Peoples Company Ltd,,,,,,,,,,,
Nottinghamshire County Council,1111/1001,Children and Young People,CYP,Transport Related,CCA,04/06/2014,03-10392,2420,Tiger European Uk Ltd,,,,,,,,,,,
Nottinghamshire County Council,1111/1001,Children and Young People,CYP,Support Services,HAA,04/06/2014,03-10386,1225.04,Tiger European Uk Ltd,,,,,,,,,,,
Nottinghamshire County Council,1111/1001,Children and Young People,CYP,Support Services,HAA,04/06/2014,03-10387,1407,Tiger European Uk Ltd,,,,,,,,,,,
Nottinghamshire County Council,1111/1001,Children and Young People,CYP,Support Services,HAA,04/06/2014,03-10388,3558.79,Tiger European Uk Ltd,,,,,,,,,,,
Nottinghamshire County Council,1111/1001,Children and Young People,CYP,Support Services,HAA,04/06/2014,03-10389,1815.32,Tiger European Uk Ltd,,,,,,,,,,,
Nottinghamshire County Council,1111/1001,Children and Young People,CYP,Support Services,HAA,04/06/2014,03-10390,1690.49,Tiger European Uk Ltd,,,,,,,,,,,
Nottinghamshire County Council,1111/1001,Children and Young People,CYP,Support Services,HAA,04/06/2014,03-10391,1614.8,Tiger European Uk Ltd,,,,,,,,,,,
Nottinghamshire County Council,1111/1001,Children and Young People,CYP,Support Services,HAA,04/06/2014,03-10393,1991.38,Tiger European Uk Ltd,,,,,,,,,,,
Nottinghamshire County Council,1111/1001,Children and Young People,CYP,Support Services,HAA,04/06/2014,03-10394,2166,Tiger European Uk Ltd,,,,,,,,,,,
Nottinghamshire County Council,1111/1001,Children and Young People,CYP,Support Services,HAA,04/06/2014,03-10395,4844.2,Tiger European Uk Ltd,,,,,,,,,,,
Nottinghamshire County Council,1111/1001,Children and Young People,CYP,Support Services,HAA,04/06/2014,03-10396,2485.8,Tiger European Uk Ltd,,,,,,,,,,,
Nottinghamshire County Council,1111/1001,Children and Young People,CYP,Support Services,HAA,04/06/2014,03-10397,2437.44,Tiger European Uk Ltd,,,,,,,,,,,
Nottinghamshire County Council,1111/1001,Children and Young People,CYP,Support Services,HAA,04/06/2014,03-10398,2347.7,Tiger European Uk Ltd,,,,,,,,,,,
Nottinghamshire County Council,1111/1001,Highways,HIGHWAYS,Transport Related,CCA,04/06/2014,03-10386,306.26,Tiger European Uk Ltd,,,,,,,,,,,
Nottinghamshire County Council,1111/1001,Highways,HIGHWAYS,Transport Related,CCA,04/06/2014,03-10393,497.84,Tiger European Uk Ltd,,,,,,,,,,,
Nottinghamshire County Council,1111/1001,Children and Young People,CYP,Transport Related,CCA,04/06/2014,03-10409,1186.72,Town Cars (UK) Ltd,,,,,,,,,,,
Nottinghamshire County Council,1111/1001,Adult Social Care and Health,ASCH,Transport Related,CCA,04/06/2014,03-10408,1587.1,Town Cars (UK) Ltd,,,,,,,,,,,
Nottinghamshire County Council,1111/1001,Adult Social Care and Health,ASCH,Transport Related,CCA,04/06/2014,03-10410,918,Town Cars (UK) Ltd,,,,,,,,,,,
Nottinghamshire County Council,1111/1001,Adult Social Care and Health,ASCH,Third Party Payments,EGA,04/06/2014,03-10434,2288.57,Tuxford Manor Care Home,,,,,,,,,,,
Nottinghamshire County Council,1111/1001,Adult Social Care and Health,ASCH,Third Party Payments,EGA,04/06/2014,03-10435,1335,Tuxford Manor Care Home,,,,,,,,,,,
Nottinghamshire County Council,1111/1001,Children and Young People,CYP,Support Services,HAA,04/06/2014,03-10312,1709.4,Vale Travel,,,,,,,,,,,
Nottinghamshire County Council,1111/1001,Children and Young People,CYP,Transport Related,CCA,04/06/2014,03-10366,1644.48,Vallances Coaches,,,,,,,,,,,
Nottinghamshire County Council,1111/1001,Children and Young People,CYP,Transport Related,CCA,04/06/2014,03-10367,2175.52,Vallances Coaches,,,,,,,,,,,
Nottinghamshire County Council,1111/1001,Adult Social Care and Health,ASCH,Transport Related,CBA,04/06/2014,03-10365,3290,Vallances Coaches,,,,,,,,,,,
Nottinghamshire County Council,1111/1001,Adult Social Care and Health,ASCH,Third Party Payments,EGA,04/06/2014,03-10451,1397.86,Westwood,,,,,,,,,,,
Nottinghamshire County Council,1111/1001,Surplus or Deficit from Trading Undertak,TRADING,Supplies & Services,DAA,05/06/2014,03-15986,5455,Agd Systems Ltd,,,,,,,,,,,
Nottinghamshire County Council,1111/1001,Adult Social Care and Health,ASCH,Third Party Payments,EGA,05/06/2014,03-10520,2832.7,Always There Homecare Ltd,,,,,,,,,,,
Nottinghamshire County Council,1111/1001,Adult Social Care and Health,ASCH,Third Party Payments,EGA,05/06/2014,03-10529,4821.1,Always There Homecare Ltd,,,,,,,,,,,
Nottinghamshire County Council,1111/1001,Adult Social Care and Health,ASCH,Third Party Payments,EGA,05/06/2014,03-10559,787.5,Always There Homecare Ltd,,,,,,,,,,,
Nottinghamshire County Council,1111/1001,Adult Social Care and Health,ASCH,Third Party Payments,EGA,05/06/2014,03-10538,797.01,Amg Nursing & Care Services Ltd,,,,,,,,,,,
Nottinghamshire County Council,1111/1001,Libraries,LIBRARIES,Premises Related,BJA,05/06/2014,03-15995,600,Art Cleaning Midlands Ltd,,,,,,,,,,,
Nottinghamshire County Council,1111/1001,Planning and Development,PLAN_DEV,Supplies & Services,DHA,05/06/2014,03-10464,500,Bagthorpe Athletic Football Club,,,,,,,,,,,
Nottinghamshire County Council,1111/1001,Adult Social Care and Health,ASCH,Premises Related,BAA,05/06/2014,03-10565,869,Ball & Sons Ltd,,,,,,,,,,,
Nottinghamshire County Council,1111/1001,Children and Young People,CYP,Premises Related,BDA,05/06/2014,03-10021,805,Bauland Properties Limited,,,,,,,,,,,
Nottinghamshire County Council,1111/1001,Corporate Management,CORP_MAGT,Premises Related,BDA,05/06/2014,03-10013,47931.48,Bauland Properties Limited,,,,,,,,,,,
Nottinghamshire County Council,1111/1001,Leisure Services,LEISURE,Premises Related,BDA,05/06/2014,03-10002,619,Bolsover Properties Ltd,,,,,,,,,,,
Nottinghamshire County Council,1111/1001,Adult Social Care and Health,ASCH,Third Party Payments,EGA,05/06/2014,03-10510,3985.26,Calverton Supreme Home Care Ltd,,,,,,,,,,,
Nottinghamshire County Council,1111/1001,Adult Social Care and Health,ASCH,Third Party Payments,EGA,05/06/2014,03-10508,10869.67,Care Uk Homecare Ltd,,,,,,,,,,,
Nottinghamshire County Council,1111/1001,Adult Social Care and Health,ASCH,Third Party Payments,EGA,05/06/2014,03-10551,7919.13,Care Uk Homecare Ltd,,,,,,,,,,,
Nottinghamshire County Council,1111/1001,Adult Social Care and Health,ASCH,Third Party Payments,EGA,05/06/2014,03-10552,14345.06,Care Uk Homecare Ltd,,,,,,,,,,,
Nottinghamshire County Council,1111/1001,Adult Social Care and Health,ASCH,Third Party Payments,EGA,05/06/2014,03-10563,2282.1,Care Uk Homecare Ltd,,,,,,,,,,,
Nottinghamshire County Council,1111/1001,Children and Young People,CYP,Third Party Payments,EDA,05/06/2014,03-10575,15979,Christ The King Catholic Voluntary,,,,,,,,,,,
Nottinghamshire County Council,1111/1001,Children and Young People,CYP,Third Party Payments,EDA,05/06/2014,03-10592,1248,Christ The King Catholic Voluntary,,,,,,,,,,,
Nottinghamshire County Council,1111/1001,Children and Young People,CYP,Third Party Payments,EDA,05/06/2014,03-10566,4610,Cotgrave Candleby Lane School,,,,,,,,,,,
Nottinghamshire County Council,1111/1001,Adult Social Care and Health,ASCH,Third Party Payments,EGA,05/06/2014,03-10504,6519.75,Crossroads Care East Midlands,,,,,,,,,,,
Nottinghamshire County Council,1111/1001,Adult Social Care and Health,ASCH,Third Party Payments,EGA,05/06/2014,03-10526,1614.16,Crossroads Care East Midlands,,,,,,,,,,,
Nottinghamshire County Council,1111/1001,Adult Social Care and Health,ASCH,Third Party Payments,EGA,05/06/2014,03-10555,1070.14,Crossroads Care East Midlands,,,,,,,,,,,
Nottinghamshire County Council,1111/1001,Surplus or Deficit from Trading Undertak,TRADING,Supplies & Services,DEA,05/06/2014,03-15980,4396.97,D J & M Bower (Tarmac Roadsurfacing,,,,,,,,,,,
Nottinghamshire County Council,1111/1001,Insurance Revenue,INSURANCE,Supplies & Services,DKA,05/06/2014,03-10294,600,Department For Work & Pensions,,,,,,,,,,,
Nottinghamshire County Council,1111/1001,Insurance Revenue,INSURANCE,Supplies & Services,DKA,05/06/2014,03-10295,4491,Department For Work & Pensions,,,,,,,,,,,
Nottinghamshire County Council,1111/1001,Children and Young People,CYP,Premises Related,BDA,05/06/2014,03-10022,518,Derbyshire Dales District Council,,,,,,,,,,,
Nottinghamshire County Council,1111/1001,Children and Young People,CYP,Premises Related,BDA,05/06/2014,03-10017,3000,Diocese of Hallam Trustee,,,,,,,,,,,
Nottinghamshire County Council,1111/1001,Adult Social Care and Health,ASCH,Third Party Payments,EGA,05/06/2014,03-10503,765.46,Direct Health (uk) Ltd,,,,,,,,,,,
Nottinghamshire County Council,1111/1001,Adult Social Care and Health,ASCH,Third Party Payments,EGA,05/06/2014,03-10530,3299.12,Direct Health (uk) Ltd,,,,,,,,,,,
Nottinghamshire County Council,1111/1001,Adult Social Care and Health,ASCH,Third Party Payments,EGA,05/06/2014,03-10539,2031.66,Direct Health (uk) Ltd,,,,,,,,,,,
Nottinghamshire County Council,1111/1001,Adult Social Care and Health,ASCH,Third Party Payments,EGA,05/06/2014,03-10543,7805.5,Direct Health (uk) Ltd,,,,,,,,,,,
Nottinghamshire County Council,1111/1001,Adult Social Care and Health,ASCH,Third Party Payments,EGA,05/06/2014,03-10544,17380.29,Direct Health (uk) Ltd,,,,,,,,,,,
Nottinghamshire County Council,1111/1001,Adult Social Care and Health,ASCH,Third Party Payments,EGA,05/06/2014,03-10546,9456.32,Direct Health (uk) Ltd,,,,,,,,,,,
Nottinghamshire County Council,1111/1001,Surplus or Deficit from Trading Undertak,TRADING,Supplies & Services,DEA,05/06/2014,03-15967,825,Elecserve Ltd,,,,,,,,,,,
Nottinghamshire County Council,1111/1001,Surplus or Deficit from Trading Undertak,TRADING,Supplies & Services,DEA,05/06/2014,03-15970,825,Elecserve Ltd,,,,,,,,,,,
Nottinghamshire County Council,1111/1001,Corporate Management,CORP_MAGT,Premises Related,BDA,05/06/2014,03-10004,27500,Eximax Ltd,,,,,,,,,,,
Nottinghamshire County Council,1111/1001,Corporate Management,CORP_MAGT,Supplies & Services,DEA,05/06/2014,03-15976,670,Faithful & Gould,,,,,,,,,,,
Nottinghamshire County Council,1111/1001,Corporate Management,CORP_MAGT,Supplies & Services,DEA,05/06/2014,03-15981,603,Faithful & Gould,,,,,,,,,,,
Nottinghamshire County Council,1111/1001,Corporate Management,CORP_MAGT,Supplies & Services,DEA,05/06/2014,03-15982,920.44,Faithful & Gould,,,,,,,,,,,
Nottinghamshire County Council,1111/1001,Corporate Management,CORP_MAGT,Supplies & Services,DEA,05/06/2014,03-15983,920.44,Faithful & Gould,,,,,,,,,,,
Nottinghamshire County Council,1111/1001,Libraries,LIBRARIES,Premises Related,BDA,05/06/2014,03-10014,696.25,Farnsfield Village Centre,,,,,,,,,,,
Nottinghamshire County Council,1111/1001,Leisure Services,LEISURE,Premises Related,BDA,05/06/2014,03-10019,577.43,Fisher German,,,,,,,,,,,
Nottinghamshire County Council,1111/1001,Surplus or Deficit from Trading Undertak,TRADING,Third Party Payments,EBA,05/06/2014,03-15996,1370,Footballing Chance Ltd,,,,,,,,,,,
Nottinghamshire County Council,1111/1001,Planning and Development,PLAN_DEV,Supplies & Services,DHA,05/06/2014,03-10465,500,Framework Housing Association,,,,,,,,,,,
Nottinghamshire County Council,1111/1001,Adult Social Care and Health,ASCH,Third Party Payments,EGA,05/06/2014,03-10594,631,Future Home Care Ltd,,,,,,,,,,,
Nottinghamshire County Council,1111/1001,Corporate Management,CORP_MAGT,Supplies & Services,DEA,05/06/2014,03-15994,842.12,"Futures Advice, Skills & Employment",,,,,,,,,,,
Nottinghamshire County Council,1111/1001,Surplus or Deficit from Trading Undertak,TRADING,Supplies & Services,DEA,05/06/2014,03-15962,1048.96,"Futures Advice, Skills & Employment",,,,,,,,,,,
Nottinghamshire County Council,1111/1001,Adult Social Care and Health,ASCH,Third Party Payments,EGA,05/06/2014,03-10500,2899.48,Hatzfeld Care Ltd,,,,,,,,,,,
Nottinghamshire County Council,1111/1001,Adult Social Care and Health,ASCH,Third Party Payments,EGA,05/06/2014,03-10502,767.55,Hatzfeld Care Ltd,,,,,,,,,,,
Nottinghamshire County Council,1111/1001,Adult Social Care and Health,ASCH,Third Party Payments,EGA,05/06/2014,03-10506,1615,Hatzfeld Care Ltd,,,,,,,,,,,
Nottinghamshire County Council,1111/1001,Adult Social Care and Health,ASCH,Third Party Payments,EGA,05/06/2014,03-10534,921.89,Hatzfeld Care Ltd,,,,,,,,,,,
Nottinghamshire County Council,1111/1001,Children and Young People,CYP,Third Party Payments,EGA,05/06/2014,03-15957,60000,Hesley Group Ltd,,,,,,,,,,,
Nottinghamshire County Council,1111/1001,Adult Social Care and Health,ASCH,Third Party Payments,EGA,05/06/2014,03-10516,4032.36,Home Care Solution Ltd,,,,,,,,,,,
Nottinghamshire County Council,1111/1001,Adult Social Care and Health,ASCH,Third Party Payments,EGA,05/06/2014,03-10553,1200.01,Home Care Solution Ltd,,,,,,,,,,,
Nottinghamshire County Council,1111/1001,Adult Social Care and Health,ASCH,Third Party Payments,EGA,05/06/2014,03-10527,2084.13,Housing 21,,,,,,,,,,,
Nottinghamshire County Council,1111/1001,Adult Social Care and Health,ASCH,Third Party Payments,EGA,05/06/2014,03-10533,1491.47,Housing 21,,,,,,,,,,,
Nottinghamshire County Council,1111/1001,Children and Young People,CYP,Third Party Payments,EDA,05/06/2014,03-10580,4648,Kirkby College,,,,,,,,,,,
Nottinghamshire County Council,1111/1001,Children and Young People,CYP,Premises Related,BDA,05/06/2014,03-10008,589,Lambert Smith Hampton,,,,,,,,,,,
Nottinghamshire County Council,1111/1001,Children and Young People,CYP,Supplies & Services,DFA,05/06/2014,03-10496,562.18,Lantec Services Ltd,,,,,,,,,,,
Nottinghamshire County Council,1111/1001,Adult Social Care and Health,ASCH,Third Party Payments,EGA,05/06/2014,03-10531,9107.34,Leda Homecare Ltd,,,,,,,,,,,
Nottinghamshire County Council,1111/1001,Adult Social Care and Health,ASCH,Third Party Payments,EGA,05/06/2014,03-10537,5128.78,Leda Homecare Ltd,,,,,,,,,,,
Nottinghamshire County Council,1111/1001,Surplus or Deficit from Trading Undertak,TRADING,Supplies & Services,DEA,05/06/2014,03-15960,1930,Lees Plumbing & Heating Ltd,,,,,,,,,,,
Nottinghamshire County Council,1111/1001,Highways,HIGHWAYS,Premises Related,BDA,05/06/2014,03-10011,767.12,Lindsey Securities Ltd 1986,,,,,,,,,,,
Nottinghamshire County Council,1111/1001,Environmental,ENVIRON,Premises Related,BDA,05/06/2014,03-10012,4500,Lindsey Securities Ltd 1986,,,,,,,,,,,
Nottinghamshire County Council,1111/1001,Insurance Revenue,INSURANCE,Supplies & Services,DKA,05/06/2014,03-10296,10600,Loosemores Solicitors,,,,,,,,,,,
Nottinghamshire County Council,1111/1001,Surplus or Deficit from Trading Undertak,TRADING,Premises Related,BDA,05/06/2014,03-10023,10000,LSH Client Property Management A/C,,,,,,,,,,,
Nottinghamshire County Council,1111/1001,Children and Young People,CYP,Supplies & Services,DBA,05/06/2014,03-10469,250.89,M Maloney Country Butchers & B Ltd,,,,,,,,,,,
Nottinghamshire County Council,1111/1001,Children and Young People,CYP,Supplies & Services,DBA,05/06/2014,03-10470,245.96,M Maloney Country Butchers & B Ltd,,,,,,,,,,,
Nottinghamshire County Council,1111/1001,Adult Social Care and Health,ASCH,Supplies & Services,DBA,05/06/2014,03-10469,3104.08,M Maloney Country Butchers & B Ltd,,,,,,,,,,,
Nottinghamshire County Council,1111/1001,Adult Social Care and Health,ASCH,Supplies & Services,DBA,05/06/2014,03-10470,3639.05,M Maloney Country Butchers & B Ltd,,,,,,,,,,,
Nottinghamshire County Council,1111/1001,Leisure Services,LEISURE,Supplies & Services,DBA,05/06/2014,03-10469,1805.89,M Maloney Country Butchers & B Ltd,,,,,,,,,,,
Nottinghamshire County Council,1111/1001,Leisure Services,LEISURE,Supplies & Services,DBA,05/06/2014,03-10470,1274.56,M Maloney Country Butchers & B Ltd,,,,,,,,,,,
Nottinghamshire County Council,1111/1001,Surplus or Deficit from Trading Undertak,TRADING,Supplies & Services,DBA,05/06/2014,03-10468,23264.48,M Maloney Country Butchers & B Ltd,,,,,,,,,,,
Nottinghamshire County Council,1111/1001,Surplus or Deficit from Trading Undertak,TRADING,Supplies & Services,DBA,05/06/2014,03-10469,888.3,M Maloney Country Butchers & B Ltd,,,,,,,,,,,
Nottinghamshire County Council,1111/1001,Surplus or Deficit from Trading Undertak,TRADING,Supplies & Services,DBA,05/06/2014,03-10470,487.12,M Maloney Country Butchers & B Ltd,,,,,,,,,,,
Nottinghamshire County Council,1111/1001,Children and Young People,CYP,Third Party Payments,EDA,05/06/2014,03-10574,4648,Magnus Church of England Academy,,,,,,,,,,,
Nottinghamshire County Council,1111/1001,Children and Young People,CYP,Third Party Payments,EDA,05/06/2014,03-10590,10987,Magnus Church of England Academy,,,,,,,,,,,
Nottinghamshire County Council,1111/1001,Children and Young People,CYP,Premises Related,BDA,05/06/2014,03-10003,5473.85,Making It! Enterprises Ltd,,,,,,,,,,,
Nottinghamshire County Council,1111/1001,Children and Young People,CYP,Premises Related,BDA,05/06/2014,03-10020,4452.15,Making It! Enterprises Ltd,,,,,,,,,,,
Nottinghamshire County Council,1111/1001,Environmental,ENVIRON,Premises Related,BDA,05/06/2014,03-10005,10000,Mansfield District Council,,,,,,,,,,,
Nottinghamshire County Council,1111/1001,Continuing Education,CONT_EDUC,Third Party Payments,EHA,05/06/2014,03-10584,680.5,Mansfield Mediation Ltd,,,,,,,,,,,
Nottinghamshire County Council,1111/1001,Adult Social Care and Health,ASCH,Third Party Payments,EGA,05/06/2014,03-10515,2514.18,Mears Care Ltd,,,,,,,,,,,
Nottinghamshire County Council,1111/1001,Adult Social Care and Health,ASCH,Third Party Payments,EGA,05/06/2014,03-10524,4255.59,Mears Care Ltd,,,,,,,,,,,
Nottinghamshire County Council,1111/1001,Adult Social Care and Health,ASCH,Third Party Payments,EGA,05/06/2014,03-10535,514.41,Mears Care Ltd,,,,,,,,,,,
Nottinghamshire County Council,1111/1001,Adult Social Care and Health,ASCH,Third Party Payments,EGA,05/06/2014,03-10547,8407.04,Mears Care Ltd,,,,,,,,,,,
Nottinghamshire County Council,1111/1001,Adult Social Care and Health,ASCH,Third Party Payments,EGA,05/06/2014,03-10512,3978.21,Medico Nursing & Homecare,,,,,,,,,,,
Nottinghamshire County Council,1111/1001,Adult Social Care and Health,ASCH,Third Party Payments,EGA,05/06/2014,03-10532,2686.75,Medico Nursing & Homecare,,,,,,,,,,,
Nottinghamshire County Council,1111/1001,Adult Social Care and Health,ASCH,Third Party Payments,EGA,05/06/2014,03-10536,1532.92,Medico Nursing & Homecare,,,,,,,,,,,
Nottinghamshire County Council,1111/1001,Adult Social Care and Health,ASCH,Third Party Payments,EGA,05/06/2014,03-10556,608.45,Medico Nursing & Homecare,,,,,,,,,,,
Nottinghamshire County Council,1111/1001,Adult Social Care and Health,ASCH,Third Party Payments,EGA,05/06/2014,03-10562,920.55,Medico Nursing & Homecare,,,,,,,,,,,
Nottinghamshire County Council,1111/1001,Adult Social Care and Health,ASCH,Third Party Payments,EGA,05/06/2014,03-10518,2160.29,Mediline Nurses & Carers Ltd,,,,,,,,,,,
Nottinghamshire County Council,1111/1001,Adult Social Care and Health,ASCH,Third Party Payments,EGA,05/06/2014,03-10542,938.57,Mediline Nurses & Carers Ltd,,,,,,,,,,,
Nottinghamshire County Council,1111/1001,Adult Social Care and Health,ASCH,Third Party Payments,EGA,05/06/2014,03-15958,37288.96,Mencap Accounts Region 2,,,,,,,,,,,
Nottinghamshire County Council,1111/1001,Surplus or Deficit from Trading Undertak,TRADING,Premises Related,BDA,05/06/2014,03-10015,12500,MGE Partners,,,,,,,,,,,
Nottinghamshire County Council,1111/1001,Children and Young People,CYP,Third Party Payments,EDA,05/06/2014,03-10567,8240,National Church Of England Academy,,,,,,,,,,,
Nottinghamshire County Council,1111/1001,Children and Young People,CYP,Third Party Payments,EDA,05/06/2014,03-10582,3592,National Church Of England Academy,,,,,,,,,,,
Nottinghamshire County Council,1111/1001,Children and Young People,CYP,Third Party Payments,EDA,05/06/2014,03-10591,10987,National Church Of England Academy,,,,,,,,,,,
Nottinghamshire County Council,1111/1001,Corporate Management,CORP_MAGT,Supplies & Services,DFA,05/06/2014,03-16001,1350.75,Neopost Ltd Frank Mach Top Ups Only,,,,,,,,,,,
Nottinghamshire County Council,1111/1001,Central Service to the Public,CENT_SERV,Premises Related,BDA,05/06/2014,03-10018,10750,Newark & Sherwood District Council,,,,,,,,,,,
Nottinghamshire County Council,1111/1001,Adult Social Care and Health,ASCH,Third Party Payments,EGA,05/06/2014,03-10514,862.65,North Notts Crossroads Care,,,,,,,,,,,
Nottinghamshire County Council,1111/1001,Adult Social Care and Health,ASCH,Third Party Payments,EGA,05/06/2014,03-10519,2939.07,North Notts Crossroads Care,,,,,,,,,,,
Nottinghamshire County Council,1111/1001,Adult Social Care and Health,ASCH,Third Party Payments,EGA,05/06/2014,03-10550,2784.13,North Notts Crossroads Care,,,,,,,,,,,
Nottinghamshire County Council,1111/1001,Adult Social Care and Health,ASCH,Third Party Payments,EGA,05/06/2014,03-10561,947,North Notts Crossroads Care,,,,,,,,,,,
Nottinghamshire County Council,1111/1001,Children and Young People,CYP,Premises Related,BDA,05/06/2014,03-10006,1099.99,Nottingham City Council,,,,,,,,,,,
Nottinghamshire County Council,1111/1001,Highways,HIGHWAYS,Supplies & Services,DAA,05/06/2014,03-15984,840,Nottm City Transport Ltd,,,,,,,,,,,
Nottinghamshire County Council,1111/1001,Children and Young People,CYP,Third Party Payments,EGA,05/06/2014,03-15910,8513.13,Notts County Fc Community Programme,,,,,,,,,,,
Nottinghamshire County Council,1111/1001,Adult Social Care and Health,ASCH,Third Party Payments,EGA,05/06/2014,03-10509,688.64,Notts Homecare Ltd,,,,,,,,,,,
Nottinghamshire County Council,1111/1001,Adult Social Care and Health,ASCH,Third Party Payments,EGA,05/06/2014,03-10554,1241.51,Notts Homecare Ltd,,,,,,,,,,,
Nottinghamshire County Council,1111/1001,Corporate Management,CORP_MAGT,Supplies & Services,DEA,05/06/2014,03-15955,1925,Orchard Health,,,,,,,,,,,
Nottinghamshire County Council,1111/1001,Surplus or Deficit from Trading Undertak,TRADING,Supplies & Services,DEA,05/06/2014,03-15961,1224,P & J Fencing (Pikemaster Ltd),,,,,,,,,,,
Nottinghamshire County Council,1111/1001,Surplus or Deficit from Trading Undertak,TRADING,Supplies & Services,DEA,05/06/2014,03-15963,680,P & J Fencing (Pikemaster Ltd),,,,,,,,,,,
Nottinghamshire County Council,1111/1001,Surplus or Deficit from Trading Undertak,TRADING,Supplies & Services,DEA,05/06/2014,03-15965,1879.5,P & J Fencing (Pikemaster Ltd),,,,,,,,,,,
Nottinghamshire County Council,1111/1001,Continuing Education,CONT_EDUC,Third Party Payments,EHA,05/06/2014,03-10585,1100,Personal Learning Consultancy,,,,,,,,,,,
Nottinghamshire County Council,1111/1001,Continuing Education,CONT_EDUC,Third Party Payments,EHA,05/06/2014,03-10586,9097.55,Personal Learning Consultancy,,,,,,,,,,,
Nottinghamshire County Council,1111/1001,Continuing Education,CONT_EDUC,Third Party Payments,EHA,05/06/2014,03-10587,2325,Personal Learning Consultancy,,,,,,,,,,,
Nottinghamshire County Council,1111/1001,Adult Social Care and Health,ASCH,Third Party Payments,EGA,05/06/2014,03-10522,958.37,Premier Nursing Agency Ltd,,,,,,,,,,,
Nottinghamshire County Council,1111/1001,Adult Social Care and Health,ASCH,Third Party Payments,EGA,05/06/2014,03-10540,3689.05,Premier Nursing Agency Ltd,,,,,,,,,,,
Nottinghamshire County Council,1111/1001,Adult Social Care and Health,ASCH,Third Party Payments,EGA,05/06/2014,03-10545,831.5,Premier Nursing Agency Ltd,,,,,,,,,,,
Nottinghamshire County Council,1111/1001,Adult Social Care and Health,ASCH,Third Party Payments,EGA,05/06/2014,03-10505,3508.45,Priority Homecare Ltd,,,,,,,,,,,
Nottinghamshire County Council,1111/1001,Adult Social Care and Health,ASCH,Third Party Payments,EGA,05/06/2014,03-10517,1147.5,Priority Homecare Ltd,,,,,,,,,,,
Nottinghamshire County Council,1111/1001,Adult Social Care and Health,ASCH,Third Party Payments,EGA,05/06/2014,03-10523,5126.9,Priority Homecare Ltd,,,,,,,,,,,
Nottinghamshire County Council,1111/1001,Adult Social Care and Health,ASCH,Third Party Payments,EGA,05/06/2014,03-10558,2486.61,Priority Homecare Ltd,,,,,,,,,,,
Nottinghamshire County Council,1111/1001,Environmental,ENVIRON,Premises Related,BDA,05/06/2014,03-10009,6250,Rc Tuxford Properties,,,,,,,,,,,
Nottinghamshire County Council,1111/1001,Children and Young People,CYP,Premises Related,BDA,05/06/2014,03-10007,4250,Redacted,,,,,,,,,,,
Nottinghamshire County Council,1111/1001,Planning and Development,PLAN_DEV,Supplies & Services,DHA,05/06/2014,03-10467,500,Robin Hood Cadet Corps Of Drums,,,,,,,,,,,
Nottinghamshire County Council,1111/1001,Planning and Development,PLAN_DEV,Supplies & Services,DHA,05/06/2014,03-10466,500,Science On Stage,,,,,,,,,,,
Nottinghamshire County Council,1111/1001,Corporate Management,CORP_MAGT,Supplies & Services,DFA,05/06/2014,03-10564,725.45,Sight & Sound Technology Ltd,,,,,,,,,,,
Nottinghamshire County Council,1111/1001,Children and Young People,CYP,Third Party Payments,EDA,05/06/2014,03-10583,10987,St Patricks Catholic Primary (close,,,,,,,,,,,
Nottinghamshire County Council,1111/1001,Adult Social Care and Health,ASCH,Third Party Payments,EGA,05/06/2014,03-10501,7079.07,Sterling Homecare Ltd,,,,,,,,,,,
Nottinghamshire County Council,1111/1001,Adult Social Care and Health,ASCH,Third Party Payments,EGA,05/06/2014,03-10525,8456.64,Sterling Homecare Ltd,,,,,,,,,,,
Nottinghamshire County Council,1111/1001,Adult Social Care and Health,ASCH,Third Party Payments,EGA,05/06/2014,03-10528,9532.89,Sterling Homecare Ltd,,,,,,,,,,,
Nottinghamshire County Council,1111/1001,Adult Social Care and Health,ASCH,Third Party Payments,EGA,05/06/2014,03-10549,1455.96,Sterling Homecare Ltd,,,,,,,,,,,
Nottinghamshire County Council,1111/1001,Adult Social Care and Health,ASCH,Third Party Payments,EGA,05/06/2014,03-10557,11916.89,Sterling Homecare Ltd,,,,,,,,,,,
Nottinghamshire County Council,1111/1001,Adult Social Care and Health,ASCH,Third Party Payments,EGA,05/06/2014,03-10560,5885.05,Sterling Homecare Ltd,,,,,,,,,,,
Nottinghamshire County Council,1111/1001,Surplus or Deficit from Trading Undertak,TRADING,Third Party Payments,EBA,05/06/2014,03-15977,2130,STM UK Ltd,,,,,,,,,,,
Nottinghamshire County Council,1111/1001,Children and Young People,CYP,Third Party Payments,EDA,05/06/2014,03-10593,8240,Sunnyside Primary & Nursery (closed,,,,,,,,,,,
Nottinghamshire County Council,1111/1001,Environmental,ENVIRON,Premises Related,BDA,05/06/2014,03-10010,6250,Taylor Lindsey Ltd,,,,,,,,,,,
Nottinghamshire County Council,1111/1001,Corporate Management,CORP_MAGT,Supplies & Services,DEA,05/06/2014,03-10493,1512,The Art Department,,,,,,,,,,,
Nottinghamshire County Council,1111/1001,Corporate Management,CORP_MAGT,Supplies & Services,DEA,05/06/2014,03-10494,985,The Art Department,,,,,,,,,,,
Nottinghamshire County Council,1111/1001,Corporate Management,CORP_MAGT,Supplies & Services,DEA,05/06/2014,03-10495,825,The Art Department,,,,,,,,,,,
Nottinghamshire County Council,1111/1001,Children and Young People,CYP,Third Party Payments,EDA,05/06/2014,03-10568,9219,The Brunts Academy,,,,,,,,,,,
Nottinghamshire County Council,1111/1001,Children and Young People,CYP,Third Party Payments,EDA,05/06/2014,03-10588,10987,The Brunts Academy,,,,,,,,,,,
Nottinghamshire County Council,1111/1001,Children and Young People,CYP,Third Party Payments,EDA,05/06/2014,03-10589,5224,The Brunts Academy,,,,,,,,,,,
Nottinghamshire County Council,1111/1001,Adult Social Care and Health,ASCH,Third Party Payments,EGA,05/06/2014,03-10521,2295.12,The Human Support Group,,,,,,,,,,,
Nottinghamshire County Council,1111/1001,Children and Young People,CYP,Third Party Payments,EGA,05/06/2014,03-10471,6175.26,The Orange Tree Day Nursery,,,,,,,,,,,
Nottinghamshire County Council,1111/1001,Children and Young People,CYP,Third Party Payments,EDA,05/06/2014,03-10570,6339,The South Wolds Academy & Sixth For,,,,,,,,,,,
Nottinghamshire County Council,1111/1001,Children and Young People,CYP,Third Party Payments,EDA,05/06/2014,03-10581,6339,The South Wolds Academy & Sixth For,,,,,,,,,,,
Nottinghamshire County Council,1111/1001,Surplus or Deficit from Trading Undertak,TRADING,Supplies & Services,DEA,05/06/2014,03-15978,600,Trustseal Ltd,,,,,,,,,,,
Nottinghamshire County Council,1111/1001,Children and Young People,CYP,Third Party Payments,EDA,05/06/2014,03-10573,6339,Tuxford Academy,,,,,,,,,,,
Nottinghamshire County Council,1111/1001,Libraries,LIBRARIES,Supplies & Services,DAA,05/06/2014,03-10497,612.94,Ulverscroft Large Print Books Ltd,,,,,,,,,,,
Nottinghamshire County Council,1111/1001,Libraries,LIBRARIES,Supplies & Services,DAA,05/06/2014,03-10498,663.74,Ulverscroft Large Print Books Ltd,,,,,,,,,,,
Nottinghamshire County Council,1111/1001,Libraries,LIBRARIES,Supplies & Services,DEA,05/06/2014,03-10497,18.86,Ulverscroft Large Print Books Ltd,,,,,,,,,,,
Nottinghamshire County Council,1111/1001,Libraries,LIBRARIES,Supplies & Services,DEA,05/06/2014,03-10498,10.4,Ulverscroft Large Print Books Ltd,,,,,,,,,,,
Nottinghamshire County Council,1111/1001,Adult Social Care and Health,ASCH,Third Party Payments,EGA,05/06/2014,03-10499,3443.64,Westminster Homecare Ltd,,,,,,,,,,,
Nottinghamshire County Council,1111/1001,Adult Social Care and Health,ASCH,Third Party Payments,EGA,05/06/2014,03-10513,2308.97,Westminster Homecare Ltd,,,,,,,,,,,
Nottinghamshire County Council,1111/1001,Adult Social Care and Health,ASCH,Third Party Payments,EGA,05/06/2014,03-10548,7372,Westminster Homecare Ltd,,,,,,,,,,,
Nottinghamshire County Council,1111/1001,Adult Social Care and Health,ASCH,Premises Related,BDA,05/06/2014,03-10016,3375,Wistow Properties,,,,,,,,,,,
Nottinghamshire County Council,1111/1001,Adult Social Care and Health,ASCH,Third Party Payments,EGA,05/06/2014,03-10511,4282.4,Workwise Healthcare Ltd,,,,,,,,,,,
Nottinghamshire County Council,1111/1001,Adult Social Care and Health,ASCH,Third Party Payments,EGA,05/06/2014,03-10541,3651.7,Workwise Healthcare Ltd,,,,,,,,,,,
Nottinghamshire County Council,1111/1001,Surplus or Deficit from Trading Undertak,TRADING,Supplies & Services,DAA,06/06/2014,03-10001,844,Allen Glenold Ltd,,,,,,,,,,,
Nottinghamshire County Council,1111/1001,Surplus or Deficit from Trading Undertak,TRADING,Supplies & Services,DAA,06/06/2014,03-10001,719.3,Allen Glenold Ltd,,,,,,,,,,,
Nottinghamshire County Council,1111/1001,Adult Social Care and Health,ASCH,Third Party Payments,EGA,06/06/2014,03-10621,824.16,Amg Nursing & Care Services Ltd,,,,,,,,,,,
Nottinghamshire County Council,1111/1001,Adult Social Care and Health,ASCH,Third Party Payments,EGA,06/06/2014,03-10622,2953.24,Amg Nursing & Care Services Ltd,,,,,,,,,,,
Nottinghamshire County Council,1111/1001,Adult Social Care and Health,ASCH,Third Party Payments,EGA,06/06/2014,03-10623,755.48,Amg Nursing & Care Services Ltd,,,,,,,,,,,
Nottinghamshire County Council,1111/1001,Adult Social Care and Health,ASCH,Third Party Payments,EGA,06/06/2014,03-10624,2833.05,Amg Nursing & Care Services Ltd,,,,,,,,,,,
Nottinghamshire County Council,1111/1001,Children and Young People,CYP,Third Party Payments,EDA,06/06/2014,03-10656,11525,Ashfield Academy,,,,,,,,,,,
Nottinghamshire County Council,1111/1001,Surplus or Deficit from Trading Undertak,TRADING,Transport Related,CAA,06/06/2014,03-10207,6844.04,Ashfield District Council,,,,,,,,,,,
Nottinghamshire County Council,1111/1001,Libraries,LIBRARIES,Supplies & Services,DAA,06/06/2014,03-10644,725.95,Askews & Holts Library Services Ltd,,,,,,,,,,,
Nottinghamshire County Council,1111/1001,Libraries,LIBRARIES,Supplies & Services,DAA,06/06/2014,03-10645,532.24,Askews & Holts Library Services Ltd,,,,,,,,,,,
Nottinghamshire County Council,1111/1001,Adult Social Care and Health,ASCH,Third Party Payments,EGA,06/06/2014,03-10642,1446.25,Blue Sky Care Ltd,,,,,,,,,,,
Nottinghamshire County Council,1111/1001,Surplus or Deficit from Trading Undertak,TRADING,Premises Related,BJA,06/06/2014,03-10001,890,Candor Services,,,,,,,,,,,
Nottinghamshire County Council,1111/1001,Surplus or Deficit from Trading Undertak,TRADING,Supplies & Services,DAA,06/06/2014,03-10001,2956,Catering Supplies (Wakefield) Ltd,,,,,,,,,,,
Nottinghamshire County Council,1111/1001,Surplus or Deficit from Trading Undertak,TRADING,Supplies & Services,DAA,06/06/2014,03-10001,1005.5,Catering Supplies (Wakefield) Ltd,,,,,,,,,,,
Nottinghamshire County Council,1111/1001,Children and Young People,CYP,Third Party Payments,EDA,06/06/2014,03-10658,10987,Chetwynd Road Primary Academy,,,,,,,,,,,
Nottinghamshire County Council,1111/1001,Surplus or Deficit from Trading Undertak,TRADING,Supplies & Services,DAA,06/06/2014,03-10001,504.06,Creativity International Ltd,,,,,,,,,,,
Nottinghamshire County Council,1111/1001,Surplus or Deficit from Trading Undertak,TRADING,Supplies & Services,DAA,06/06/2014,03-10001,833.4,Dudson Bros Ltd,,,,,,,,,,,
Nottinghamshire County Council,1111/1001,Surplus or Deficit from Trading Undertak,TRADING,Premises Related,BJA,06/06/2014,03-10001,744.68,Ecover (Uk) Ltd,,,,,,,,,,,
Nottinghamshire County Council,1111/1001,Adult Social Care and Health,ASCH,Third Party Payments,EGA,06/06/2014,03-15950,4446,Eden Supported Living Ltd,,,,,,,,,,,
Nottinghamshire County Council,1111/1001,Adult Social Care and Health,ASCH,Third Party Payments,EGA,06/06/2014,03-15951,7787.25,Eden Supported Living Ltd,,,,,,,,,,,
Nottinghamshire County Council,1111/1001,Adult Social Care and Health,ASCH,Third Party Payments,EGA,06/06/2014,03-15952,132145.81,Eden Supported Living Ltd,,,,,,,,,,,
Nottinghamshire County Council,1111/1001,Leisure Services,LEISURE,Premises Related,BCA,06/06/2014,03-10643,534.49,Enviroenergy Nottingham Ltd,,,,,,,,,,,
Nottinghamshire County Council,1111/1001,Corporate Management,CORP_MAGT,Supplies & Services,DEA,06/06/2014,03-16027,1187.66,Faithful & Gould,,,,,,,,,,,
Nottinghamshire County Council,1111/1001,Adult Social Care and Health,ASCH,Third Party Payments,EGA,06/06/2014,03-10637,3138.24,Fitzroy,,,,,,,,,,,
Nottinghamshire County Council,1111/1001,Adult Social Care and Health,ASCH,Third Party Payments,EGA,06/06/2014,03-10639,3138.24,Fitzroy,,,,,,,,,,,
Nottinghamshire County Council,1111/1001,Children and Young People,CYP,Third Party Payments,EGA,06/06/2014,03-15953,3764.29,Five Rivers Child Care Ltd,,,,,,,,,,,
Nottinghamshire County Council,1111/1001,Corporate Management,CORP_MAGT,Supplies & Services,DEA,06/06/2014,03-16017,711.75,"Futures Advice, Skills & Employment",,,,,,,,,,,
Nottinghamshire County Council,1111/1001,Children and Young People,CYP,Third Party Payments,EDA,06/06/2014,03-10655,8240,George Spencer Academy,,,,,,,,,,,
Nottinghamshire County Council,1111/1001,Surplus or Deficit from Trading Undertak,TRADING,Supplies & Services,DAA,06/06/2014,03-10001,561.58,Gratnells Ltd,,,,,,,,,,,
Nottinghamshire County Council,1111/1001,Surplus or Deficit from Trading Undertak,TRADING,Supplies & Services,DAA,06/06/2014,03-10001,1567.5,Grosvenor House Papers Ltd,,,,,,,,,,,
Nottinghamshire County Council,1111/1001,Surplus or Deficit from Trading Undertak,TRADING,Supplies & Services,DDA,06/06/2014,03-10001,7266.9,Henkel Loctite Adhesives Ltd,,,,,,,,,,,
Nottinghamshire County Council,1111/1001,Surplus or Deficit from Trading Undertak,TRADING,Supplies & Services,DAA,06/06/2014,03-10001,2023.56,Higher Kings Mill Ltd,,,,,,,,,,,
Nottinghamshire County Council,1111/1001,Unallocated,UNALLOC.,Supplies & Services,DDA,06/06/2014,03-10609,674.1,Johnston Publishing Ltd,,,,,,,,,,,
Nottinghamshire County Council,1111/1001,Unallocated,UNALLOC.,Supplies & Services,DDA,06/06/2014,03-10610,838.88,Johnston Publishing Ltd,,,,,,,,,,,
Nottinghamshire County Council,1111/1001,Unallocated,UNALLOC.,Supplies & Services,DDA,06/06/2014,03-10611,719.04,Johnston Publishing Ltd,,,,,,,,,,,
Nottinghamshire County Council,1111/1001,Unallocated,UNALLOC.,Supplies & Services,DDA,06/06/2014,03-10612,629.16,Johnston Publishing Ltd,,,,,,,,,,,
Nottinghamshire County Council,1111/1001,Unallocated,UNALLOC.,Supplies & Services,DDA,06/06/2014,03-10613,719.04,Johnston Publishing Ltd,,,,,,,,,,,
Nottinghamshire County Council,1111/1001,Unallocated,UNALLOC.,Supplies & Services,DDA,06/06/2014,03-10614,808.92,Johnston Publishing Ltd,,,,,,,,,,,
Nottinghamshire County Council,1111/1001,Unallocated,UNALLOC.,Supplies & Services,DDA,06/06/2014,03-10618,853.86,Johnston Publishing Ltd,,,,,,,,,,,
Nottinghamshire County Council,1111/1001,Surplus or Deficit from Trading Undertak,TRADING,Supplies & Services,DAA,06/06/2014,03-10001,818.5,Kent County Supplies,,,,,,,,,,,
Nottinghamshire County Council,1111/1001,Surplus or Deficit from Trading Undertak,TRADING,Supplies & Services,DAA,06/06/2014,03-10001,1819.68,Kent County Supplies,,,,,,,,,,,
Nottinghamshire County Council,1111/1001,Surplus or Deficit from Trading Undertak,TRADING,Supplies & Services,DAA,06/06/2014,03-10001,723.53,Kit For Kids Ltd,,,,,,,,,,,
Nottinghamshire County Council,1111/1001,Surplus or Deficit from Trading Undertak,TRADING,Supplies & Services,DBA,06/06/2014,03-10648,23608.48,M Maloney Country Butchers & B Ltd,,,,,,,,,,,
Nottinghamshire County Council,1111/1001,Surplus or Deficit from Trading Undertak,TRADING,Supplies & Services,DAA,06/06/2014,03-10001,639.8,Major Brushes Ltd,,,,,,,,,,,
Nottinghamshire County Council,1111/1001,Public Health,HEALTH,Supplies & Services,DKA,06/06/2014,03-10625,541.38,Manns Pharmacy,,,,,,,,,,,
Nottinghamshire County Council,1111/1001,Public Health,HEALTH,Supplies & Services,DKA,06/06/2014,03-10626,1032.07,Manns Pharmacy,,,,,,,,,,,
Nottinghamshire County Council,1111/1001,Public Health,HEALTH,Supplies & Services,DEA,06/06/2014,03-10604,319755.08,Mansfield & Ashfield CCG,,,,,,,,,,,
Nottinghamshire County Council,1111/1001,Public Health,HEALTH,Supplies & Services,DEA,06/06/2014,03-10605,332001.46,Mansfield & Ashfield CCG,,,,,,,,,,,
Nottinghamshire County Council,1111/1001,Adult Social Care and Health,ASCH,Third Party Payments,EGA,06/06/2014,03-15937,13067.28,Mencap Accounts Region 2,,,,,,,,,,,
Nottinghamshire County Council,1111/1001,Adult Social Care and Health,ASCH,Third Party Payments,EGA,06/06/2014,03-15938,13067.28,Mencap Accounts Region 2,,,,,,,,,,,
Nottinghamshire County Council,1111/1001,Surplus or Deficit from Trading Undertak,TRADING,Supplies & Services,DAA,06/06/2014,03-10001,3347.66,Newell Rubbermaid,,,,,,,,,,,
Nottinghamshire County Council,1111/1001,Surplus or Deficit from Trading Undertak,TRADING,Supplies & Services,DAA,06/06/2014,03-10001,1152.11,Newell Rubbermaid,,,,,,,,,,,
Nottinghamshire County Council,1111/1001,Corporate Management,CORP_MAGT,Supplies & Services,DKA,06/06/2014,03-16019,8746.08,Nottingham Security Ltd,,,,,,,,,,,
Nottinghamshire County Council,1111/1001,Surplus or Deficit from Trading Undertak,TRADING,Supplies & Services,DDA,06/06/2014,03-10001,1062,Pirongs Ltd,,,,,,,,,,,
Nottinghamshire County Council,1111/1001,Surplus or Deficit from Trading Undertak,TRADING,Premises Related,BJA,06/06/2014,03-10001,669.33,Premiere Products,,,,,,,,,,,
Nottinghamshire County Council,1111/1001,Surplus or Deficit from Trading Undertak,TRADING,Premises Related,BJA,06/06/2014,03-10001,6899.08,Premiere Products,,,,,,,,,,,
Nottinghamshire County Council,1111/1001,Corporate Management,CORP_MAGT,Supplies & Services,DEA,06/06/2014,03-16011,65004.64,Robert Woodhead Limited,,,,,,,,,,,
Nottinghamshire County Council,1111/1001,Children and Young People,CYP,Supplies & Services,DAA,06/06/2014,03-15999,582.95,Rompa Ltd,,,,,,,,,,,
Nottinghamshire County Council,1111/1001,Surplus or Deficit from Trading Undertak,TRADING,Transport Related,CCA,06/06/2014,03-16014,800,Sdb Equipment,,,,,,,,,,,
Nottinghamshire County Council,1111/1001,Surplus or Deficit from Trading Undertak,TRADING,Third Party Payments,EAA,06/06/2014,03-16004,850,Sherwood Sheds (Nottingham) Ltd,,,,,,,,,,,
Nottinghamshire County Council,1111/1001,Surplus or Deficit from Trading Undertak,TRADING,Supplies & Services,DAA,06/06/2014,03-10001,880,Spaceright Europe Ltd,,,,,,,,,,,
Nottinghamshire County Council,1111/1001,Corporate Management,CORP_MAGT,Supplies & Services,DFA,06/06/2014,03-16010,56940.76,Specialist Computer Centres,,,,,,,,,,,
Nottinghamshire County Council,1111/1001,Adult Social Care and Health,ASCH,Transport Related,CCA,06/06/2014,03-10603,1866.48,Srcl Ltd,,,,,,,,,,,
Nottinghamshire County Council,1111/1001,Surplus or Deficit from Trading Undertak,TRADING,Supplies & Services,DAA,06/06/2014,03-10001,15504,Talk Paper,,,,,,,,,,,
Nottinghamshire County Council,1111/1001,Children and Young People,CYP,Third Party Payments,EDA,06/06/2014,03-10657,6339,The Brunts Academy,,,,,,,,,,,
Nottinghamshire County Council,1111/1001,Children and Young People,CYP,Third Party Payments,EDA,06/06/2014,03-10659,6339,The Manor Academy,,,,,,,,,,,
Nottinghamshire County Council,1111/1001,Children and Young People,CYP,Third Party Payments,EDA,06/06/2014,03-10660,6339,The Manor Academy,,,,,,,,,,,
Nottinghamshire County Council,1111/1001,Children and Young People,CYP,Third Party Payments,EDA,06/06/2014,03-10661,6339,The Manor Academy,,,,,,,,,,,
Nottinghamshire County Council,1111/1001,Children and Young People,CYP,Third Party Payments,EGA,06/06/2014,03-16005,1908,The Place Young Peoples Company Ltd,,,,,,,,,,,
Nottinghamshire County Council,1111/1001,Children and Young People,CYP,Third Party Payments,EDA,06/06/2014,03-10654,6339,The South Wolds Academy & Sixth For,,,,,,,,,,,
Nottinghamshire County Council,1111/1001,Adult Social Care and Health,ASCH,Third Party Payments,EGA,06/06/2014,03-10201,2399.04,Thera East Midlands,,,,,,,,,,,
Nottinghamshire County Council,1111/1001,Adult Social Care and Health,ASCH,Third Party Payments,EGA,06/06/2014,03-10596,1927.8,Thera East Midlands,,,,,,,,,,,
Nottinghamshire County Council,1111/1001,Adult Social Care and Health,ASCH,Third Party Payments,EGA,06/06/2014,03-10597,1927.8,Thera East Midlands,,,,,,,,,,,
Nottinghamshire County Council,1111/1001,Adult Social Care and Health,ASCH,Third Party Payments,EGA,06/06/2014,03-10598,1927.8,Thera East Midlands,,,,,,,,,,,
Nottinghamshire County Council,1111/1001,Adult Social Care and Health,ASCH,Third Party Payments,EGA,06/06/2014,03-10599,1927.8,Thera East Midlands,,,,,,,,,,,
Nottinghamshire County Council,1111/1001,Corporate Management,CORP_MAGT,Supplies & Services,DEA,06/06/2014,03-16015,609.66,Trent Architecture & Design Ltd,,,,,,,,,,,
Nottinghamshire County Council,1111/1001,Unallocated,UNALLOC.,Supplies & Services,DDA,06/06/2014,03-10606,2963.62,Tsl Education Ltd,,,,,,,,,,,
Nottinghamshire County Council,1111/1001,Unallocated,UNALLOC.,Supplies & Services,DDA,06/06/2014,03-10607,634.37,Tsl Education Ltd,,,,,,,,,,,
Nottinghamshire County Council,1111/1001,Unallocated,UNALLOC.,Supplies & Services,DDA,06/06/2014,03-10608,699.12,Tsl Education Ltd,,,,,,,,,,,
Nottinghamshire County Council,1111/1001,Adult Social Care and Health,ASCH,Third Party Payments,EGA,06/06/2014,03-10640,3758.67,United Response,,,,,,,,,,,
Nottinghamshire County Council,1111/1001,Corporate Management,CORP_MAGT,Supplies & Services,DFA,06/06/2014,03-10646,1209.4,Viglen Ltd,,,,,,,,,,,
Nottinghamshire County Council,1111/1001,Highways,HIGHWAYS,Supplies & Services,DFA,06/06/2014,03-10601,4276.35,Virgin Media,,,,,,,,,,,
Nottinghamshire County Council,1111/1001,Highways,HIGHWAYS,Supplies & Services,DEA,06/06/2014,03-10463,1233.8,Vodafone Ltd (HO),,,,,,,,,,,
Nottinghamshire County Council,1111/1001,Children and Young People,CYP,Third Party Payments,EDA,06/06/2014,03-10600,3170,Wainwright Primary Academy,,,,,,,,,,,
Nottinghamshire County Council,1111/1001,Leisure Services,LEISURE,Supplies & Services,DHA,06/06/2014,03-10662,21600,West Bridgfordians Cricket Club,,,,,,,,,,,
Nottinghamshire County Council,1111/1001,Adult Social Care and Health,ASCH,Third Party Payments,EGA,06/06/2014,03-16024,918,Woodley House Ltd,,,,,,,,,,,
Nottinghamshire County Council,1111/1001,Corporate Management,CORP_MAGT,Supplies & Services,DFA,06/06/2014,03-10647,720,Xma Ltd,,,,,,,,,,,
Nottinghamshire County Council,1111/1001,Children and Young People,CYP,Supplies & Services,DHA,06/06/2014,03-10602,3328,Zoe's Childcare Ltd,,,,,,,,,,,
Nottinghamshire County Council,1111/1001,Children and Young People,CYP,Third Party Payments,EGA,09/06/2014,03-16047,1750,A Place To Call Our Own Ltd,,,,,,,,,,,
Nottinghamshire County Council,1111/1001,Adult Social Care and Health,ASCH,Supplies & Services,DHA,09/06/2014,03-10676,22775,Age Uk Nottm & Notts,,,,,,,,,,,
Nottinghamshire County Council,1111/1001,Adult Social Care and Health,ASCH,Supplies & Services,DHA,09/06/2014,03-10677,22775,Age Uk Nottm & Notts,,,,,,,,,,,
Nottinghamshire County Council,1111/1001,Adult Social Care and Health,ASCH,Third Party Payments,EGA,09/06/2014,03-10714,5870.29,Aldercar Residential Home,,,,,,,,,,,
Nottinghamshire County Council,1111/1001,Adult Social Care and Health,ASCH,Third Party Payments,EGA,09/06/2014,03-10715,4328.86,Aldercar Residential Home,,,,,,,,,,,
Nottinghamshire County Council,1111/1001,Adult Social Care and Health,ASCH,Third Party Payments,ECA,09/06/2014,03-10711,316.83,Ashley House Nursing Home,,,,,,,,,,,
Nottinghamshire County Council,1111/1001,Adult Social Care and Health,ASCH,Third Party Payments,EGA,09/06/2014,03-10711,1574.29,Ashley House Nursing Home,,,,,,,,,,,
Nottinghamshire County Council,1111/1001,Adult Social Care and Health,ASCH,Third Party Payments,EGA,09/06/2014,03-10713,2206.29,Ashton Court,,,,,,,,,,,
Nottinghamshire County Council,1111/1001,Libraries,LIBRARIES,Supplies & Services,DAA,09/06/2014,03-10681,848.26,Askews & Holts Library Services Ltd,,,,,,,,,,,
Nottinghamshire County Council,1111/1001,Libraries,LIBRARIES,Supplies & Services,DAA,09/06/2014,03-10682,945.07,Askews & Holts Library Services Ltd,,,,,,,,,,,
Nottinghamshire County Council,1111/1001,Adult Social Care and Health,ASCH,Third Party Payments,ECA,09/06/2014,03-10700,316.83,Beauvale Nursing Home,,,,,,,,,,,
Nottinghamshire County Council,1111/1001,Adult Social Care and Health,ASCH,Third Party Payments,EGA,09/06/2014,03-10700,1574.29,Beauvale Nursing Home,,,,,,,,,,,
Nottinghamshire County Council,1111/1001,Surplus or Deficit from Trading Undertak,TRADING,Premises Related,BJA,09/06/2014,03-10001,570.56,Biffa Waste Services Ltd,,,,,,,,,,,
Nottinghamshire County Council,1111/1001,Children and Young People,CYP,Supplies & Services,DKA,09/06/2014,03-10684,5000,Bildworth Welfare Football Club,,,,,,,,,,,
Nottinghamshire County Council,1111/1001,Adult Social Care and Health,ASCH,Third Party Payments,EGA,09/06/2014,03-10709,896.57,Bluebell Lodge,,,,,,,,,,,
Nottinghamshire County Council,1111/1001,Adult Social Care and Health,ASCH,Third Party Payments,EGA,09/06/2014,03-10710,1046,Bluebell Lodge,,,,,,,,,,,
Nottinghamshire County Council,1111/1001,Adult Social Care and Health,ASCH,Third Party Payments,EGA,09/06/2014,03-10727,757.71,Broadgate Nursing Home,,,,,,,,,,,
Nottinghamshire County Council,1111/1001,Adult Social Care and Health,ASCH,Third Party Payments,EGA,09/06/2014,03-10726,1110,Brookside House Resi Care Home,,,,,,,,,,,
Nottinghamshire County Council,1111/1001,Adult Social Care and Health,ASCH,Third Party Payments,EGA,09/06/2014,03-10703,1547.57,Churchfield Drive Care Home,,,,,,,,,,,
Nottinghamshire County Council,1111/1001,Adult Social Care and Health,ASCH,Third Party Payments,EGA,09/06/2014,03-10736,977.43,Clipstone Hall Care Home,,,,,,,,,,,
Nottinghamshire County Council,1111/1001,Adult Social Care and Health,ASCH,Third Party Payments,ECA,09/06/2014,03-10705,332.67,Countrywide Care Homes Ltd T/A Clum,,,,,,,,,,,
Nottinghamshire County Council,1111/1001,Adult Social Care and Health,ASCH,Third Party Payments,EGA,09/06/2014,03-10705,1584.85,Countrywide Care Homes Ltd T/A Clum,,,,,,,,,,,
Nottinghamshire County Council,1111/1001,Environmental,ENVIRON,Supplies & Services,DEA,09/06/2014,03-16059,737490,Department of Energy and Climate Ch,,,,,,,,,,,
Nottinghamshire County Council,1111/1001,Adult Social Care and Health,ASCH,Third Party Payments,EGA,09/06/2014,03-10719,890,Eden Lodge Nursing Home,,,,,,,,,,,
Nottinghamshire County Council,1111/1001,Adult Social Care and Health,ASCH,Third Party Payments,EGA,09/06/2014,03-16046,27934.31,Eden Supported Living Ltd,,,,,,,,,,,
Nottinghamshire County Council,1111/1001,Adult Social Care and Health,ASCH,Third Party Payments,EGA,09/06/2014,03-10708,8343.02,Eliot House,,,,,,,,,,,
Nottinghamshire County Council,1111/1001,Environmental,ENVIRON,Supplies & Services,DEA,09/06/2014,03-16021,615,Eurotech Environmental Ltd,,,,,,,,,,,
Nottinghamshire County Council,1111/1001,Corporate Management,CORP_MAGT,Supplies & Services,DEA,09/06/2014,03-16036,1288.61,Faithful & Gould,,,,,,,,,,,
Nottinghamshire County Council,1111/1001,Corporate Management,CORP_MAGT,Supplies & Services,DEA,09/06/2014,03-16062,920.44,Faithful & Gould,,,,,,,,,,,
Nottinghamshire County Council,1111/1001,Adult Social Care and Health,ASCH,Third Party Payments,EGA,09/06/2014,03-10721,7817.14,Field House Nursing Home,,,,,,,,,,,
Nottinghamshire County Council,1111/1001,Adult Social Care and Health,ASCH,Third Party Payments,EGA,09/06/2014,03-10704,672.86,Four Seasons (Bamford) Ltd - Old Vi,,,,,,,,,,,
Nottinghamshire County Council,1111/1001,Adult Social Care and Health,ASCH,Third Party Payments,ECA,09/06/2014,03-10712,1971.38,Gables Nursing Home,,,,,,,,,,,
Nottinghamshire County Council,1111/1001,Adult Social Care and Health,ASCH,Third Party Payments,EGA,09/06/2014,03-10712,10745.04,Gables Nursing Home,,,,,,,,,,,
Nottinghamshire County Council,1111/1001,Adult Social Care and Health,ASCH,Third Party Payments,EGA,09/06/2014,03-10722,923,Glenesk,,,,,,,,,,,
Nottinghamshire County Council,1111/1001,Adult Social Care and Health,ASCH,Third Party Payments,EGA,09/06/2014,03-10718,6699,Highfields Care Home,,,,,,,,,,,
Nottinghamshire County Council,1111/1001,Adult Social Care and Health,ASCH,Third Party Payments,EGA,09/06/2014,03-10716,3075.43,Hillside Farm Care Home,,,,,,,,,,,
Nottinghamshire County Council,1111/1001,Adult Social Care and Health,ASCH,Third Party Payments,ECA,09/06/2014,03-10748,15.84,Jubilee Court Nursing Home,,,,,,,,,,,
Nottinghamshire County Council,1111/1001,Adult Social Care and Health,ASCH,Third Party Payments,ECA,09/06/2014,03-10749,221.78,Jubilee Court Nursing Home,,,,,,,,,,,
Nottinghamshire County Council,1111/1001,Adult Social Care and Health,ASCH,Third Party Payments,EGA,09/06/2014,03-10748,1207.86,Jubilee Court Nursing Home,,,,,,,,,,,
Nottinghamshire County Council,1111/1001,Adult Social Care and Health,ASCH,Third Party Payments,EGA,09/06/2014,03-10749,998,Jubilee Court Nursing Home,,,,,,,,,,,
Nottinghamshire County Council,1111/1001,Highways,HIGHWAYS,Transport Related,CCA,09/06/2014,03-16044,650,Kettlewell Retford Ltd,,,,,,,,,,,
Nottinghamshire County Council,1111/1001,Adult Social Care and Health,ASCH,Third Party Payments,ECA,09/06/2014,03-10699,427.72,Kingsthorpe View Nursing Home,,,,,,,,,,,
Nottinghamshire County Council,1111/1001,Adult Social Care and Health,ASCH,Third Party Payments,EGA,09/06/2014,03-10699,1703.55,Kingsthorpe View Nursing Home,,,,,,,,,,,
Nottinghamshire County Council,1111/1001,Adult Social Care and Health,ASCH,Third Party Payments,ECA,09/06/2014,03-10706,728.71,Landermeads Nursing Home,,,,,,,,,,,
Nottinghamshire County Council,1111/1001,Adult Social Care and Health,ASCH,Third Party Payments,EGA,09/06/2014,03-10706,4067.71,Landermeads Nursing Home,,,,,,,,,,,
Nottinghamshire County Council,1111/1001,Adult Social Care and Health,ASCH,Third Party Payments,ECA,09/06/2014,03-10707,887.12,Lawn Park Nursing Home,,,,,,,,,,,
Nottinghamshire County Council,1111/1001,Adult Social Care and Health,ASCH,Third Party Payments,EGA,09/06/2014,03-10707,4616,Lawn Park Nursing Home,,,,,,,,,,,
Nottinghamshire County Council,1111/1001,Adult Social Care and Health,ASCH,Third Party Payments,ECA,09/06/2014,03-10729,411.88,Lound Hall Nursing Home,,,,,,,,,,,
Nottinghamshire County Council,1111/1001,Adult Social Care and Health,ASCH,Third Party Payments,EGA,09/06/2014,03-10729,1806.29,Lound Hall Nursing Home,,,,,,,,,,,
Nottinghamshire County Council,1111/1001,Highways,HIGHWAYS,Transport Related,CCA,09/06/2014,03-16043,21666,Marshalls Of Sutton On Trent Ltd,,,,,,,,,,,
Nottinghamshire County Council,1111/1001,Adult Social Care and Health,ASCH,Third Party Payments,EGA,09/06/2014,03-10741,781,Maun View,,,,,,,,,,,
Nottinghamshire County Council,1111/1001,Adult Social Care and Health,ASCH,Third Party Payments,EGA,09/06/2014,03-10742,515,Maun View,,,,,,,,,,,
Nottinghamshire County Council,1111/1001,Adult Social Care and Health,ASCH,Third Party Payments,EGA,09/06/2014,03-10743,1912.86,Maun View,,,,,,,,,,,
Nottinghamshire County Council,1111/1001,Adult Social Care and Health,ASCH,Third Party Payments,EGA,09/06/2014,03-10723,3162.86,Meadow Lodge (Beeston),,,,,,,,,,,
Nottinghamshire County Council,1111/1001,Adult Social Care and Health,ASCH,Third Party Payments,EGA,09/06/2014,03-10724,632.57,Meadow Lodge (Beeston),,,,,,,,,,,
Nottinghamshire County Council,1111/1001,Adult Social Care and Health,ASCH,Third Party Payments,EGA,09/06/2014,03-10725,7140,Meadow Lodge (Beeston),,,,,,,,,,,
Nottinghamshire County Council,1111/1001,Leisure Services,LEISURE,Supplies & Services,DAA,09/06/2014,03-15997,2720,Millside Metalworks,,,,,,,,,,,
Nottinghamshire County Council,1111/1001,Adult Social Care and Health,ASCH,Third Party Payments,EGA,09/06/2014,03-10731,884,Nightingale Care Home,,,,,,,,,,,
Nottinghamshire County Council,1111/1001,Adult Social Care and Health,ASCH,Third Party Payments,EGA,09/06/2014,03-10732,4428.43,Nightingale Care Home,,,,,,,,,,,
Nottinghamshire County Council,1111/1001,Adult Social Care and Health,ASCH,Third Party Payments,EGA,09/06/2014,03-16030,525,Norsaca Society Office,,,,,,,,,,,
Nottinghamshire County Council,1111/1001,Adult Social Care and Health,ASCH,Income,JDA,09/06/2014,03-10041,1398.51,Not assigned,,,,,,,,,,,
Nottinghamshire County Council,1111/1001,Adult Social Care and Health,ASCH,Income,JDA,09/06/2014,03-10042,1405.29,Not assigned,,,,,,,,,,,
Nottinghamshire County Council,1111/1001,Adult Social Care and Health,ASCH,Income,JDA,09/06/2014,03-10043,1007.95,Not assigned,,,,,,,,,,,
Nottinghamshire County Council,1111/1001,Adult Social Care and Health,ASCH,Income,JDA,09/06/2014,03-10044,667.21,Not assigned,,,,,,,,,,,
Nottinghamshire County Council,1111/1001,Highways,HIGHWAYS,Transport Related,CCA,09/06/2014,03-16050,3857.5,Nottingham Minibuses & Coaches,,,,,,,,,,,
Nottinghamshire County Council,1111/1001,Highways,HIGHWAYS,Transport Related,CCA,09/06/2014,03-16040,175000,Nottm City Transport Ltd,,,,,,,,,,,
Nottinghamshire County Council,1111/1001,Adult Social Care and Health,ASCH,Third Party Payments,EGA,09/06/2014,03-10694,2174.42,Nottm Community Housing Assoc,,,,,,,,,,,
Nottinghamshire County Council,1111/1001,Adult Social Care and Health,ASCH,Third Party Payments,EGA,09/06/2014,03-10751,3526.95,Oak View Care Home,,,,,,,,,,,
Nottinghamshire County Council,1111/1001,Adult Social Care and Health,ASCH,Third Party Payments,ECA,09/06/2014,03-10702,110.89,Oaks Care Centre,,,,,,,,,,,
Nottinghamshire County Council,1111/1001,Adult Social Care and Health,ASCH,Third Party Payments,EGA,09/06/2014,03-10702,551,Oaks Care Centre,,,,,,,,,,,
Nottinghamshire County Council,1111/1001,Highways,HIGHWAYS,Transport Related,CCA,09/06/2014,03-16042,676.25,Our Centre,,,,,,,,,,,
Nottinghamshire County Council,1111/1001,Highways,HIGHWAYS,Transport Related,CCA,09/06/2014,03-16039,820,P C Coaches Of Lincoln Ltd,,,,,,,,,,,
Nottinghamshire County Council,1111/1001,Adult Social Care and Health,ASCH,Third Party Payments,EGA,09/06/2014,03-10734,850,Pathfinders Neurological Care Centr,,,,,,,,,,,
Nottinghamshire County Council,1111/1001,Adult Social Care and Health,ASCH,Third Party Payments,EGA,09/06/2014,03-10739,695.06,Portland Residential College,,,,,,,,,,,
Nottinghamshire County Council,1111/1001,Adult Social Care and Health,ASCH,Third Party Payments,EGA,09/06/2014,03-10740,3929.38,Portland Residential College,,,,,,,,,,,
Nottinghamshire County Council,1111/1001,Adult Social Care and Health,ASCH,Third Party Payments,EHA,09/06/2014,03-16006,29914.92,Rainbow Care Services Ltd,,,,,,,,,,,
Nottinghamshire County Council,1111/1001,Planning and Development,PLAN_DEV,Supplies & Services,DHA,09/06/2014,03-10679,5500,Reach Learning Disability,,,,,,,,,,,
Nottinghamshire County Council,1111/1001,Children and Young People,CYP,Supplies & Services,DKA,09/06/2014,03-10472,650,Redacted,,,,,,,,,,,
Nottinghamshire County Council,1111/1001,Adult Social Care and Health,ASCH,Supplies & Services,DHA,09/06/2014,03-10678,26000,Rushcliffe Community & Vol Serv,,,,,,,,,,,
Nottinghamshire County Council,1111/1001,Planning and Development,PLAN_DEV,Supplies & Services,DHA,09/06/2014,03-10675,640,Saplings Stay & Play,,,,,,,,,,,
Nottinghamshire County Council,1111/1001,Corporate Management,CORP_MAGT,Supplies & Services,DEA,09/06/2014,03-16035,4650,Second Element Ltd,,,,,,,,,,,
Nottinghamshire County Council,1111/1001,Adult Social Care and Health,ASCH,Third Party Payments,EGA,09/06/2014,03-10728,3533.28,Seely Hirst House,,,,,,,,,,,
Nottinghamshire County Council,1111/1001,Insurance Revenue,INSURANCE,Supplies & Services,DEA,09/06/2014,03-10683,562.5,Shakespeares Legal Llp,,,,,,,,,,,
Nottinghamshire County Council,1111/1001,Insurance Revenue,INSURANCE,Supplies & Services,DKA,09/06/2014,03-10685,4533.5,Shakespeares Legal Llp,,,,,,,,,,,
Nottinghamshire County Council,1111/1001,Insurance Revenue,INSURANCE,Supplies & Services,DKA,09/06/2014,03-10691,942,Shakespeares Legal Llp,,,,,,,,,,,
Nottinghamshire County Council,1111/1001,Adult Social Care and Health,ASCH,Third Party Payments,ECA,09/06/2014,03-10750,633.66,Sherwood Court Care Home,,,,,,,,,,,
Nottinghamshire County Council,1111/1001,Adult Social Care and Health,ASCH,Third Party Payments,EGA,09/06/2014,03-10750,11386.14,Sherwood Court Care Home,,,,,,,,,,,
Nottinghamshire County Council,1111/1001,Adult Social Care and Health,ASCH,Third Party Payments,EGA,09/06/2014,03-10701,2987.86,Silverwood Care Home,,,,,,,,,,,
Nottinghamshire County Council,1111/1001,Adult Social Care and Health,ASCH,Third Party Payments,EGA,09/06/2014,03-10717,1413,Southmoor Lodge,,,,,,,,,,,
Nottinghamshire County Council,1111/1001,Adult Social Care and Health,ASCH,Third Party Payments,EGA,09/06/2014,03-10730,685.29,St Saviours Care Home,,,,,,,,,,,
Nottinghamshire County Council,1111/1001,Highways,HIGHWAYS,Transport Related,CCA,09/06/2014,03-16048,284202,Stagecoach Services Ltd,,,,,,,,,,,
Nottinghamshire County Council,1111/1001,Planning and Development,PLAN_DEV,Supplies & Services,DHA,09/06/2014,03-10680,6250,The Helpful Bureau,,,,,,,,,,,
Nottinghamshire County Council,1111/1001,Adult Social Care and Health,ASCH,Third Party Payments,EGA,09/06/2014,03-10733,1142.4,The Oaklands Residential Home,,,,,,,,,,,
Nottinghamshire County Council,1111/1001,Adult Social Care and Health,ASCH,Third Party Payments,EGA,09/06/2014,03-10720,1413,The Troc Residential Home,,,,,,,,,,,
Nottinghamshire County Council,1111/1001,Highways,HIGHWAYS,Transport Related,CCA,09/06/2014,03-16051,38227.17,Tramlink Nottingham Ltd,,,,,,,,,,,
Nottinghamshire County Council,1111/1001,Highways,HIGHWAYS,Transport Related,CCA,09/06/2014,03-16049,9585,Travel Wright Ltd,,,,,,,,,,,
Nottinghamshire County Council,1111/1001,Highways,HIGHWAYS,Transport Related,CCA,09/06/2014,03-16041,250000,Trent Motor Traction Company Ltd,,,,,,,,,,,
Nottinghamshire County Council,1111/1001,Surplus or Deficit from Trading Undertak,TRADING,Supplies & Services,DAA,09/06/2014,03-15895,2084.68,Urbis Lighting Ltd,,,,,,,,,,,
Nottinghamshire County Council,1111/1001,Surplus or Deficit from Trading Undertak,TRADING,Premises Related,BJA,09/06/2014,03-16032,876.1,Wastecycle Ltd,,,,,,,,,,,
Nottinghamshire County Council,1111/1001,Surplus or Deficit from Trading Undertak,TRADING,Premises Related,BJA,09/06/2014,03-16033,876.1,Wastecycle Ltd,,,,,,,,,,,
Nottinghamshire County Council,1111/1001,Surplus or Deficit from Trading Undertak,TRADING,Premises Related,BJA,09/06/2014,03-16034,876.1,Wastecycle Ltd,,,,,,,,,,,
Nottinghamshire County Council,1111/1001,Surplus or Deficit from Trading Undertak,TRADING,Premises Related,BJA,09/06/2014,03-16058,715.36,Wastecycle Ltd,,,,,,,,,,,
Nottinghamshire County Council,1111/1001,Adult Social Care and Health,ASCH,Third Party Payments,EGA,09/06/2014,03-10735,923.15,West Hallam Residential Home,,,,,,,,,,,
Nottinghamshire County Council,1111/1001,Adult Social Care and Health,ASCH,Third Party Payments,EGA,09/06/2014,03-10752,3910.71,Western Mount Lodge Ltd,,,,,,,,,,,
Nottinghamshire County Council,1111/1001,Adult Social Care and Health,ASCH,Third Party Payments,ECA,09/06/2014,03-10738,221.78,Westvilla Nursing Home,,,,,,,,,,,
Nottinghamshire County Council,1111/1001,Adult Social Care and Health,ASCH,Third Party Payments,EGA,09/06/2014,03-10737,1491,Westvilla Nursing Home,,,,,,,,,,,
Nottinghamshire County Council,1111/1001,Adult Social Care and Health,ASCH,Third Party Payments,EGA,09/06/2014,03-10738,1102,Westvilla Nursing Home,,,,,,,,,,,
Nottinghamshire County Council,1111/1001,Adult Social Care and Health,ASCH,Third Party Payments,EGA,09/06/2014,03-10744,852,Westwood,,,,,,,,,,,
Nottinghamshire County Council,1111/1001,Adult Social Care and Health,ASCH,Third Party Payments,EGA,09/06/2014,03-10745,1775,Westwood,,,,,,,,,,,
Nottinghamshire County Council,1111/1001,Adult Social Care and Health,ASCH,Third Party Payments,EGA,09/06/2014,03-10746,1420,Westwood,,,,,,,,,,,
Nottinghamshire County Council,1111/1001,Adult Social Care and Health,ASCH,Third Party Payments,EGA,09/06/2014,03-10747,568,Westwood,,,,,,,,,,,
Nottinghamshire County Council,1111/1001,Libraries,LIBRARIES,Supplies & Services,DFA,10/06/2014,03-10789,2260.45,1st Callcom Ltd,,,,,,,,,,,
Nottinghamshire County Council,1111/1001,Surplus or Deficit from Trading Undertak,TRADING,Supplies & Services,DEA,10/06/2014,03-15971,1300,Andy Portlock Tree Specialists Ltd,,,,,,,,,,,
Nottinghamshire County Council,1111/1001,Libraries,LIBRARIES,Supplies & Services,DAA,10/06/2014,03-10782,574.53,Askews & Holts Library Services Ltd,,,,,,,,,,,
Nottinghamshire County Council,1111/1001,Libraries,LIBRARIES,Supplies & Services,DAA,10/06/2014,03-10783,511.24,Askews & Holts Library Services Ltd,,,,,,,,,,,
Nottinghamshire County Council,1111/1001,Libraries,LIBRARIES,Supplies & Services,DAA,10/06/2014,03-10784,646.31,Askews & Holts Library Services Ltd,,,,,,,,,,,
Nottinghamshire County Council,1111/1001,Libraries,LIBRARIES,Supplies & Services,DEA,10/06/2014,03-10782,20.25,Askews & Holts Library Services Ltd,,,,,,,,,,,
Nottinghamshire County Council,1111/1001,Libraries,LIBRARIES,Supplies & Services,DEA,10/06/2014,03-10783,24.75,Askews & Holts Library Services Ltd,,,,,,,,,,,
Nottinghamshire County Council,1111/1001,Libraries,LIBRARIES,Supplies & Services,DEA,10/06/2014,03-10784,37.75,Askews & Holts Library Services Ltd,,,,,,,,,,,
Nottinghamshire County Council,1111/1001,Children and Young People,CYP,Premises Related,BDA,10/06/2014,03-10024,4600,Bauland Properties Limited,,,,,,,,,,,
Nottinghamshire County Council,1111/1001,Surplus or Deficit from Trading Undertak,TRADING,Supplies & Services,DBA,10/06/2014,03-10765,17070.69,Brake Bros Ltd,,,,,,,,,,,
Nottinghamshire County Council,1111/1001,Surplus or Deficit from Trading Undertak,TRADING,Supplies & Services,DBA,10/06/2014,03-10766,21859.48,Brake Bros Ltd,,,,,,,,,,,
Nottinghamshire County Council,1111/1001,Surplus or Deficit from Trading Undertak,TRADING,Supplies & Services,DBA,10/06/2014,03-10767,22816.45,Brake Bros Ltd,,,,,,,,,,,
Nottinghamshire County Council,1111/1001,Surplus or Deficit from Trading Undertak,TRADING,Supplies & Services,DBA,10/06/2014,03-10768,20879.72,Brake Bros Ltd,,,,,,,,,,,
Nottinghamshire County Council,1111/1001,Insurance Revenue,INSURANCE,Supplies & Services,DEA,10/06/2014,03-10775,1899.93,Browne Jacobson Llp,,,,,,,,,,,
Nottinghamshire County Council,1111/1001,Insurance Revenue,INSURANCE,Supplies & Services,DKA,10/06/2014,03-10776,7225,Chance Hunter Solicitors LLP,,,,,,,,,,,
Nottinghamshire County Council,1111/1001,Highways,HIGHWAYS,Supplies & Services,DEA,10/06/2014,03-16083,3810.97,Chipside Ltd,,,,,,,,,,,
Nottinghamshire County Council,1111/1001,Surplus or Deficit from Trading Undertak,TRADING,Premises Related,BAA,10/06/2014,03-16026,787.95,City Glass & Aluminium Limited,,,,,,,,,,,
Nottinghamshire County Council,1111/1001,Surplus or Deficit from Trading Undertak,TRADING,Supplies & Services,DAA,10/06/2014,03-16022,3500,CPL Nottingham Ltd,,,,,,,,,,,
Nottinghamshire County Council,1111/1001,Surplus or Deficit from Trading Undertak,TRADING,Supplies & Services,DEA,10/06/2014,03-15964,4979.68,D J & M Bower (Tarmac Roadsurfacing,,,,,,,,,,,
Nottinghamshire County Council,1111/1001,Insurance Revenue,INSURANCE,Supplies & Services,DKA,10/06/2014,03-10778,695,Department For Work & Pensions,,,,,,,,,,,
Nottinghamshire County Council,1111/1001,Corporate Management,CORP_MAGT,Supplies & Services,DEA,10/06/2014,03-16076,3970.88,Faithful & Gould,,,,,,,,,,,
Nottinghamshire County Council,1111/1001,Children and Young People,CYP,Supplies & Services,DKA,10/06/2014,03-10763,5000,Fountaindale Special School,,,,,,,,,,,
Nottinghamshire County Council,1111/1001,Children and Young People,CYP,Supplies & Services,DBA,10/06/2014,03-10764,277.96,Hallam Country Fresh Foods Ltd,,,,,,,,,,,
Nottinghamshire County Council,1111/1001,Adult Social Care and Health,ASCH,Supplies & Services,DBA,10/06/2014,03-10764,1474.13,Hallam Country Fresh Foods Ltd,,,,,,,,,,,
Nottinghamshire County Council,1111/1001,Leisure Services,LEISURE,Supplies & Services,DBA,10/06/2014,03-10764,1088.97,Hallam Country Fresh Foods Ltd,,,,,,,,,,,
Nottinghamshire County Council,1111/1001,Surplus or Deficit from Trading Undertak,TRADING,Supplies & Services,DBA,10/06/2014,03-10764,26228.4,Hallam Country Fresh Foods Ltd,,,,,,,,,,,
Nottinghamshire County Council,1111/1001,Children and Young People,CYP,Third Party Payments,EGA,10/06/2014,03-16057,24746.27,Hope Fostering Services Ltd,,,,,,,,,,,
Nottinghamshire County Council,1111/1001,Unallocated,UNALLOC.,Supplies & Services,DDA,10/06/2014,03-10771,758.16,Local World Ltd,,,,,,,,,,,
Nottinghamshire County Council,1111/1001,Unallocated,UNALLOC.,Supplies & Services,DDA,10/06/2014,03-10772,631.8,Local World Ltd,,,,,,,,,,,
Nottinghamshire County Council,1111/1001,Unallocated,UNALLOC.,Supplies & Services,DDA,10/06/2014,03-10773,505.44,Local World Ltd,,,,,,,,,,,
Nottinghamshire County Council,1111/1001,Unallocated,UNALLOC.,Supplies & Services,DDA,10/06/2014,03-10788,505.44,Local World Ltd,,,,,,,,,,,
Nottinghamshire County Council,1111/1001,Children and Young People,CYP,Third Party Payments,EDA,10/06/2014,03-10792,10987,Magnus Church of England Academy,,,,,,,,,,,
Nottinghamshire County Council,1111/1001,Children and Young People,CYP,Supplies & Services,DKA,10/06/2014,03-16054,4428.57,New Lifestyles,,,,,,,,,,,
Nottinghamshire County Council,1111/1001,Adult Social Care and Health,ASCH,Third Party Payments,EGA,10/06/2014,03-10755,1022.73,Nightingale Care Home,,,,,,,,,,,
Nottinghamshire County Council,1111/1001,Adult Social Care and Health,ASCH,Transport Related,CDA,10/06/2014,03-16069,600,Norsaca Society Office,,,,,,,,,,,
Nottinghamshire County Council,1111/1001,Adult Social Care and Health,ASCH,Income,JDA,10/06/2014,03-10052,9088.85,Not assigned,,,,,,,,,,,
Nottinghamshire County Council,1111/1001,Adult Social Care and Health,ASCH,Third Party Payments,EGA,10/06/2014,03-10794,7445.28,Perthyn,,,,,,,,,,,
Nottinghamshire County Council,1111/1001,Adult Social Care and Health,ASCH,Third Party Payments,EGA,10/06/2014,03-10795,6605.28,Perthyn,,,,,,,,,,,
Nottinghamshire County Council,1111/1001,Adult Social Care and Health,ASCH,Third Party Payments,EGA,10/06/2014,03-10796,9545.28,Perthyn,,,,,,,,,,,
Nottinghamshire County Council,1111/1001,Libraries,LIBRARIES,Supplies & Services,DEA,10/06/2014,03-16053,3400,Polymath,,,,,,,,,,,
Nottinghamshire County Council,1111/1001,Adult Social Care and Health,ASCH,Third Party Payments,EGA,10/06/2014,03-10756,1274.13,Portland Residential College,,,,,,,,,,,
Nottinghamshire County Council,1111/1001,Corporate Management,CORP_MAGT,Supplies & Services,DEA,10/06/2014,03-16086,1100,Proactive Strategy Ltd,,,,,,,,,,,
Nottinghamshire County Council,1111/1001,Adult Social Care and Health,ASCH,Third Party Payments,EGA,10/06/2014,03-10507,1782.8,Rainbow Care Services Ltd,,,,,,,,,,,
Nottinghamshire County Council,1111/1001,Children and Young People,CYP,Supplies & Services,DKA,10/06/2014,03-10770,3600,REAL Independent School Ltd,,,,,,,,,,,
Nottinghamshire County Council,1111/1001,Children and Young People,CYP,Third Party Payments,EFA,10/06/2014,03-16073,44159,REAL Independent School Ltd,,,,,,,,,,,
Nottinghamshire County Council,1111/1001,Children and Young People,CYP,Third Party Payments,EHA,10/06/2014,03-16064,1948.25,Redacted,,,,,,,,,,,
Nottinghamshire County Council,1111/1001,Insurance Revenue,INSURANCE,Supplies & Services,DKA,10/06/2014,03-10779,5000,Redacted,,,,,,,,,,,
Nottinghamshire County Council,1111/1001,Corporate Management,CORP_MAGT,Supplies & Services,DEA,10/06/2014,03-16075,1532.5,Second Element Ltd,,,,,,,,,,,
Nottinghamshire County Council,1111/1001,Libraries,LIBRARIES,Supplies & Services,DCA,10/06/2014,03-16061,865.92,SL Clothing Ltd,,,,,,,,,,,
Nottinghamshire County Council,1111/1001,Adult Social Care and Health,ASCH,Third Party Payments,EGA,10/06/2014,03-10290,2385.34,Social Care Solutions Ltd,,,,,,,,,,,
Nottinghamshire County Council,1111/1001,Adult Social Care and Health,ASCH,Third Party Payments,EGA,10/06/2014,03-10291,2504.14,Social Care Solutions Ltd,,,,,,,,,,,
Nottinghamshire County Council,1111/1001,Children and Young People,CYP,Employee Related,ABA,10/06/2014,03-16066,870,The Dyslexia Ass,,,,,,,,,,,
Nottinghamshire County Council,1111/1001,Children and Young People,CYP,Third Party Payments,EGA,10/06/2014,03-16055,98020.65,The National Fostering Agency,,,,,,,,,,,
Nottinghamshire County Council,1111/1001,Adult Social Care and Health,ASCH,Third Party Payments,EGA,10/06/2014,03-10754,2488.2,Thera East Midlands,,,,,,,,,,,
Nottinghamshire County Council,1111/1001,Insurance Revenue,INSURANCE,Supplies & Services,DKA,10/06/2014,03-10777,7160,Thompsons,,,,,,,,,,,
Nottinghamshire County Council,1111/1001,Unallocated,UNALLOC.,Supplies & Services,DDA,10/06/2014,03-10774,634.37,Tsl Education Ltd,,,,,,,,,,,
Nottinghamshire County Council,1111/1001,Unallocated,UNALLOC.,Supplies & Services,DDA,10/06/2014,03-10786,634.37,Tsl Education Ltd,,,,,,,,,,,
Nottinghamshire County Council,1111/1001,Unallocated,UNALLOC.,Supplies & Services,DDA,10/06/2014,03-10787,634.37,Tsl Education Ltd,,,,,,,,,,,
Nottinghamshire County Council,1111/1001,Surplus or Deficit from Trading Undertak,TRADING,Third Party Payments,EBA,10/06/2014,03-16074,24950,Vaisala Tmi Ltd,,,,,,,,,,,
Nottinghamshire County Council,1111/1001,Corporate Management,CORP_MAGT,Supplies & Services,DFA,10/06/2014,03-10808,526.4,Virgin Media,,,,,,,,,,,
Nottinghamshire County Council,1111/1001,Corporate Management,CORP_MAGT,Supplies & Services,DFA,10/06/2014,03-10809,694.8,Virgin Media,,,,,,,,,,,
Nottinghamshire County Council,1111/1001,Corporate Management,CORP_MAGT,Supplies & Services,DFA,10/06/2014,03-10810,988.8,Virgin Media,,,,,,,,,,,
Nottinghamshire County Council,1111/1001,Corporate Management,CORP_MAGT,Supplies & Services,DFA,10/06/2014,03-10811,1824.7,Virgin Media,,,,,,,,,,,
Nottinghamshire County Council,1111/1001,Corporate Management,CORP_MAGT,Supplies & Services,DFA,10/06/2014,03-10812,4420,Vodafone Ltd (HO),,,,,,,,,,,
Nottinghamshire County Council,1111/1001,Surplus or Deficit from Trading Undertak,TRADING,Premises Related,BJA,10/06/2014,03-16063,539.96,Wastecycle Ltd,,,,,,,,,,,
Nottinghamshire County Council,1111/1001,Planning and Development,PLAN_DEV,Supplies & Services,DHA,10/06/2014,03-10790,500,Worksop Sea Cadets,,,,,,,,,,,
Nottinghamshire County Council,1111/1001,Corporate Management,CORP_MAGT,Supplies & Services,DAA,10/06/2014,03-10785,473.93,Xma Ltd,,,,,,,,,,,
Nottinghamshire County Council,1111/1001,Corporate Management,CORP_MAGT,Supplies & Services,DFA,10/06/2014,03-10785,41208.68,Xma Ltd,,,,,,,,,,,
Nottinghamshire County Council,1111/1001,Children and Young People,CYP,Support Services,HAA,11/06/2014,03-10825,640,A C Taxis,,,,,,,,,,,
Nottinghamshire County Council,1111/1001,Children and Young People,CYP,Transport Related,CDA,11/06/2014,03-10851,348,Aaeron Cars,,,,,,,,,,,
Nottinghamshire County Council,1111/1001,Children and Young People,CYP,Support Services,HAA,11/06/2014,03-10851,348,Aaeron Cars,,,,,,,,,,,
Nottinghamshire County Council,1111/1001,Adult Social Care and Health,ASCH,Transport Related,CCA,11/06/2014,03-10850,684.65,Aaeron Cars,,,,,,,,,,,
Nottinghamshire County Council,1111/1001,Adult Social Care and Health,ASCH,Transport Related,CCA,11/06/2014,03-10852,559.93,Aaeron Cars,,,,,,,,,,,
Nottinghamshire County Council,1111/1001,Children and Young People,CYP,Transport Related,CCA,11/06/2014,03-10876,1882.5,Abacus Cars,,,,,,,,,,,
Nottinghamshire County Council,1111/1001,Children and Young People,CYP,Transport Related,CCA,11/06/2014,03-10877,1683,Abacus Cars,,,,,,,,,,,
Nottinghamshire County Council,1111/1001,Children and Young People,CYP,Transport Related,CCA,11/06/2014,03-10878,1377,Abacus Cars,,,,,,,,,,,
Nottinghamshire County Council,1111/1001,Children and Young People,CYP,Transport Related,CCA,11/06/2014,03-10879,1507.5,Abacus Cars,,,,,,,,,,,
Nottinghamshire County Council,1111/1001,Children and Young People,CYP,Transport Related,CCA,11/06/2014,03-10880,1224,Abacus Cars,,,,,,,,,,,
Nottinghamshire County Council,1111/1001,Children and Young People,CYP,Transport Related,CCA,11/06/2014,03-10881,1200,Abacus Cars,,,,,,,,,,,
Nottinghamshire County Council,1111/1001,Children and Young People,CYP,Transport Related,CCA,11/06/2014,03-10883,979.2,Abacus Cars,,,,,,,,,,,
Nottinghamshire County Council,1111/1001,Children and Young People,CYP,Transport Related,CDA,11/06/2014,03-10875,1050,Abacus Cars,,,,,,,,,,,
Nottinghamshire County Council,1111/1001,Adult Social Care and Health,ASCH,Transport Related,CBA,11/06/2014,03-10870,720,Abacus Cars,,,,,,,,,,,
Nottinghamshire County Council,1111/1001,Adult Social Care and Health,ASCH,Transport Related,CCA,11/06/2014,03-10867,920,Abacus Cars,,,,,,,,,,,
Nottinghamshire County Council,1111/1001,Adult Social Care and Health,ASCH,Transport Related,CCA,11/06/2014,03-10868,856.8,Abacus Cars,,,,,,,,,,,
Nottinghamshire County Council,1111/1001,Adult Social Care and Health,ASCH,Transport Related,CCA,11/06/2014,03-10869,1370.88,Abacus Cars,,,,,,,,,,,
Nottinghamshire County Council,1111/1001,Adult Social Care and Health,ASCH,Transport Related,CCA,11/06/2014,03-10871,522.24,Abacus Cars,,,,,,,,,,,
Nottinghamshire County Council,1111/1001,Adult Social Care and Health,ASCH,Transport Related,CCA,11/06/2014,03-10872,1534.08,Abacus Cars,,,,,,,,,,,
Nottinghamshire County Council,1111/1001,Adult Social Care and Health,ASCH,Transport Related,CCA,11/06/2014,03-10873,1836,Abacus Cars,,,,,,,,,,,
Nottinghamshire County Council,1111/1001,Adult Social Care and Health,ASCH,Transport Related,CCA,11/06/2014,03-10874,520,Abacus Cars,,,,,,,,,,,
Nottinghamshire County Council,1111/1001,Adult Social Care and Health,ASCH,Transport Related,CCA,11/06/2014,03-10882,659.8,Abacus Cars,,,,,,,,,,,
Nottinghamshire County Council,1111/1001,Insurance Revenue,INSURANCE,Supplies & Services,DKA,11/06/2014,03-10821,2500,Accountant General of the Senior Co,,,,,,,,,,,
Nottinghamshire County Council,1111/1001,Children and Young People,CYP,Transport Related,CCA,11/06/2014,03-10999,1309.76,Ace Cars,,,,,,,,,,,
Nottinghamshire County Council,1111/1001,Children and Young People,CYP,Transport Related,CCA,11/06/2014,03-11000,1335.2,Ace Cars,,,,,,,,,,,
Nottinghamshire County Council,1111/1001,Children and Young People,CYP,Support Services,HAA,11/06/2014,03-10837,950.4,Acorn Contracts,,,,,,,,,,,
Nottinghamshire County Council,1111/1001,Corporate Management,CORP_MAGT,Premises Related,BFA,11/06/2014,03-11017,594.18,Anglian Water,,,,,,,,,,,
Nottinghamshire County Council,1111/1001,Children and Young People,CYP,Support Services,HAA,11/06/2014,03-10836,1810.3,Arnold Acorn Travel,,,,,,,,,,,
Nottinghamshire County Council,1111/1001,Surplus or Deficit from Trading Undertak,TRADING,Supplies & Services,DAA,11/06/2014,03-10001,531.87,Artstraws,,,,,,,,,,,
Nottinghamshire County Council,1111/1001,Libraries,LIBRARIES,Supplies & Services,DAA,11/06/2014,03-11021,724.78,Askews & Holts Library Services Ltd,,,,,,,,,,,
Nottinghamshire County Council,1111/1001,Libraries,LIBRARIES,Supplies & Services,DAA,11/06/2014,03-11022,1209.94,Askews & Holts Library Services Ltd,,,,,,,,,,,
Nottinghamshire County Council,1111/1001,Adult Social Care and Health,ASCH,Third Party Payments,EGA,11/06/2014,03-16023,2520,Avon House Supportive Living,,,,,,,,,,,
Nottinghamshire County Council,1111/1001,Corporate Management,CORP_MAGT,Supplies & Services,DEA,11/06/2014,03-11018,602.5,Badgemaster Ltd,,,,,,,,,,,
Nottinghamshire County Council,1111/1001,Surplus or Deficit from Trading Undertak,TRADING,Supplies & Services,DAA,11/06/2014,03-10001,596.39,Bic U.K. Ltd,,,,,,,,,,,
Nottinghamshire County Council,1111/1001,Children and Young People,CYP,Supplies & Services,DBA,11/06/2014,03-11031,405.36,Brake Bros Ltd,,,,,,,,,,,
Nottinghamshire County Council,1111/1001,Children and Young People,CYP,Supplies & Services,DBA,11/06/2014,03-11033,93.66,Brake Bros Ltd,,,,,,,,,,,
Nottinghamshire County Council,1111/1001,Children and Young People,CYP,Supplies & Services,DBA,11/06/2014,03-11034,371.25,Brake Bros Ltd,,,,,,,,,,,
Nottinghamshire County Council,1111/1001,Adult Social Care and Health,ASCH,Supplies & Services,DBA,11/06/2014,03-11030,551.32,Brake Bros Ltd,,,,,,,,,,,
Nottinghamshire County Council,1111/1001,Adult Social Care and Health,ASCH,Supplies & Services,DBA,11/06/2014,03-11031,393.67,Brake Bros Ltd,,,,,,,,,,,
Nottinghamshire County Council,1111/1001,Adult Social Care and Health,ASCH,Supplies & Services,DBA,11/06/2014,03-11032,1082,Brake Bros Ltd,,,,,,,,,,,
Nottinghamshire County Council,1111/1001,Adult Social Care and Health,ASCH,Supplies & Services,DBA,11/06/2014,03-11033,1502.23,Brake Bros Ltd,,,,,,,,,,,
Nottinghamshire County Council,1111/1001,Adult Social Care and Health,ASCH,Supplies & Services,DBA,11/06/2014,03-11034,2192.2,Brake Bros Ltd,,,,,,,,,,,
Nottinghamshire County Council,1111/1001,Leisure Services,LEISURE,Supplies & Services,DBA,11/06/2014,03-11031,1031.79,Brake Bros Ltd,,,,,,,,,,,
Nottinghamshire County Council,1111/1001,Surplus or Deficit from Trading Undertak,TRADING,Supplies & Services,DBA,11/06/2014,03-11033,288.81,Brake Bros Ltd,,,,,,,,,,,
Nottinghamshire County Council,1111/1001,Surplus or Deficit from Trading Undertak,TRADING,Supplies & Services,DBA,11/06/2014,03-11034,210.96,Brake Bros Ltd,,,,,,,,,,,
Nottinghamshire County Council,1111/1001,Children and Young People,CYP,Supplies & Services,DKA,11/06/2014,03-11020,900,Carlton Digby School,,,,,,,,,,,
Nottinghamshire County Council,1111/1001,Corporate Management,CORP_MAGT,Supplies & Services,DEA,11/06/2014,03-16102,566.25,Carter Brown Ltd,,,,,,,,,,,
Nottinghamshire County Council,1111/1001,Corporate Management,CORP_MAGT,Supplies & Services,DEA,11/06/2014,03-16103,1170,Carter Brown Ltd,,,,,,,,,,,
Nottinghamshire County Council,1111/1001,Surplus or Deficit from Trading Undertak,TRADING,Supplies & Services,DAA,11/06/2014,03-10001,2956,Catering Supplies (Wakefield) Ltd,,,,,,,,,,,
Nottinghamshire County Council,1111/1001,Environmental,ENVIRON,Supplies & Services,DEA,11/06/2014,03-11016,3000,Clipstone Colliery Regeneration Gro,,,,,,,,,,,
Nottinghamshire County Council,1111/1001,Children and Young People,CYP,Support Services,HAA,11/06/2014,03-11002,928.12,Cotswold CVS Trading Ltd,,,,,,,,,,,
Nottinghamshire County Council,1111/1001,Adult Social Care and Health,ASCH,Transport Related,CBA,11/06/2014,03-11001,4548.95,Cotswold CVS Trading Ltd,,,,,,,,,,,
Nottinghamshire County Council,1111/1001,Highways,HIGHWAYS,Transport Related,CCA,11/06/2014,03-11001,1949.55,Cotswold CVS Trading Ltd,,,,,,,,,,,
Nottinghamshire County Council,1111/1001,Highways,HIGHWAYS,Transport Related,CCA,11/06/2014,03-11002,3712.51,Cotswold CVS Trading Ltd,,,,,,,,,,,
Nottinghamshire County Council,1111/1001,Adult Social Care and Health,ASCH,Third Party Payments,EGA,11/06/2014,03-16120,14606.67,Crossroads Care East Midlands,,,,,,,,,,,
Nottinghamshire County Council,1111/1001,Adult Social Care and Health,ASCH,Third Party Payments,EGA,11/06/2014,03-16121,14606.67,Crossroads Care East Midlands,,,,,,,,,,,
Nottinghamshire County Council,1111/1001,Adult Social Care and Health,ASCH,Third Party Payments,EGA,11/06/2014,03-16122,14606.67,Crossroads Care East Midlands,,,,,,,,,,,
Nottinghamshire County Council,1111/1001,Adult Social Care and Health,ASCH,Third Party Payments,EGA,11/06/2014,03-16123,14606.67,Crossroads Care East Midlands,,,,,,,,,,,
Nottinghamshire County Council,1111/1001,Adult Social Care and Health,ASCH,Third Party Payments,EGA,11/06/2014,03-16124,14606.67,Crossroads Care East Midlands,,,,,,,,,,,
Nottinghamshire County Council,1111/1001,Children and Young People,CYP,Transport Related,CDA,11/06/2014,03-10857,650,D G Private Hire Ltd,,,,,,,,,,,
Nottinghamshire County Council,1111/1001,Children and Young People,CYP,Transport Related,CDA,11/06/2014,03-10861,1470,D G Private Hire Ltd,,,,,,,,,,,
Nottinghamshire County Council,1111/1001,Children and Young People,CYP,Transport Related,CDA,11/06/2014,03-10864,520,D G Private Hire Ltd,,,,,,,,,,,
Nottinghamshire County Council,1111/1001,Children and Young People,CYP,Transport Related,CDA,11/06/2014,03-10866,700,D G Private Hire Ltd,,,,,,,,,,,
Nottinghamshire County Council,1111/1001,Children and Young People,CYP,Support Services,HAA,11/06/2014,03-10853,1120,D G Private Hire Ltd,,,,,,,,,,,
Nottinghamshire County Council,1111/1001,Children and Young People,CYP,Support Services,HAA,11/06/2014,03-10863,512,D G Private Hire Ltd,,,,,,,,,,,
Nottinghamshire County Council,1111/1001,Adult Social Care and Health,ASCH,Transport Related,CCA,11/06/2014,03-10854,526,D G Private Hire Ltd,,,,,,,,,,,
Nottinghamshire County Council,1111/1001,Adult Social Care and Health,ASCH,Transport Related,CCA,11/06/2014,03-10855,602.1,D G Private Hire Ltd,,,,,,,,,,,
Nottinghamshire County Council,1111/1001,Adult Social Care and Health,ASCH,Transport Related,CCA,11/06/2014,03-10858,550,D G Private Hire Ltd,,,,,,,,,,,
Nottinghamshire County Council,1111/1001,Adult Social Care and Health,ASCH,Transport Related,CCA,11/06/2014,03-10859,645,D G Private Hire Ltd,,,,,,,,,,,
Nottinghamshire County Council,1111/1001,Adult Social Care and Health,ASCH,Transport Related,CCA,11/06/2014,03-10860,552,D G Private Hire Ltd,,,,,,,,,,,
Nottinghamshire County Council,1111/1001,Adult Social Care and Health,ASCH,Transport Related,CCA,11/06/2014,03-10862,521.4,D G Private Hire Ltd,,,,,,,,,,,
Nottinghamshire County Council,1111/1001,Adult Social Care and Health,ASCH,Transport Related,CCA,11/06/2014,03-10865,516,D G Private Hire Ltd,,,,,,,,,,,
Nottinghamshire County Council,1111/1001,Adult Social Care and Health,ASCH,Transport Related,CDA,11/06/2014,03-10856,587.1,D G Private Hire Ltd,,,,,,,,,,,
Nottinghamshire County Council,1111/1001,Surplus or Deficit from Trading Undertak,TRADING,Supplies & Services,DAA,11/06/2014,03-10001,505.74,Denis Rawlins Ltd,,,,,,,,,,,
Nottinghamshire County Council,1111/1001,Insurance Revenue,INSURANCE,Supplies & Services,DKA,11/06/2014,03-10822,615,Department For Work & Pensions,,,,,,,,,,,
Nottinghamshire County Council,1111/1001,Children and Young People,CYP,Support Services,HAA,11/06/2014,03-10998,533.28,Direct Cars (Lincoln) Ltd,,,,,,,,,,,
Nottinghamshire County Council,1111/1001,Surplus or Deficit from Trading Undertak,TRADING,Premises Related,BJA,11/06/2014,03-10001,759,Dri-Pack Ltd,,,,,,,,,,,
Nottinghamshire County Council,1111/1001,Surplus or Deficit from Trading Undertak,TRADING,Supplies & Services,DAA,11/06/2014,03-10001,629.1,Dualit Ltd,,,,,,,,,,,
Nottinghamshire County Council,1111/1001,Children and Young People,CYP,Third Party Payments,EGA,11/06/2014,03-16090,44952.14,Esland North Ltd,,,,,,,,,,,
Nottinghamshire County Council,1111/1001,Surplus or Deficit from Trading Undertak,TRADING,Premises Related,BAA,11/06/2014,03-10001,1771.24,Flexiform Business Furniture,,,,,,,,,,,
Nottinghamshire County Council,1111/1001,Insurance Revenue,INSURANCE,Supplies & Services,DKA,11/06/2014,03-10820,5350,Fraser Brown Solicitors,,,,,,,,,,,
Nottinghamshire County Council,1111/1001,Adult Social Care and Health,ASCH,Third Party Payments,EGA,11/06/2014,03-16013,2014.29,Freeways,,,,,,,,,,,
Nottinghamshire County Council,1111/1001,Corporate Management,CORP_MAGT,Supplies & Services,DEA,11/06/2014,03-15990,924.63,"Futures Advice, Skills & Employment",,,,,,,,,,,
Nottinghamshire County Council,1111/1001,Children and Young People,CYP,Support Services,HAA,11/06/2014,03-10884,1404.75,Garys Coaches Ltd,,,,,,,,,,,
Nottinghamshire County Council,1111/1001,Children and Young People,CYP,Support Services,HAA,11/06/2014,03-10885,1701.15,Garys Coaches Ltd,,,,,,,,,,,
Nottinghamshire County Council,1111/1001,Children and Young People,CYP,Support Services,HAA,11/06/2014,03-10886,1633.44,Garys Coaches Ltd,,,,,,,,,,,
Nottinghamshire County Council,1111/1001,Children and Young People,CYP,Support Services,HAA,11/06/2014,03-10887,1940.44,Garys Coaches Ltd,,,,,,,,,,,
Nottinghamshire County Council,1111/1001,Corporate Management,CORP_MAGT,Supplies & Services,DEA,11/06/2014,03-16088,990,Handling Movement & Ergonomics,,,,,,,,,,,
Nottinghamshire County Council,1111/1001,Children and Young People,CYP,Transport Related,CCA,11/06/2014,03-10838,1580.48,Headland Taxi Services,,,,,,,,,,,
Nottinghamshire County Council,1111/1001,Children and Young People,CYP,Transport Related,CCA,11/06/2014,03-10839,1150.72,Headland Taxi Services,,,,,,,,,,,
Nottinghamshire County Council,1111/1001,Children and Young People,CYP,Third Party Payments,EGA,11/06/2014,03-16080,3108.99,Hope Fostering Services Ltd,,,,,,,,,,,
Nottinghamshire County Council,1111/1001,Children and Young People,CYP,Third Party Payments,EGA,11/06/2014,03-16081,3321.43,Hope Fostering Services Ltd,,,,,,,,,,,
Nottinghamshire County Council,1111/1001,Children and Young People,CYP,Third Party Payments,EGA,11/06/2014,03-16082,3321.43,Hope Fostering Services Ltd,,,,,,,,,,,
Nottinghamshire County Council,1111/1001,Children and Young People,CYP,Third Party Payments,EGA,11/06/2014,03-16107,2357.14,Horizon Social Housing Ltd,,,,,,,,,,,
Nottinghamshire County Council,1111/1001,Adult Social Care and Health,ASCH,Third Party Payments,EGA,11/06/2014,03-16118,1083.36,Hucknall Hope Lea Project,,,,,,,,,,,
Nottinghamshire County Council,1111/1001,Adult Social Care and Health,ASCH,Third Party Payments,EGA,11/06/2014,03-16119,936.96,Hucknall Hope Lea Project,,,,,,,,,,,
Nottinghamshire County Council,1111/1001,Children and Young People,CYP,Transport Related,CCA,11/06/2014,03-11003,720,I Can Charity,,,,,,,,,,,
Nottinghamshire County Council,1111/1001,Children and Young People,CYP,Support Services,HAA,11/06/2014,03-10993,3672,Isle Coaches,,,,,,,,,,,
Nottinghamshire County Council,1111/1001,Unallocated,UNALLOC.,Supplies & Services,DDA,11/06/2014,03-16112,960,Jobsite,,,,,,,,,,,
Nottinghamshire County Council,1111/1001,Children and Young People,CYP,Transport Related,CCA,11/06/2014,03-10826,1571.84,Johnson Bros Tours Ltd,,,,,,,,,,,
Nottinghamshire County Council,1111/1001,Children and Young People,CYP,Transport Related,CCA,11/06/2014,03-10827,1875,Johnson Bros Tours Ltd,,,,,,,,,,,
Nottinghamshire County Council,1111/1001,Surplus or Deficit from Trading Undertak,TRADING,Premises Related,BJA,11/06/2014,03-10001,7791.56,Johnson Diversey,,,,,,,,,,,
Nottinghamshire County Council,1111/1001,Children and Young People,CYP,Support Services,HAA,11/06/2014,03-10888,1236.16,K & R Cars,,,,,,,,,,,
Nottinghamshire County Council,1111/1001,Surplus or Deficit from Trading Undertak,TRADING,Premises Related,BJA,11/06/2014,03-10001,1176,Macfarlane Group (Uk) Ltd,,,,,,,,,,,
Nottinghamshire County Council,1111/1001,Children and Young People,CYP,Transport Related,CCA,11/06/2014,03-10897,2509.65,Marshalls Of Sutton On Trent Ltd,,,,,,,,,,,
Nottinghamshire County Council,1111/1001,Children and Young People,CYP,Support Services,HAA,11/06/2014,03-10889,1529.85,Marshalls Of Sutton On Trent Ltd,,,,,,,,,,,
Nottinghamshire County Council,1111/1001,Children and Young People,CYP,Support Services,HAA,11/06/2014,03-10892,1948.69,Marshalls Of Sutton On Trent Ltd,,,,,,,,,,,
Nottinghamshire County Council,1111/1001,Children and Young People,CYP,Support Services,HAA,11/06/2014,03-10899,2647.5,Marshalls Of Sutton On Trent Ltd,,,,,,,,,,,
Nottinghamshire County Council,1111/1001,Children and Young People,CYP,Support Services,HAA,11/06/2014,03-10903,1836,Marshalls Of Sutton On Trent Ltd,,,,,,,,,,,
Nottinghamshire County Council,1111/1001,Children and Young People,CYP,Support Services,HAA,11/06/2014,03-10904,2225.28,Marshalls Of Sutton On Trent Ltd,,,,,,,,,,,
Nottinghamshire County Council,1111/1001,Highways,HIGHWAYS,Transport Related,CCA,11/06/2014,03-10890,3962.5,Marshalls Of Sutton On Trent Ltd,,,,,,,,,,,
Nottinghamshire County Council,1111/1001,Highways,HIGHWAYS,Transport Related,CCA,11/06/2014,03-10891,719.75,Marshalls Of Sutton On Trent Ltd,,,,,,,,,,,
Nottinghamshire County Council,1111/1001,Highways,HIGHWAYS,Transport Related,CCA,11/06/2014,03-10892,649.56,Marshalls Of Sutton On Trent Ltd,,,,,,,,,,,
Nottinghamshire County Council,1111/1001,Highways,HIGHWAYS,Transport Related,CCA,11/06/2014,03-10893,987.4,Marshalls Of Sutton On Trent Ltd,,,,,,,,,,,
Nottinghamshire County Council,1111/1001,Highways,HIGHWAYS,Transport Related,CCA,11/06/2014,03-10894,3857.25,Marshalls Of Sutton On Trent Ltd,,,,,,,,,,,
Nottinghamshire County Council,1111/1001,Highways,HIGHWAYS,Transport Related,CCA,11/06/2014,03-10895,2044.74,Marshalls Of Sutton On Trent Ltd,,,,,,,,,,,
Nottinghamshire County Council,1111/1001,Highways,HIGHWAYS,Transport Related,CCA,11/06/2014,03-10896,1457.1,Marshalls Of Sutton On Trent Ltd,,,,,,,,,,,
Nottinghamshire County Council,1111/1001,Highways,HIGHWAYS,Transport Related,CCA,11/06/2014,03-10898,1234.25,Marshalls Of Sutton On Trent Ltd,,,,,,,,,,,
Nottinghamshire County Council,1111/1001,Highways,HIGHWAYS,Transport Related,CCA,11/06/2014,03-10900,838.25,Marshalls Of Sutton On Trent Ltd,,,,,,,,,,,
Nottinghamshire County Council,1111/1001,Highways,HIGHWAYS,Transport Related,CCA,11/06/2014,03-10901,1252.75,Marshalls Of Sutton On Trent Ltd,,,,,,,,,,,
Nottinghamshire County Council,1111/1001,Highways,HIGHWAYS,Transport Related,CCA,11/06/2014,03-10902,2126.34,Marshalls Of Sutton On Trent Ltd,,,,,,,,,,,
Nottinghamshire County Council,1111/1001,Highways,HIGHWAYS,Transport Related,CCA,11/06/2014,03-10903,7344,Marshalls Of Sutton On Trent Ltd,,,,,,,,,,,
Nottinghamshire County Council,1111/1001,Adult Social Care and Health,ASCH,Transport Related,CBA,11/06/2014,03-10840,3246.2,Mct Uk Ltd,,,,,,,,,,,
Nottinghamshire County Council,1111/1001,Children and Young People,CYP,Support Services,HAA,11/06/2014,03-10905,1018.24,Meden Travel,,,,,,,,,,,
Nottinghamshire County Council,1111/1001,Surplus or Deficit from Trading Undertak,TRADING,Supplies & Services,DAA,11/06/2014,03-10001,674.58,Monarch Computer Furniture,,,,,,,,,,,
Nottinghamshire County Council,1111/1001,Highways,HIGHWAYS,Supplies & Services,DKA,11/06/2014,03-16098,10338.33,National Express Ltd,,,,,,,,,,,
Nottinghamshire County Council,1111/1001,Highways,HIGHWAYS,Supplies & Services,DKA,11/06/2014,03-16099,1116.12,National Express Ltd,,,,,,,,,,,
Nottinghamshire County Council,1111/1001,Children and Young People,CYP,Transport Related,CCA,11/06/2014,03-10841,480,Ng11 Cars,,,,,,,,,,,
Nottinghamshire County Council,1111/1001,Children and Young People,CYP,Transport Related,CDA,11/06/2014,03-10841,480,Ng11 Cars,,,,,,,,,,,
Nottinghamshire County Council,1111/1001,Children and Young People,CYP,Support Services,HAA,11/06/2014,03-10996,2527.31,Nottm City Transport Ltd,,,,,,,,,,,
Nottinghamshire County Council,1111/1001,Highways,HIGHWAYS,Transport Related,CCA,11/06/2014,03-10994,1936.86,Nottm City Transport Ltd,,,,,,,,,,,
Nottinghamshire County Council,1111/1001,Highways,HIGHWAYS,Transport Related,CCA,11/06/2014,03-10995,3894,Nottm City Transport Ltd,,,,,,,,,,,
Nottinghamshire County Council,1111/1001,Highways,HIGHWAYS,Transport Related,CCA,11/06/2014,03-10996,133.01,Nottm City Transport Ltd,,,,,,,,,,,
Nottinghamshire County Council,1111/1001,Highways,HIGHWAYS,Transport Related,CCA,11/06/2014,03-10997,10200,Nottm City Transport Ltd,,,,,,,,,,,
Nottinghamshire County Council,1111/1001,Children and Young People,CYP,Transport Related,CCA,11/06/2014,03-10906,1728,Nunns Cars,,,,,,,,,,,
Nottinghamshire County Council,1111/1001,Children and Young People,CYP,Transport Related,CCA,11/06/2014,03-10907,832.8,Nunns Cars,,,,,,,,,,,
Nottinghamshire County Council,1111/1001,Surplus or Deficit from Trading Undertak,TRADING,Supplies & Services,DAA,11/06/2014,03-10001,746.64,Office Innovations,,,,,,,,,,,
Nottinghamshire County Council,1111/1001,Surplus or Deficit from Trading Undertak,TRADING,Supplies & Services,DBA,11/06/2014,03-11029,5493.21,On A Roll Sandwich Company,,,,,,,,,,,
Nottinghamshire County Council,1111/1001,Adult Social Care and Health,ASCH,Transport Related,CCA,11/06/2014,03-10986,1134,P & P Taxis,,,,,,,,,,,
Nottinghamshire County Council,1111/1001,Non Distributed Costs,NON_DIST,Supplies & Services,DEA,11/06/2014,03-16092,2340,Paramount Security Services PS Ltd,,,,,,,,,,,
Nottinghamshire County Council,1111/1001,Children and Young People,CYP,Support Services,HAA,11/06/2014,03-10988,4429.26,Paul S Winson Coaches,,,,,,,,,,,
Nottinghamshire County Council,1111/1001,Children and Young People,CYP,Support Services,HAA,11/06/2014,03-10989,2641.54,Paul S Winson Coaches,,,,,,,,,,,
Nottinghamshire County Council,1111/1001,Children and Young People,CYP,Support Services,HAA,11/06/2014,03-10990,2243.52,Paul S Winson Coaches,,,,,,,,,,,
Nottinghamshire County Council,1111/1001,Highways,HIGHWAYS,Transport Related,CCA,11/06/2014,03-10989,139.02,Paul S Winson Coaches,,,,,,,,,,,
Nottinghamshire County Council,1111/1001,Highways,HIGHWAYS,Transport Related,CCA,11/06/2014,03-10990,16452.48,Paul S Winson Coaches,,,,,,,,,,,
Nottinghamshire County Council,1111/1001,Highways,HIGHWAYS,Transport Related,CCA,11/06/2014,03-10991,9382.25,Paul S Winson Coaches,,,,,,,,,,,
Nottinghamshire County Council,1111/1001,Surplus or Deficit from Trading Undertak,TRADING,Premises Related,BJA,11/06/2014,03-10001,2220.58,Premiere Products,,,,,,,,,,,
Nottinghamshire County Council,1111/1001,Surplus or Deficit from Trading Undertak,TRADING,Premises Related,BJA,11/06/2014,03-10001,1243.55,Premiere Products,,,,,,,,,,,
Nottinghamshire County Council,1111/1001,Surplus or Deficit from Trading Undertak,TRADING,Supplies & Services,DAA,11/06/2014,03-10001,1629.08,Ransome Sporting Goods Group Ltd,,,,,,,,,,,
Nottinghamshire County Council,1111/1001,Children and Young People,CYP,Transport Related,CCA,11/06/2014,03-10834,4023.9,Redfern Travel,,,,,,,,,,,
Nottinghamshire County Council,1111/1001,Children and Young People,CYP,Transport Related,CCA,11/06/2014,03-10835,1428,Redfern Travel,,,,,,,,,,,
Nottinghamshire County Council,1111/1001,Children and Young People,CYP,Support Services,HAA,11/06/2014,03-10828,12980.8,Redfern Travel,,,,,,,,,,,
Nottinghamshire County Council,1111/1001,Children and Young People,CYP,Support Services,HAA,11/06/2014,03-10829,2823.45,Redfern Travel,,,,,,,,,,,
Nottinghamshire County Council,1111/1001,Children and Young People,CYP,Support Services,HAA,11/06/2014,03-10830,1825,Redfern Travel,,,,,,,,,,,
Nottinghamshire County Council,1111/1001,Children and Young People,CYP,Support Services,HAA,11/06/2014,03-10831,1912.15,Redfern Travel,,,,,,,,,,,
Nottinghamshire County Council,1111/1001,Children and Young People,CYP,Support Services,HAA,11/06/2014,03-10832,2532,Redfern Travel,,,,,,,,,,,
Nottinghamshire County Council,1111/1001,Children and Young People,CYP,Support Services,HAA,11/06/2014,03-10833,8839.25,Redfern Travel,,,,,,,,,,,
Nottinghamshire County Council,1111/1001,Highways,HIGHWAYS,Transport Related,CCA,11/06/2014,03-10828,683.2,Redfern Travel,,,,,,,,,,,
Nottinghamshire County Council,1111/1001,Corporate Management,CORP_MAGT,Supplies & Services,DEA,11/06/2014,03-16096,4259.24,Robert Woodhead Limited,,,,,,,,,,,
Nottinghamshire County Council,1111/1001,Surplus or Deficit from Trading Undertak,TRADING,Supplies & Services,DAA,11/06/2014,03-10001,668,Rotatrim Ltd,,,,,,,,,,,
Nottinghamshire County Council,1111/1001,Highways,HIGHWAYS,Supplies & Services,DFA,11/06/2014,03-16084,1215.34,Royal Mail,,,,,,,,,,,
Nottinghamshire County Council,1111/1001,Surplus or Deficit from Trading Undertak,TRADING,Premises Related,BJA,11/06/2014,03-10001,535.05,Scot Young Research,,,,,,,,,,,
Nottinghamshire County Council,1111/1001,Surplus or Deficit from Trading Undertak,TRADING,Premises Related,BJA,11/06/2014,03-10001,636.69,Scot Young Research,,,,,,,,,,,
Nottinghamshire County Council,1111/1001,Insurance Revenue,INSURANCE,Supplies & Services,DKA,11/06/2014,03-10823,6500,Shacklocks Solicitors,,,,,,,,,,,
Nottinghamshire County Council,1111/1001,Children and Young People,CYP,Transport Related,CCA,11/06/2014,03-10842,880,Shelleys Taxis Ltd,,,,,,,,,,,
Nottinghamshire County Council,1111/1001,Children and Young People,CYP,Transport Related,CCA,11/06/2014,03-10843,1200,Shelleys Taxis Ltd,,,,,,,,,,,
Nottinghamshire County Council,1111/1001,Children and Young People,CYP,Transport Related,CCA,11/06/2014,03-10844,1036,Shelleys Taxis Ltd,,,,,,,,,,,
Nottinghamshire County Council,1111/1001,Children and Young People,CYP,Transport Related,CCA,11/06/2014,03-10845,660,Shelleys Taxis Ltd,,,,,,,,,,,
Nottinghamshire County Council,1111/1001,Children and Young People,CYP,Transport Related,CCA,11/06/2014,03-10846,720,Shelleys Taxis Ltd,,,,,,,,,,,
Nottinghamshire County Council,1111/1001,Children and Young People,CYP,Transport Related,CCA,11/06/2014,03-10848,540,Shelleys Taxis Ltd,,,,,,,,,,,
Nottinghamshire County Council,1111/1001,Children and Young People,CYP,Transport Related,CCA,11/06/2014,03-10849,1820,Shelleys Taxis Ltd,,,,,,,,,,,
Nottinghamshire County Council,1111/1001,Adult Social Care and Health,ASCH,Transport Related,CCA,11/06/2014,03-10847,721.28,Shelleys Taxis Ltd,,,,,,,,,,,
Nottinghamshire County Council,1111/1001,Children and Young People,CYP,Support Services,HAA,11/06/2014,03-10908,1836.3,Silverdale Tours Nottm Ltd,,,,,,,,,,,
Nottinghamshire County Council,1111/1001,Children and Young People,CYP,Support Services,HAA,11/06/2014,03-10909,2559.72,Silverdale Tours Nottm Ltd,,,,,,,,,,,
Nottinghamshire County Council,1111/1001,Children and Young People,CYP,Support Services,HAA,11/06/2014,03-10910,2160.46,Silverdale Tours Nottm Ltd,,,,,,,,,,,
Nottinghamshire County Council,1111/1001,Children and Young People,CYP,Support Services,HAA,11/06/2014,03-10911,1323.6,Silverdale Tours Nottm Ltd,,,,,,,,,,,
Nottinghamshire County Council,1111/1001,Children and Young People,CYP,Support Services,HAA,11/06/2014,03-10912,2483.4,Silverdale Tours Nottm Ltd,,,,,,,,,,,
Nottinghamshire County Council,1111/1001,Children and Young People,CYP,Support Services,HAA,11/06/2014,03-10913,2234.4,Silverdale Tours Nottm Ltd,,,,,,,,,,,
Nottinghamshire County Council,1111/1001,Children and Young People,CYP,Support Services,HAA,11/06/2014,03-10914,2657.54,Silverdale Tours Nottm Ltd,,,,,,,,,,,
Nottinghamshire County Council,1111/1001,Children and Young People,CYP,Support Services,HAA,11/06/2014,03-10915,1380.08,Silverdale Tours Nottm Ltd,,,,,,,,,,,
Nottinghamshire County Council,1111/1001,Children and Young People,CYP,Support Services,HAA,11/06/2014,03-10916,1727,Silverdale Tours Nottm Ltd,,,,,,,,,,,
Nottinghamshire County Council,1111/1001,Highways,HIGHWAYS,Transport Related,CCA,11/06/2014,03-10992,1283.8,Soar Valley Bus,,,,,,,,,,,
Nottinghamshire County Council,1111/1001,Children and Young People,CYP,Third Party Payments,EDA,11/06/2014,03-11026,24719,South Nottinghamshire Academy,,,,,,,,,,,
Nottinghamshire County Council,1111/1001,Children and Young People,CYP,Transport Related,CCA,11/06/2014,03-10925,2696.38,Stagecoach Services Ltd,,,,,,,,,,,
Nottinghamshire County Council,1111/1001,Children and Young People,CYP,Transport Related,CCA,11/06/2014,03-10926,1348.14,Stagecoach Services Ltd,,,,,,,,,,,
Nottinghamshire County Council,1111/1001,Children and Young People,CYP,Transport Related,CCA,11/06/2014,03-10927,1348.14,Stagecoach Services Ltd,,,,,,,,,,,
Nottinghamshire County Council,1111/1001,Children and Young People,CYP,Support Services,HAA,11/06/2014,03-10944,2530.94,Stagecoach Services Ltd,,,,,,,,,,,
Nottinghamshire County Council,1111/1001,Children and Young People,CYP,Support Services,HAA,11/06/2014,03-10945,995.29,Stagecoach Services Ltd,,,,,,,,,,,
Nottinghamshire County Council,1111/1001,Children and Young People,CYP,Support Services,HAA,11/06/2014,03-10960,3984.25,Stagecoach Services Ltd,,,,,,,,,,,
Nottinghamshire County Council,1111/1001,Children and Young People,CYP,Support Services,HAA,11/06/2014,03-10965,2314,Stagecoach Services Ltd,,,,,,,,,,,
Nottinghamshire County Council,1111/1001,Children and Young People,CYP,Support Services,HAA,11/06/2014,03-10966,3942.64,Stagecoach Services Ltd,,,,,,,,,,,
Nottinghamshire County Council,1111/1001,Children and Young People,CYP,Support Services,HAA,11/06/2014,03-10970,4141.84,Stagecoach Services Ltd,,,,,,,,,,,
Nottinghamshire County Council,1111/1001,Children and Young People,CYP,Support Services,HAA,11/06/2014,03-10971,4224.69,Stagecoach Services Ltd,,,,,,,,,,,
Nottinghamshire County Council,1111/1001,Children and Young People,CYP,Support Services,HAA,11/06/2014,03-10972,2422.31,Stagecoach Services Ltd,,,,,,,,,,,
Nottinghamshire County Council,1111/1001,Highways,HIGHWAYS,Transport Related,CCA,11/06/2014,03-10917,2634.5,Stagecoach Services Ltd,,,,,,,,,,,
Nottinghamshire County Council,1111/1001,Highways,HIGHWAYS,Transport Related,CCA,11/06/2014,03-10918,2946.78,Stagecoach Services Ltd,,,,,,,,,,,
Nottinghamshire County Council,1111/1001,Highways,HIGHWAYS,Transport Related,CCA,11/06/2014,03-10919,2511.75,Stagecoach Services Ltd,,,,,,,,,,,
Nottinghamshire County Council,1111/1001,Highways,HIGHWAYS,Transport Related,CCA,11/06/2014,03-10920,2225.75,Stagecoach Services Ltd,,,,,,,,,,,
Nottinghamshire County Council,1111/1001,Highways,HIGHWAYS,Transport Related,CCA,11/06/2014,03-10921,3112.27,Stagecoach Services Ltd,,,,,,,,,,,
Nottinghamshire County Council,1111/1001,Highways,HIGHWAYS,Transport Related,CCA,11/06/2014,03-10922,3246,Stagecoach Services Ltd,,,,,,,,,,,
Nottinghamshire County Council,1111/1001,Highways,HIGHWAYS,Transport Related,CCA,11/06/2014,03-10923,1947,Stagecoach Services Ltd,,,,,,,,,,,
Nottinghamshire County Council,1111/1001,Highways,HIGHWAYS,Transport Related,CCA,11/06/2014,03-10924,1402.75,Stagecoach Services Ltd,,,,,,,,,,,
Nottinghamshire County Council,1111/1001,Highways,HIGHWAYS,Transport Related,CCA,11/06/2014,03-10928,10211,Stagecoach Services Ltd,,,,,,,,,,,
Nottinghamshire County Council,1111/1001,Highways,HIGHWAYS,Transport Related,CCA,11/06/2014,03-10929,3315.25,Stagecoach Services Ltd,,,,,,,,,,,
Nottinghamshire County Council,1111/1001,Highways,HIGHWAYS,Transport Related,CCA,11/06/2014,03-10930,4641.5,Stagecoach Services Ltd,,,,,,,,,,,
Nottinghamshire County Council,1111/1001,Highways,HIGHWAYS,Transport Related,CCA,11/06/2014,03-10931,3315.25,Stagecoach Services Ltd,,,,,,,,,,,
Nottinghamshire County Council,1111/1001,Highways,HIGHWAYS,Transport Related,CCA,11/06/2014,03-10932,7930.25,Stagecoach Services Ltd,,,,,,,,,,,
Nottinghamshire County Council,1111/1001,Highways,HIGHWAYS,Transport Related,CCA,11/06/2014,03-10933,15334.75,Stagecoach Services Ltd,,,,,,,,,,,
Nottinghamshire County Council,1111/1001,Highways,HIGHWAYS,Transport Related,CCA,11/06/2014,03-10934,1566.75,Stagecoach Services Ltd,,,,,,,,,,,
Nottinghamshire County Council,1111/1001,Highways,HIGHWAYS,Transport Related,CCA,11/06/2014,03-10935,549.5,Stagecoach Services Ltd,,,,,,,,,,,
Nottinghamshire County Council,1111/1001,Highways,HIGHWAYS,Transport Related,CCA,11/06/2014,03-10936,1894.5,Stagecoach Services Ltd,,,,,,,,,,,
Nottinghamshire County Council,1111/1001,Highways,HIGHWAYS,Transport Related,CCA,11/06/2014,03-10937,1405.84,Stagecoach Services Ltd,,,,,,,,,,,
Nottinghamshire County Council,1111/1001,Highways,HIGHWAYS,Transport Related,CCA,11/06/2014,03-10938,1898.18,Stagecoach Services Ltd,,,,,,,,,,,
Nottinghamshire County Council,1111/1001,Highways,HIGHWAYS,Transport Related,CCA,11/06/2014,03-10939,2327.12,Stagecoach Services Ltd,,,,,,,,,,,
Nottinghamshire County Council,1111/1001,Highways,HIGHWAYS,Transport Related,CCA,11/06/2014,03-10940,679.59,Stagecoach Services Ltd,,,,,,,,,,,
Nottinghamshire County Council,1111/1001,Highways,HIGHWAYS,Transport Related,CCA,11/06/2014,03-10941,8171.5,Stagecoach Services Ltd,,,,,,,,,,,
Nottinghamshire County Council,1111/1001,Highways,HIGHWAYS,Transport Related,CCA,11/06/2014,03-10942,650.77,Stagecoach Services Ltd,,,,,,,,,,,
Nottinghamshire County Council,1111/1001,Highways,HIGHWAYS,Transport Related,CCA,11/06/2014,03-10943,2323.25,Stagecoach Services Ltd,,,,,,,,,,,
Nottinghamshire County Council,1111/1001,Highways,HIGHWAYS,Transport Related,CCA,11/06/2014,03-10945,1216.48,Stagecoach Services Ltd,,,,,,,,,,,
Nottinghamshire County Council,1111/1001,Highways,HIGHWAYS,Transport Related,CCA,11/06/2014,03-10946,1546.5,Stagecoach Services Ltd,,,,,,,,,,,
Nottinghamshire County Council,1111/1001,Highways,HIGHWAYS,Transport Related,CCA,11/06/2014,03-10947,1253,Stagecoach Services Ltd,,,,,,,,,,,
Nottinghamshire County Council,1111/1001,Highways,HIGHWAYS,Transport Related,CCA,11/06/2014,03-10948,520.5,Stagecoach Services Ltd,,,,,,,,,,,
Nottinghamshire County Council,1111/1001,Highways,HIGHWAYS,Transport Related,CCA,11/06/2014,03-10949,2113.25,Stagecoach Services Ltd,,,,,,,,,,,
Nottinghamshire County Council,1111/1001,Highways,HIGHWAYS,Transport Related,CCA,11/06/2014,03-10950,3871.5,Stagecoach Services Ltd,,,,,,,,,,,
Nottinghamshire County Council,1111/1001,Highways,HIGHWAYS,Transport Related,CCA,11/06/2014,03-10951,1231.58,Stagecoach Services Ltd,,,,,,,,,,,
Nottinghamshire County Council,1111/1001,Highways,HIGHWAYS,Transport Related,CCA,11/06/2014,03-10952,1083.5,Stagecoach Services Ltd,,,,,,,,,,,
Nottinghamshire County Council,1111/1001,Highways,HIGHWAYS,Transport Related,CCA,11/06/2014,03-10953,8568.75,Stagecoach Services Ltd,,,,,,,,,,,
Nottinghamshire County Council,1111/1001,Highways,HIGHWAYS,Transport Related,CCA,11/06/2014,03-10954,2713.5,Stagecoach Services Ltd,,,,,,,,,,,
Nottinghamshire County Council,1111/1001,Highways,HIGHWAYS,Transport Related,CCA,11/06/2014,03-10955,1251.6,Stagecoach Services Ltd,,,,,,,,,,,
Nottinghamshire County Council,1111/1001,Highways,HIGHWAYS,Transport Related,CCA,11/06/2014,03-10956,10437,Stagecoach Services Ltd,,,,,,,,,,,
Nottinghamshire County Council,1111/1001,Highways,HIGHWAYS,Transport Related,CCA,11/06/2014,03-10957,582.83,Stagecoach Services Ltd,,,,,,,,,,,
Nottinghamshire County Council,1111/1001,Highways,HIGHWAYS,Transport Related,CCA,11/06/2014,03-10958,3026.5,Stagecoach Services Ltd,,,,,,,,,,,
Nottinghamshire County Council,1111/1001,Highways,HIGHWAYS,Transport Related,CCA,11/06/2014,03-10959,1219.6,Stagecoach Services Ltd,,,,,,,,,,,
Nottinghamshire County Council,1111/1001,Highways,HIGHWAYS,Transport Related,CCA,11/06/2014,03-10960,18150.5,Stagecoach Services Ltd,,,,,,,,,,,
Nottinghamshire County Council,1111/1001,Highways,HIGHWAYS,Transport Related,CCA,11/06/2014,03-10961,6006.5,Stagecoach Services Ltd,,,,,,,,,,,
Nottinghamshire County Council,1111/1001,Highways,HIGHWAYS,Transport Related,CCA,11/06/2014,03-10962,1552.79,Stagecoach Services Ltd,,,,,,,,,,,
Nottinghamshire County Council,1111/1001,Highways,HIGHWAYS,Transport Related,CCA,11/06/2014,03-10963,2391.25,Stagecoach Services Ltd,,,,,,,,,,,
Nottinghamshire County Council,1111/1001,Highways,HIGHWAYS,Transport Related,CCA,11/06/2014,03-10964,1290.47,Stagecoach Services Ltd,,,,,,,,,,,
Nottinghamshire County Council,1111/1001,Highways,HIGHWAYS,Transport Related,CCA,11/06/2014,03-10965,9256,Stagecoach Services Ltd,,,,,,,,,,,
Nottinghamshire County Council,1111/1001,Highways,HIGHWAYS,Transport Related,CCA,11/06/2014,03-10966,19249.36,Stagecoach Services Ltd,,,,,,,,,,,
Nottinghamshire County Council,1111/1001,Highways,HIGHWAYS,Transport Related,CCA,11/06/2014,03-10967,1212.9,Stagecoach Services Ltd,,,,,,,,,,,
Nottinghamshire County Council,1111/1001,Highways,HIGHWAYS,Transport Related,CCA,11/06/2014,03-10968,8578.5,Stagecoach Services Ltd,,,,,,,,,,,
Nottinghamshire County Council,1111/1001,Highways,HIGHWAYS,Transport Related,CCA,11/06/2014,03-10969,20247.1,Stagecoach Services Ltd,,,,,,,,,,,
Nottinghamshire County Council,1111/1001,Corporate Management,CORP_MAGT,Supplies & Services,DEA,11/06/2014,03-16093,1412.5,Sterilizing Services,,,,,,,,,,,
Nottinghamshire County Council,1111/1001,Corporate Management,CORP_MAGT,Supplies & Services,DEA,11/06/2014,03-16094,1412.5,Sterilizing Services,,,,,,,,,,,
Nottinghamshire County Council,1111/1001,Children and Young People,CYP,Third Party Payments,EDA,11/06/2014,03-11024,24719,The Becket Catholic Voluntary Acade,,,,,,,,,,,
Nottinghamshire County Council,1111/1001,Children and Young People,CYP,Third Party Payments,EDA,11/06/2014,03-11025,24719,The South Wolds Academy & Sixth For,,,,,,,,,,,
Nottinghamshire County Council,1111/1001,Adult Social Care and Health,ASCH,Third Party Payments,EGA,11/06/2014,03-11004,805.8,Thera East Midlands,,,,,,,,,,,
Nottinghamshire County Council,1111/1001,Adult Social Care and Health,ASCH,Third Party Payments,EGA,11/06/2014,03-11005,652.8,Thera East Midlands,,,,,,,,,,,
Nottinghamshire County Council,1111/1001,Adult Social Care and Health,ASCH,Third Party Payments,EGA,11/06/2014,03-11006,902.7,Thera East Midlands,,,,,,,,,,,
Nottinghamshire County Council,1111/1001,Adult Social Care and Health,ASCH,Third Party Payments,EGA,11/06/2014,03-11007,652.8,Thera East Midlands,,,,,,,,,,,
Nottinghamshire County Council,1111/1001,Adult Social Care and Health,ASCH,Third Party Payments,EGA,11/06/2014,03-11008,902.7,Thera East Midlands,,,,,,,,,,,
Nottinghamshire County Council,1111/1001,Adult Social Care and Health,ASCH,Third Party Payments,EGA,11/06/2014,03-11009,718.08,Thera East Midlands,,,,,,,,,,,
Nottinghamshire County Council,1111/1001,Adult Social Care and Health,ASCH,Third Party Payments,EGA,11/06/2014,03-11010,652.8,Thera East Midlands,,,,,,,,,,,
Nottinghamshire County Council,1111/1001,Adult Social Care and Health,ASCH,Third Party Payments,EGA,11/06/2014,03-11011,652.8,Thera East Midlands,,,,,,,,,,,
Nottinghamshire County Council,1111/1001,Adult Social Care and Health,ASCH,Third Party Payments,EGA,11/06/2014,03-11012,652.8,Thera East Midlands,,,,,,,,,,,
Nottinghamshire County Council,1111/1001,Adult Social Care and Health,ASCH,Third Party Payments,EGA,11/06/2014,03-11013,999.6,Thera East Midlands,,,,,,,,,,,
Nottinghamshire County Council,1111/1001,Adult Social Care and Health,ASCH,Third Party Payments,EGA,11/06/2014,03-11014,522.24,Thera East Midlands,,,,,,,,,,,
Nottinghamshire County Council,1111/1001,Adult Social Care and Health,ASCH,Third Party Payments,EGA,11/06/2014,03-11015,522.24,Thera East Midlands,,,,,,,,,,,
Nottinghamshire County Council,1111/1001,Children and Young People,CYP,Transport Related,CCA,11/06/2014,03-10974,716.5,Travel Wright Ltd,,,,,,,,,,,
Nottinghamshire County Council,1111/1001,Children and Young People,CYP,Transport Related,CCA,11/06/2014,03-10976,2050.35,Travel Wright Ltd,,,,,,,,,,,
Nottinghamshire County Council,1111/1001,Children and Young People,CYP,Transport Related,CCA,11/06/2014,03-10985,32000,Travel Wright Ltd,,,,,,,,,,,
Nottinghamshire County Council,1111/1001,Children and Young People,CYP,Support Services,HAA,11/06/2014,03-10973,2596.05,Travel Wright Ltd,,,,,,,,,,,
Nottinghamshire County Council,1111/1001,Children and Young People,CYP,Support Services,HAA,11/06/2014,03-10975,9927,Travel Wright Ltd,,,,,,,,,,,
Nottinghamshire County Council,1111/1001,Children and Young People,CYP,Support Services,HAA,11/06/2014,03-10977,2756.49,Travel Wright Ltd,,,,,,,,,,,
Nottinghamshire County Council,1111/1001,Children and Young People,CYP,Support Services,HAA,11/06/2014,03-10978,2807.04,Travel Wright Ltd,,,,,,,,,,,
Nottinghamshire County Council,1111/1001,Children and Young People,CYP,Support Services,HAA,11/06/2014,03-10979,4480.68,Travel Wright Ltd,,,,,,,,,,,
Nottinghamshire County Council,1111/1001,Children and Young People,CYP,Support Services,HAA,11/06/2014,03-10980,1820.87,Travel Wright Ltd,,,,,,,,,,,
Nottinghamshire County Council,1111/1001,Children and Young People,CYP,Support Services,HAA,11/06/2014,03-10981,120,Travel Wright Ltd,,,,,,,,,,,
Nottinghamshire County Council,1111/1001,Children and Young People,CYP,Support Services,HAA,11/06/2014,03-10982,2284.8,Travel Wright Ltd,,,,,,,,,,,
Nottinghamshire County Council,1111/1001,Children and Young People,CYP,Support Services,HAA,11/06/2014,03-10983,2416.12,Travel Wright Ltd,,,,,,,,,,,
Nottinghamshire County Council,1111/1001,Highways,HIGHWAYS,Transport Related,CCA,11/06/2014,03-10979,13442.07,Travel Wright Ltd,,,,,,,,,,,
Nottinghamshire County Council,1111/1001,Highways,HIGHWAYS,Transport Related,CCA,11/06/2014,03-10980,5462.63,Travel Wright Ltd,,,,,,,,,,,
Nottinghamshire County Council,1111/1001,Highways,HIGHWAYS,Transport Related,CCA,11/06/2014,03-10981,7724.5,Travel Wright Ltd,,,,,,,,,,,
Nottinghamshire County Council,1111/1001,Highways,HIGHWAYS,Transport Related,CCA,11/06/2014,03-10983,7248.38,Travel Wright Ltd,,,,,,,,,,,
Nottinghamshire County Council,1111/1001,Highways,HIGHWAYS,Transport Related,CCA,11/06/2014,03-10984,9849,Travel Wright Ltd,,,,,,,,,,,
Nottinghamshire County Council,1111/1001,Insurance Revenue,INSURANCE,Supplies & Services,DKA,11/06/2014,03-10824,2000,Uppal Taylor Solicitors,,,,,,,,,,,
Nottinghamshire County Council,1111/1001,Insurance Revenue,INSURANCE,Supplies & Services,DKA,11/06/2014,03-11019,50000,Uppal Taylor Solicitors,,,,,,,,,,,
Nottinghamshire County Council,1111/1001,Corporate Management,CORP_MAGT,Supplies & Services,DFA,11/06/2014,03-11027,565.76,Viglen Ltd,,,,,,,,,,,
Nottinghamshire County Council,1111/1001,Surplus or Deficit from Trading Undertak,TRADING,Supplies & Services,DAA,11/06/2014,03-10001,2419.3,Vivid Laminating Technologies Ltd,,,,,,,,,,,
Nottinghamshire County Council,1111/1001,Children and Young People,CYP,Third Party Payments,EDA,11/06/2014,03-11023,24719,West Bridgford Academy,,,,,,,,,,,
Nottinghamshire County Council,1111/1001,Children and Young People,CYP,Support Services,HAA,11/06/2014,03-10987,5408.55,Wilfreda Beehive,,,,,,,,,,,
Nottinghamshire County Council,1111/1001,Adult Social Care and Health,ASCH,Third Party Payments,EGA,11/06/2014,03-16025,918,Woodley House Ltd,,,,,,,,,,,
Nottinghamshire County Council,1111/1001,Surplus or Deficit from Trading Undertak,TRADING,Supplies & Services,DEA,12/06/2014,03-11037,4910.21,A R G (Mansfield) Limited,,,,,,,,,,,
Nottinghamshire County Council,1111/1001,Children and Young People,CYP,Third Party Payments,EGA,12/06/2014,03-16100,2949.43,Acorn Fostering Services Ltd,,,,,,,,,,,
Nottinghamshire County Council,1111/1001,Children and Young People,CYP,Premises Related,BDA,12/06/2014,03-16131,2712.5,Alfred Mcalpine Business Services L,,,,,,,,,,,
Nottinghamshire County Council,1111/1001,Adult Social Care and Health,ASCH,Third Party Payments,EGA,12/06/2014,03-11069,863.13,Always There Homecare Ltd,,,,,,,,,,,
Nottinghamshire County Council,1111/1001,Adult Social Care and Health,ASCH,Third Party Payments,EGA,12/06/2014,03-11090,2880.53,Always There Homecare Ltd,,,,,,,,,,,
Nottinghamshire County Council,1111/1001,Adult Social Care and Health,ASCH,Third Party Payments,EGA,12/06/2014,03-11103,4675.87,Always There Homecare Ltd,,,,,,,,,,,
Nottinghamshire County Council,1111/1001,Adult Social Care and Health,ASCH,Third Party Payments,EGA,12/06/2014,03-11052,962.04,Amg Nursing & Care Services Ltd,,,,,,,,,,,
Nottinghamshire County Council,1111/1001,Adult Social Care and Health,ASCH,Third Party Payments,EGA,12/06/2014,03-11053,549.45,Amg Nursing & Care Services Ltd,,,,,,,,,,,
Nottinghamshire County Council,1111/1001,Adult Social Care and Health,ASCH,Third Party Payments,EGA,12/06/2014,03-11054,549.44,Amg Nursing & Care Services Ltd,,,,,,,,,,,
Nottinghamshire County Council,1111/1001,Adult Social Care and Health,ASCH,Third Party Payments,EGA,12/06/2014,03-11116,823.68,Amg Nursing & Care Services Ltd,,,,,,,,,,,
Nottinghamshire County Council,1111/1001,Adult Social Care and Health,ASCH,Third Party Payments,EGA,12/06/2014,03-11129,3777.4,Amg Nursing & Care Services Ltd,,,,,,,,,,,
Nottinghamshire County Council,1111/1001,Adult Social Care and Health,ASCH,Third Party Payments,EGA,12/06/2014,03-11130,2953.24,Amg Nursing & Care Services Ltd,,,,,,,,,,,
Nottinghamshire County Council,1111/1001,Adult Social Care and Health,ASCH,Third Party Payments,EGA,12/06/2014,03-11131,2678.52,Amg Nursing & Care Services Ltd,,,,,,,,,,,
Nottinghamshire County Council,1111/1001,Children and Young People,CYP,Third Party Payments,EAA,12/06/2014,03-16129,525,APW Consultancy Service Ltd,,,,,,,,,,,
Nottinghamshire County Council,1111/1001,Adult Social Care and Health,ASCH,Employee Related,ABA,12/06/2014,03-16065,1200,Beaufort Nine Ltd,,,,,,,,,,,
Nottinghamshire County Council,1111/1001,Insurance Revenue,INSURANCE,Supplies & Services,DEA,12/06/2014,03-11121,3780,Browne Jacobson Llp,,,,,,,,,,,
Nottinghamshire County Council,1111/1001,Insurance Revenue,INSURANCE,Supplies & Services,DEA,12/06/2014,03-11122,1320.4,Browne Jacobson Llp,,,,,,,,,,,
Nottinghamshire County Council,1111/1001,Insurance Revenue,INSURANCE,Supplies & Services,DEA,12/06/2014,03-11123,947.2,Browne Jacobson Llp,,,,,,,,,,,
Nottinghamshire County Council,1111/1001,Insurance Revenue,INSURANCE,Supplies & Services,DEA,12/06/2014,03-11124,1591.1,Browne Jacobson Llp,,,,,,,,,,,
Nottinghamshire County Council,1111/1001,Insurance Revenue,INSURANCE,Supplies & Services,DEA,12/06/2014,03-11125,2496.8,Browne Jacobson Llp,,,,,,,,,,,
Nottinghamshire County Council,1111/1001,Insurance Revenue,INSURANCE,Supplies & Services,DEA,12/06/2014,03-11126,1588.42,Browne Jacobson Llp,,,,,,,,,,,
Nottinghamshire County Council,1111/1001,Insurance Revenue,INSURANCE,Supplies & Services,DEA,12/06/2014,03-11127,3387.2,Browne Jacobson Llp,,,,,,,,,,,
Nottinghamshire County Council,1111/1001,Adult Social Care and Health,ASCH,Third Party Payments,EGA,12/06/2014,03-11083,3695.86,Calverton Supreme Home Care Ltd,,,,,,,,,,,
Nottinghamshire County Council,1111/1001,Adult Social Care and Health,ASCH,Third Party Payments,EGA,12/06/2014,03-11056,7365.75,Care Uk Homecare Ltd,,,,,,,,,,,
Nottinghamshire County Council,1111/1001,Adult Social Care and Health,ASCH,Third Party Payments,EGA,12/06/2014,03-11063,14655.22,Care Uk Homecare Ltd,,,,,,,,,,,
Nottinghamshire County Council,1111/1001,Adult Social Care and Health,ASCH,Third Party Payments,EGA,12/06/2014,03-11071,2150.13,Care Uk Homecare Ltd,,,,,,,,,,,
Nottinghamshire County Council,1111/1001,Adult Social Care and Health,ASCH,Third Party Payments,EGA,12/06/2014,03-11085,11443.27,Care Uk Homecare Ltd,,,,,,,,,,,
Nottinghamshire County Council,1111/1001,Surplus or Deficit from Trading Undertak,TRADING,Supplies & Services,DNA,12/06/2014,03-16126,3830,City & Guilds Of London Institute,,,,,,,,,,,
Nottinghamshire County Council,1111/1001,Corporate Management,CORP_MAGT,Supplies & Services,DFA,12/06/2014,03-16045,1875,Concerto Support Services Ltd,,,,,,,,,,,
Nottinghamshire County Council,1111/1001,Adult Social Care and Health,ASCH,Third Party Payments,EGA,12/06/2014,03-11073,985.97,Crossroads Care East Midlands,,,,,,,,,,,
Nottinghamshire County Council,1111/1001,Adult Social Care and Health,ASCH,Third Party Payments,EGA,12/06/2014,03-11088,6815.37,Crossroads Care East Midlands,,,,,,,,,,,
Nottinghamshire County Council,1111/1001,Adult Social Care and Health,ASCH,Third Party Payments,EGA,12/06/2014,03-11101,1347.42,Crossroads Care East Midlands,,,,,,,,,,,
Nottinghamshire County Council,1111/1001,Children and Young People,CYP,Third Party Payments,EBA,12/06/2014,03-16125,3045.3,Derbyshire County Council,,,,,,,,,,,
Nottinghamshire County Council,1111/1001,Adult Social Care and Health,ASCH,Third Party Payments,EGA,12/06/2014,03-11067,7742.94,Direct Health (uk) Ltd,,,,,,,,,,,
Nottinghamshire County Council,1111/1001,Adult Social Care and Health,ASCH,Third Party Payments,EGA,12/06/2014,03-11076,9315.92,Direct Health (uk) Ltd,,,,,,,,,,,
Nottinghamshire County Council,1111/1001,Adult Social Care and Health,ASCH,Third Party Payments,EGA,12/06/2014,03-11081,827.56,Direct Health (uk) Ltd,,,,,,,,,,,
Nottinghamshire County Council,1111/1001,Adult Social Care and Health,ASCH,Third Party Payments,EGA,12/06/2014,03-11102,3479.51,Direct Health (uk) Ltd,,,,,,,,,,,
Nottinghamshire County Council,1111/1001,Adult Social Care and Health,ASCH,Third Party Payments,EGA,12/06/2014,03-11114,1308.38,Direct Health (uk) Ltd,,,,,,,,,,,
Nottinghamshire County Council,1111/1001,Adult Social Care and Health,ASCH,Third Party Payments,EGA,12/06/2014,03-11119,16838.56,Direct Health (uk) Ltd,,,,,,,,,,,
Nottinghamshire County Council,1111/1001,Adult Social Care and Health,ASCH,Third Party Payments,EGA,12/06/2014,03-10760,858,Eve Trades CIC,,,,,,,,,,,
Nottinghamshire County Council,1111/1001,Children and Young People,CYP,Third Party Payments,EFA,12/06/2014,03-16133,1023,First Class Tailored Solutions Ltd,,,,,,,,,,,
Nottinghamshire County Council,1111/1001,Children and Young People,CYP,Third Party Payments,EFA,12/06/2014,03-16134,960,First Class Tailored Solutions Ltd,,,,,,,,,,,
Nottinghamshire County Council,1111/1001,Adult Social Care and Health,ASCH,Third Party Payments,EGA,12/06/2014,03-11039,2768.85,Future Home Care Ltd,,,,,,,,,,,
Nottinghamshire County Council,1111/1001,Children and Young People,CYP,Third Party Payments,EGA,12/06/2014,03-16130,3000,"Futures Advice, Skills & Employment",,,,,,,,,,,
Nottinghamshire County Council,1111/1001,Surplus or Deficit from Trading Undertak,TRADING,Supplies & Services,DEA,12/06/2014,03-16127,1048.96,"Futures Advice, Skills & Employment",,,,,,,,,,,
Nottinghamshire County Council,1111/1001,Surplus or Deficit from Trading Undertak,TRADING,Supplies & Services,DAA,12/06/2014,03-15912,2070.8,Glasdon Uk Ltd,,,,,,,,,,,
Nottinghamshire County Council,1111/1001,Surplus or Deficit from Trading Undertak,TRADING,Supplies & Services,DAA,12/06/2014,03-15913,578.98,Glasdon Uk Ltd,,,,,,,,,,,
Nottinghamshire County Council,1111/1001,Adult Social Care and Health,ASCH,Third Party Payments,EGA,12/06/2014,03-11075,3520.14,Hatzfeld Care Ltd,,,,,,,,,,,
Nottinghamshire County Council,1111/1001,Adult Social Care and Health,ASCH,Third Party Payments,EGA,12/06/2014,03-11079,757.78,Hatzfeld Care Ltd,,,,,,,,,,,
Nottinghamshire County Council,1111/1001,Adult Social Care and Health,ASCH,Third Party Payments,EGA,12/06/2014,03-11086,1402.72,Hatzfeld Care Ltd,,,,,,,,,,,
Nottinghamshire County Council,1111/1001,Adult Social Care and Health,ASCH,Third Party Payments,EGA,12/06/2014,03-11112,895.47,Hatzfeld Care Ltd,,,,,,,,,,,
Nottinghamshire County Council,1111/1001,Adult Social Care and Health,ASCH,Third Party Payments,EGA,12/06/2014,03-10476,4679.01,Heritage Care,,,,,,,,,,,
Nottinghamshire County Council,1111/1001,Adult Social Care and Health,ASCH,Third Party Payments,EGA,12/06/2014,03-11062,1160.75,Home Care Solution Ltd,,,,,,,,,,,
Nottinghamshire County Council,1111/1001,Adult Social Care and Health,ASCH,Third Party Payments,EGA,12/06/2014,03-11096,4695.74,Home Care Solution Ltd,,,,,,,,,,,
Nottinghamshire County Council,1111/1001,Adult Social Care and Health,ASCH,Third Party Payments,EGA,12/06/2014,03-11078,612.88,Housing 21,,,,,,,,,,,
Nottinghamshire County Council,1111/1001,Adult Social Care and Health,ASCH,Third Party Payments,EGA,12/06/2014,03-11105,2117.81,Housing 21,,,,,,,,,,,
Nottinghamshire County Council,1111/1001,Adult Social Care and Health,ASCH,Third Party Payments,EGA,12/06/2014,03-11113,1449.59,Housing 21,,,,,,,,,,,
Nottinghamshire County Council,1111/1001,Adult Social Care and Health,ASCH,Supplies & Services,DBA,12/06/2014,03-16016,503.17,JL Priestley & Company Ltd,,,,,,,,,,,
Nottinghamshire County Council,1111/1001,Adult Social Care and Health,ASCH,Third Party Payments,EHA,12/06/2014,03-11128,1218,Knights Home Care Services Ltd,,,,,,,,,,,
Nottinghamshire County Council,1111/1001,Adult Social Care and Health,ASCH,Third Party Payments,EGA,12/06/2014,03-11104,9606.47,Leda Homecare Ltd,,,,,,,,,,,
Nottinghamshire County Council,1111/1001,Adult Social Care and Health,ASCH,Third Party Payments,EGA,12/06/2014,03-11115,5249.48,Leda Homecare Ltd,,,,,,,,,,,
Nottinghamshire County Council,1111/1001,Highways,HIGHWAYS,Transport Related,CEA,12/06/2014,03-16140,1884.96,Lex Autolease Ltd,,,,,,,,,,,
Nottinghamshire County Council,1111/1001,Highways,HIGHWAYS,Transport Related,CEA,12/06/2014,03-16146,808.77,Lex Autolease Ltd,,,,,,,,,,,
Nottinghamshire County Council,1111/1001,Planning and Development,PLAN_DEV,Supplies & Services,DNA,12/06/2014,03-16136,1015.5,Local Government Information Unit,,,,,,,,,,,
Nottinghamshire County Council,1111/1001,Adult Social Care and Health,ASCH,Third Party Payments,EGA,12/06/2014,03-11059,8540.29,Mears Care Ltd,,,,,,,,,,,
Nottinghamshire County Council,1111/1001,Adult Social Care and Health,ASCH,Third Party Payments,EGA,12/06/2014,03-11095,2297.54,Mears Care Ltd,,,,,,,,,,,
Nottinghamshire County Council,1111/1001,Adult Social Care and Health,ASCH,Third Party Payments,EGA,12/06/2014,03-11098,3783.54,Mears Care Ltd,,,,,,,,,,,
Nottinghamshire County Council,1111/1001,Adult Social Care and Health,ASCH,Third Party Payments,EGA,12/06/2014,03-11111,804.75,Mears Care Ltd,,,,,,,,,,,
Nottinghamshire County Council,1111/1001,Adult Social Care and Health,ASCH,Third Party Payments,EGA,12/06/2014,03-11058,2277.33,Medico Nursing & Homecare,,,,,,,,,,,
Nottinghamshire County Council,1111/1001,Adult Social Care and Health,ASCH,Third Party Payments,EGA,12/06/2014,03-11064,782.44,Medico Nursing & Homecare,,,,,,,,,,,
Nottinghamshire County Council,1111/1001,Adult Social Care and Health,ASCH,Third Party Payments,EGA,12/06/2014,03-11074,834.21,Medico Nursing & Homecare,,,,,,,,,,,
Nottinghamshire County Council,1111/1001,Adult Social Care and Health,ASCH,Third Party Payments,EGA,12/06/2014,03-11089,4277.65,Medico Nursing & Homecare,,,,,,,,,,,
Nottinghamshire County Council,1111/1001,Adult Social Care and Health,ASCH,Third Party Payments,EGA,12/06/2014,03-11110,1507.49,Medico Nursing & Homecare,,,,,,,,,,,
Nottinghamshire County Council,1111/1001,Adult Social Care and Health,ASCH,Third Party Payments,EGA,12/06/2014,03-11092,2581.55,Mediline Nurses & Carers Ltd,,,,,,,,,,,
Nottinghamshire County Council,1111/1001,Adult Social Care and Health,ASCH,Third Party Payments,EGA,12/06/2014,03-11118,536.33,Mediline Nurses & Carers Ltd,,,,,,,,,,,
